2CCN - Level 2 Cost Centre Name,,9CCN - Level 9 Cost Centre Name,9CCC - Level 9 Cost Centre Code,9AN - Level 9 Account Name,9AC - Level 9 Account Code,Transaction Description,Date Paid,Transaction Reference,Analysed Amount,2AC - Level 2 Account Codes,Supplier Name,Supplier Code
Gloucester City Council,23UE,Aspire Admin Charges,LC105,Other Minor Income,9900,BAILIFF PAYMENTS 20/05/14,03/06/2014,384998,110.4,NET,Aspire Sports & Cultural Trust,08135V
Gloucester City Council,23UE,Aspire Admin Charges,LC105,Other Minor Income,9900,BAILIFF PAYMENTS 28/05/14,03/06/2014,384999,179.2,NET,Aspire Sports & Cultural Trust,08135V
Gloucester City Council,23UE,Asset Management,RS300,Vocational Training,2970,Estate Management 01/10/2014,03/06/2014,384217,55,NET,Public Sector Connect Ltd,14903L
Gloucester City Council,23UE,Cemeteries,HC300,Maint Of Grounds - General,3030,Gloves,03/06/2014,384662,18.9,NET,Safpro Industrial Supply Co,39190W
Gloucester City Council,23UE,Cemeteries,HC300,"Seeds, Trees, Plants, Shrubs",3028,Standard Rose,03/06/2014,384750,24.99,NET,Highfield Garden Centres Ltd,48436C
Gloucester City Council,23UE,Cemeteries,HC300,Tyres,4014,Tyre Repair,03/06/2014,384928,57,NET,A T S Euromaster Ltd,01860B
Gloucester City Council,23UE,City Museum Catering,LM202,Catering Provisions -Food,5110,Coffee Beans,03/06/2014,383543,91.85,NET,James Gourmet Coffee Co.,55049A
Gloucester City Council,23UE,City Museum Catering,LM202,Catering Provisions -Food,5110,Food,03/06/2014,384966,48.56,NET,Woodward Foodservice,10714F
Gloucester City Council,23UE,City Museum Catering,LM202,Catering Provisions -Food,5110,Food,03/06/2014,384967,7.44,NET,Total Produce Gloucester,12645E
Gloucester City Council,23UE,City Museum Catering,LM202,Catering Provisions -Food,5110,Food,03/06/2014,384968,7.44,NET,Total Produce Gloucester,12645E
Gloucester City Council,23UE,City Museum Catering,LM202,Catering Provisions -Food,5110,Food,03/06/2014,384969,4.96,NET,Total Produce Gloucester,12645E
Gloucester City Council,23UE,City Museum Catering,LM202,Catering Provisions -Food,5110,Food,03/06/2014,384970,4.96,NET,Total Produce Gloucester,12645E
Gloucester City Council,23UE,City Museum Catering,LM202,Catering Provisions -Food,5110,Food,03/06/2014,384971,6.2,NET,Total Produce Gloucester,12645E
Gloucester City Council,23UE,City Museum Catering,LM202,Catering Provisions -Food,5110,Food,03/06/2014,384989,101.14,NET,Woodward Foodservice,10714F
Gloucester City Council,23UE,City Museum Catering,LM202,Catering Provisions -Food,5110,FOOD,03/06/2014,384786,89.32,NET,Woodward Foodservice,10714F
Gloucester City Council,23UE,City Museum Catering,LM202,Catering Provisions -Food,5110,FOOD,03/06/2014,384787,65.25,NET,Woodward Foodservice,10714F
Gloucester City Council,23UE,Corporate Reporting /Financing,RC504,Miscellaneous Expenses,2952,REDACTED,03/06/2014,385001,8091.99,NET,Department Of Work And Pensions,02963E
Gloucester City Council,23UE,Corporate Reporting /Financing,RC504,Miscellaneous Expenses,2952,REDACTED,03/06/2014,385000,4012.89,NET,REDACTED,REDACTED
Gloucester City Council,23UE,Countryside Unit,LP201,Routine R And M - Vehicles,4011,Service & Repairs to C'Saw,03/06/2014,384943,91.5,NET,Commercial Mower Supplies,06799D
Gloucester City Council,23UE,Crematorium,HC200,Fees For Services Received,5350,Crem Doctors Fees May 2014,03/06/2014,385002,694.88,NET,REDACTED,REDACTED
Gloucester City Council,23UE,Crematorium,HC200,Fees For Services Received,5350,Crem Doctors Fees May 2014,03/06/2014,385003,1524.96,NET,REDACTED,REDACTED
Gloucester City Council,23UE,Crematorium,HC200,Fees For Services Received,5350,Crem Doctors Fees May 2014,03/06/2014,385004,1046.08,NET,REDACTED,REDACTED
Gloucester City Council,23UE,Development Management,PT200,Other Minor Supplies Services,5590,REDACTED,03/06/2014,384950,2335,NET,Beard & Tandy,03160V
Gloucester City Council,23UE,Economic Development,FP300,Other Minor Supplies Services,5590,Business Start up 21&23/1 - service &tea,03/06/2014,379335,65.5,NET,University Of Gloucestershire,57427V
Gloucester City Council,23UE,Economic Development,FP300,Other Minor Supplies Services,5590,Communications: Visit Gloucester Leaflet,03/06/2014,381244,188,NET,Absolute Creative Marketing Ltd,11153T
Gloucester City Council,23UE,Economic Development,FP300,Other Minor Supplies Services,5590,Enterprise club 10/1 service charge&tea,03/06/2014,379334,29,NET,University Of Gloucestershire,57991H
Gloucester City Council,23UE,General Works Fund,RY203,Consultants Fees,0030,REDACTED,03/06/2014,384532,1187.5,CAP,Find The Engineer Recruitment Ltd*,12977Z
Gloucester City Council,23UE,Gloucester Guildhall,LA100,Security Services Fees,5351,Membership May-July 2014,03/06/2014,384965,91,NET,Gloucester City Safe,14709J
Gloucester City Council,23UE,Guildhall Bar And Caf�,LA210,Catering Provisions -Food,5110,Coffee Beans,03/06/2014,384944,182.1,NET,Ethical Addictions Ltd,11654N
Gloucester City Council,23UE,Guildhall Bar And Caf�,LA210,Catering Provisions -Food,5110,Food,03/06/2014,384973,4.96,NET,Total Produce Gloucester,12645E
Gloucester City Council,23UE,Guildhall Bar And Caf�,LA210,Catering Provisions -Food,5110,Food,03/06/2014,384974,4.96,NET,Total Produce Gloucester,12645E
Gloucester City Council,23UE,Guildhall Bar And Caf�,LA210,Catering Provisions -Food,5110,Food,03/06/2014,384975,4.96,NET,Total Produce Gloucester,12645E
Gloucester City Council,23UE,Guildhall Bar And Caf�,LA210,Catering Provisions -Food,5110,Food,03/06/2014,384976,4.96,NET,Total Produce Gloucester,12645E
Gloucester City Council,23UE,Guildhall Bar And Caf�,LA210,Catering Provisions -Food,5110,Food,03/06/2014,384977,4.96,NET,Total Produce Gloucester,12645E
Gloucester City Council,23UE,Guildhall Bar And Caf�,LA210,Catering Provisions -Food,5110,Food,03/06/2014,384978,4.96,NET,Total Produce Gloucester,12645E
Gloucester City Council,23UE,Guildhall Bar And Caf�,LA210,Catering Provisions -Food,5110,Food,03/06/2014,384979,4.96,NET,Total Produce Gloucester,12645E
Gloucester City Council,23UE,Guildhall Bar And Caf�,LA210,Catering Provisions -Food,5110,Food,03/06/2014,384980,4.96,NET,Total Produce Gloucester,12645E
Gloucester City Council,23UE,Guildhall Bar And Caf�,LA210,Catering Provisions -Food,5110,Food,03/06/2014,384983,80.72,NET,Woodward Foodservice,10714F
Gloucester City Council,23UE,Guildhall Bar And Caf�,LA210,Catering Provisions -Food,5110,Food,03/06/2014,384990,161.03,NET,Woodward Foodservice,10714F
Gloucester City Council,23UE,Guildhall Bar And Caf�,LA210,Catering Provisions -Liquor,5111,Liquor,03/06/2014,384945,114,NET,Gloucester Brewery,13373F
Gloucester City Council,23UE,Guildhall Bar And Caf�,LA210,Catering Provisions -Liquor,5111,Liquor,03/06/2014,384946,245.36,NET,Cellar Supplies Cheltenham Ltd,01563L
Gloucester City Council,23UE,Homelessness,CH120,Rent In Advance,5516,REDACTED,03/06/2014,384991,270,NET,REDACTED,REDACTED
Gloucester City Council,23UE,Investment Property,RB500,Lift Maintenance,3051,Inspections Jun- Sept Various Sites,03/06/2014,384763,55.07,NET,Pickerings Europe Ltd*,58816U
Gloucester City Council,23UE,Legal Services,RS200,Basic Pay -Admin /Prof Staff,2601,REDACTED,03/06/2014,384625,636.3,NET,Sellick Partnership Group Ltd,11057C
Gloucester City Council,23UE,Legal Services,RS200,Basic Pay - Temporary Staff,2751,REDACTED,03/06/2014,384635,1060.92,NET,Venn Group Ltd,04339P
Gloucester City Council,23UE,Legal Services,RS200,Basic Pay - Temporary Staff,2751,REDACTED,03/06/2014,384636,1401.93,NET,Venn Group Ltd,04339P
Gloucester City Council,23UE,Members Support,RC300,Contents Insurance,5700,Advertisement 24/05/2014,03/06/2014,384747,482.06,NET,Local World Ltd,08556P
Gloucester City Council,23UE,Publications,RC450,Subscriptions,5600,Renewal of copyright licence 14/15,03/06/2014,384961,1275,NET,Nla Media Access Ltd,10001D
Gloucester City Council,23UE,Tic Trading,LT110,Materials For Sale,5080,Images of Gloucestershire,03/06/2014,384960,100,NET,Inish Publications,10233D
Gloucester City Council,23UE,Asset Management,RS300,Basic Pay -Admin /Prof Staff,2601,REDACTED,04/06/2014,384490,215.5,NET,Unity Recruitment,14857S
Gloucester City Council,23UE,Asset Management,RS300,Consultants Fees,5349,Matson Rugby Club,04/06/2014,384936,2169.9,NET,Bruton Knowles,57534T
Gloucester City Council,23UE,Cemeteries,HC300,"Seeds, Trees, Plants, Shrubs",3028,Pink Shrub Rose,04/06/2014,384942,9.99,NET,Highfield Garden Centres Ltd,48436C
Gloucester City Council,23UE,Cems/Crems Admin,HC100,Maintenance Of Equipment,5030,Battery 12v,04/06/2014,384638,37.8,NET,Crowcon Detection Instruments Limited,07233D
Gloucester City Council,23UE,Civil Parking Enforcement,PT741,Basic Pay - Temporary Staff,2751,REDACTED,04/06/2014,384534,2400,NET,Unity Recruitment,14857S
Gloucester City Council,23UE,Civil Parking Enforcement,PT741,Basic Pay - Temporary Staff,2751,REDACTED,04/06/2014,384781,2400,NET,Unity Recruitment,14857S
Gloucester City Council,23UE,Client Revs & Bens Contract,RT240,Bailiffs Fees,5368,VAT on Statutory Fees,04/06/2014,384956,0,NET,Bristow & Sutor,05450M
Gloucester City Council,23UE,Client Revs & Bens Contract,RT240,Bailiffs Fees,5368,VAT on Statutory Fees,04/06/2014,384957,5,NET,Bristow & Sutor,05450M
Gloucester City Council,23UE,Community Safety Projects,FP500,Basic Pay -Admin /Prof Staff,2601,REDACTED,04/06/2014,384782,297.38,NET,Travail Employment Ltd,49371W
Gloucester City Council,23UE,Contact Centre,RB300,Basic Pay -Admin /Prof Staff,2601,REDACTED,04/06/2014,384364,814,NET,Cps Anystaff Recruitment Ltd,13945D
Gloucester City Council,23UE,Contact Centre,RB300,Basic Pay -Admin /Prof Staff,2601,REDACTED,04/06/2014,384986,350.9,NET,One To One Recruitment,04752H
Gloucester City Council,23UE,Contact Centre,RB300,Basic Pay -Admin /Prof Staff,2601,REDACTED,04/06/2014,384981,495,NET,Venn Group Ltd,04339P
Gloucester City Council,23UE,Docks Complex - Services,RB100,Cleaning Materials,3600,Vacuum Cleaner,04/06/2014,384347,95,NET,Core Hygiene Ltd,03885P
Gloucester City Council,23UE,Financial Services,RT200,Consultants Fees,5349,REDACTED,04/06/2014,384232,2175,NET,Robert Half Ltd,03959K
Gloucester City Council,23UE,Financial Services,RT200,Consultants Fees,5349,REDACTED,04/06/2014,384632,1740,NET,Robert Half Ltd,03959K
Gloucester City Council,23UE,Financial Services,RT200,Consultants Fees,5349,RED,04/06/2014,384985,2175,NET,Robert Half Ltd,03959K
Gloucester City Council,23UE,Flooding And Drainage,HE306,Maint Of Grounds - General,3030,Site Monitoring 14/15,04/06/2014,384776,180,NET,Elcot Environmental,12293P
Gloucester City Council,23UE,Homelessness,CH120,Rent In Advance,5516,REDACTED,04/06/2014,385041,364.6,NET,REDACTED,REDACTED
Gloucester City Council,23UE,Tic Theatre Ticket Sales,LT107,Materials For Sale,5080,Ticket Sales 'Less We Forget',04/06/2014,385043,7.5,NET,The Royal British Legion,59977G
Gloucester City Council,23UE,Tic Theatre Ticket Sales,LT107,Materials For Sale,5080,Ticket Sales 'The God of Carnage',04/06/2014,385042,156,NET,Kings Theatre,54213X
Gloucester City Council,23UE,Tic Theatre Ticket Sales,LT107,Sale Of Goods And Services,9230,Ticket Sales 'Less We Forget',04/06/2014,385043,-0.32,NET,The Royal British Legion,59977G
Gloucester City Council,23UE,Tic Theatre Ticket Sales,LT107,Sale Of Goods And Services,9230,Ticket Sales 'The God of Carnage',04/06/2014,385042,-13,NET,Kings Theatre,54213X
Gloucester City Council,23UE,Tic Trading,LT110,Materials For Sale,5080,Greetings Cards,04/06/2014,384940,24,NET,Clanna Cards,13960H
Gloucester City Council,23UE,Utilities,PT502,Electricity Supply,3110,BLACKFRIARS,04/06/2014,384461,29.07,NET,British Gas,59061X
Gloucester City Council,23UE,Utilities,PT502,Electricity Supply,3110,ROMAN EXCAVATIONS,04/06/2014,384911,672.34,NET,Southern Electric,05714A
Gloucester City Council,23UE,Cemeteries,HC300,Basic Pay - Temporary Staff,2751,Grass Cutters May 2014,05/06/2014,384947,3055.78,NET,Anderson Recruitment Ltd,14646H
Gloucester City Council,23UE,Chief Executive,RE100,Computer Hardware <5000,5420,REDACTED,05/06/2014,385157,326.8,NET,REDACTED,REDACTED
Gloucester City Council,23UE,Chief Executive,RE100,Computer Hardware <5000,5420,REDACTED,05/06/2014,385158,187,NET,REDACTED,REDACTED
Gloucester City Council,23UE,City Museum Catering,LM202,Catering Provisions -Food,5110,Food,05/06/2014,384972,6.2,NET,Total Produce Gloucester,12645E
Gloucester City Council,23UE,Financial Services,RT200,Consultants Fees,5349,REDACTED,05/06/2014,382519,3975,NET,Robert Half Ltd,03959K
Gloucester City Council,23UE,Financial Services,RT200,Consultants Fees,5349,REDACTED,05/06/2014,384984,3975,NET,Robert Half Ltd,03959K
Gloucester City Council,23UE,Homelessness,CH120,Board And Lodging,5515,Emergency Accommodation 08/02/2014,05/06/2014,384144,47.5,NET,Gloucestershire County Council,18650D
Gloucester City Council,23UE,Homelessness,CH120,Rent In Advance,5516,REDACTED,05/06/2014,385159,582.68,NET,REDACTED,REDACTED
Gloucester City Council,23UE,Homelessness Prevention,CH122,Fees For Services Received,5350,REDACTED,05/06/2014,385159,660,NET,REDACTED,REDACTED
Gloucester City Council,23UE,Investment Property,RB500,Advertising And Publicity,5702,Stage 3,05/06/2014,383888,500,NET,Litchfield Morris,14305P
Gloucester City Council,23UE,Investment Property,RB500,Lift Maintenance,3051,Inspections Jun- Sept various sites,05/06/2014,384762,125.33,NET,Pickerings Europe Ltd*,58816U
Gloucester City Council,23UE,Retail Market - Landlord,HM300,Cleaning / Domestic Equipment,5011,Cabinets,05/06/2014,384344,18.05,NET,Initial Washroom Solutions,06143R
Gloucester City Council,23UE,Stationery Services,RS150,Stationery,5302,Stationary,05/06/2014,384939,87.02,NET,Lyreco Uk Ltd,11746G
Gloucester City Council,23UE,Wake Room,HC501,Catering Provisions -Food,5110,Food w/e 25/05/2014,05/06/2014,384770,108.87,NET,Janes Pantry,24500W
Gloucester City Council,23UE,Asbru - Other Funders,FP846,Other Minor Supplies Services,5590,Paint Jam Festival,06/06/2014,385110,5000,NET,Marketing Gloucester Ltd,08925E
Gloucester City Council,23UE,Aspire Admin Charges,LC105,Other Minor Income,9900,BAILIFF PAYMENTS 23/05/14,06/06/2014,385187,190.2,NET,Aspire Sports & Cultural Trust,08135V
Gloucester City Council,23UE,Asset Management,RS300,Basic Pay - Temporary Staff,2751,Consultancy Services May 14,06/06/2014,385105,6807.2,NET,Ardley Associates,09369F
Gloucester City Council,23UE,Cemeteries,HC300,Operational Materials,5070,Jerry Can,06/06/2014,385156,29.98,NET,Machine Mart Ltd*,55207G
Gloucester City Council,23UE,Cemeteries,HC300,Operational Materials,5070,Supply and fit Gradus Latour,06/06/2014,385126,333.71,NET,Chlodel Carpets & Flooring Ltd,12596S
Gloucester City Council,23UE,Cems/Crems Admin,HC100,Office Equipment <5000,5010,Samsung Ink Cartridge,06/06/2014,385065,251.91,NET,Office Star Group Ltd,55874H
Gloucester City Council,23UE,City Museum And Art Gallery,LM200,Advertising And Publicity,5702,Advertisement,06/06/2014,382166,200,NET,Marketing Gloucester Ltd,08925E
Gloucester City Council,23UE,City Museum And Art Gallery,LM200,Advertising And Publicity,5702,GOODS FOR RESALE,06/06/2014,380836,320,NET,Westair Reproductions Ltd,47000G
Gloucester City Council,23UE,City Museum And Art Gallery,LM200,Publications For Sale,5064,FOSSILS,06/06/2014,383680,117.25,NET,British Fossils,53280R
Gloucester City Council,23UE,City Museum And Art Gallery,LM200,Publications For Sale,5064,GOODS FOR RESALE,06/06/2014,380836,217.4,NET,Westair Reproductions Ltd,47000G
Gloucester City Council,23UE,City Museum Catering,LM202,Catering Provisions -Food,5110,Food,06/06/2014,384788,96.98,NET,Woodward Foodservice,10714F
Gloucester City Council,23UE,City Museum Catering,LM202,Catering Provisions -Food,5110,Food,06/06/2014,385119,7.44,NET,Total Produce Gloucester,12645E
Gloucester City Council,23UE,Civic Admin And Hospitality,RC210,Gifts And Prizes,7150,Civic Medallion- Long service,06/06/2014,384745,244.74,NET,Thomas Fattorini Ltd,14975J
Gloucester City Council,23UE,Civic Admin And Hospitality,RC210,Muniments And Regalia,5033,Repair fitted case,06/06/2014,384744,148.85,NET,Thomas Fattorini Ltd,14975J
Gloucester City Council,23UE,Client Revs & Bens Contract,RT240,Court Fees,5358,Two Warrants 22/04/2014,06/06/2014,385180,150,NET,Hmcts,14364X
Gloucester City Council,23UE,Contact Centre,RB300,Conference/Meeting Expenses,5510,Delegate Fees 10/07/2014,06/06/2014,385075,390,NET,Headstar Ltd,11058A
Gloucester City Council,23UE,Crematorium,HC200,"Seeds, Trees, Plants, Shrubs",3028,Supply Turf,06/06/2014,385121,56,NET,Aran Turf,56656L
Gloucester City Council,23UE,Disabled Facilities Grants,CY013,Disabled Facility Grants,0074,REDACTED,06/06/2014,385181,3695,CAP,Mears Home Improvement Ltd,00096G
Gloucester City Council,23UE,Environmental Planning,LM340,Operational Materials,5070,Repairs to Chainsaw,06/06/2014,384929,156.4,NET,Dursley Farm & Garden Machinery,14943Y
Gloucester City Council,23UE,Financial Services,RT200,Basic Pay - Temporary Staff,2751,REDACTED,06/06/2014,383227,457.62,NET,Robert Half Ltd,03959K
Gloucester City Council,23UE,Financial Services,RT200,Fees For Services Received,5350,Various car repairs/replace,06/06/2014,381060,653,NET,Ats Euromaster Ltd,06005E
Gloucester City Council,23UE,Folk Museum,LM210,Advertising And Publicity,5702,Advertisement,06/06/2014,382166,200,NET,Marketing Gloucester Ltd,08925E
Gloucester City Council,23UE,Folk Museum,LM210,Publications For Sale,5064,FOSSILS,06/06/2014,383680,95.1,NET,British Fossils,53280R
Gloucester City Council,23UE,Folk Museum,LM210,Publications For Sale,5064,GOODS FOR RESALE,06/06/2014,380836,151.6,NET,Westair Reproductions Ltd,47000G
Gloucester City Council,23UE,Folk Museum,LM210,Publications For Sale,5064,GOODS FOR RESALE,06/06/2014,383690,274.24,NET,Half Moon Bay Ltd,08240F
Gloucester City Council,23UE,Food Safety,HE100,Fees For Services Received,5350,Laundry,06/06/2014,385120,25,NET,Iron Maidens,02180Y
Gloucester City Council,23UE,General Works Fund,RY203,Cap Repair/Maint Fixed Plant,0014,GL1: parts boiler upgrade & brick,06/06/2014,378784,14301.72,CAP,Hewer Facilities Mgt Ltd,05232A
Gloucester City Council,23UE,Guildhall Bar And Caf�,LA210,Other Catering Provisions,5112,Suremix 30,06/06/2014,384951,45.82,NET,Boc Ltd,59172L
Gloucester City Council,23UE,Guildhall Events,LA200,Fees For Services Received,5350,Advertisements April 14,06/06/2014,384930,452.45,NET,Local World Ltd,08556P
Gloucester City Council,23UE,Guildhall Events,LA200,Fees For Services Received,5350,Advertisements March 14,06/06/2014,384931,440,NET,Local World Ltd,08556P
Gloucester City Council,23UE,Homelessness,CH120,Rent In Advance,5516,REDACTED,06/06/2014,385185,300,NET,REDACTED,REDACTED
Gloucester City Council,23UE,Homelessness,CH120,Rent In Advance,5516,REDACTED,06/06/2014,385182,733.84,NET,REDACTED,REDACTED
Gloucester City Council,23UE,Homelessness Prevention,CH122,Fees For Services Received,5350,REDACTED,06/06/2014,385182,700,NET,REDACTED,REDACTED
Gloucester City Council,23UE,Legal Services,RS200,Basic Pay -Admin /Prof Staff,2601,REDACTED,06/06/2014,384741,508.5,NET,Sellick Partnership Group Ltd,11057C
Gloucester City Council,23UE,Legal Services,RS200,Basic Pay -Admin /Prof Staff,2601,REDACTED,06/06/2014,384740,574.38,NET,Sellick Partnership Group Ltd,11057C
Gloucester City Council,23UE,Legal Services,RS200,Basic Pay - Temporary Staff,2751,REDACTED,06/06/2014,384738,487.29,NET,Premiere Employment Ltd,55468Z
Gloucester City Council,23UE,Members Support,RC300,Conference/Meeting Expenses,5510,Accommodation LGA Conference July 14,06/06/2014,385183,660,NET,Bournemouth Convention Bureau Ltd,14627M
Gloucester City Council,23UE,Nms Contract,HI102,General Repair/Maint Buildings,3000,"scrp disposal car, wheel balance, tubeless",06/06/2014,379998,94.84,NET,Ats Euromaster Ltd,06005E
Gloucester City Council,23UE,Organisational Health,RC160,Fees For Services Received,5350,OH Services April 2014,06/06/2014,385064,590.84,NET,Industrial Medical & Safety Services Ltd,10668L
Gloucester City Council,23UE,Pest Control,HD400,Fees For Services Received,5350,Bird Control May 14,06/06/2014,385078,4650,NET,Falconry Services Ltd,10692P
Gloucester City Council,23UE,Pollution Control,HE300,Fees For Services Received,5350,Dust Monitoring Programme,06/06/2014,384749,1342,NET,Dustscan Ltd,03448T
Gloucester City Council,23UE,Pollution Control,HE300,Fees For Services Received,5350,Dust Monitoring Programme,06/06/2014,385160,1162,NET,Dustscan Ltd,03448T
Gloucester City Council,23UE,Retail Market - Landlord,HM300,Maintenance Contract,5352,"Annual Inspections, Markets",06/06/2014,384932,321.83,NET,A & E Fire Equipment Limited,54289L
Gloucester City Council,23UE,Summer Festival,LT300,Printing,5300,Summer in Gloucester,06/06/2014,385111,1500,NET,Marketing Gloucester Ltd,08925E
Gloucester City Council,23UE,Wake Room,HC501,Catering Provisions -Food,5110,Food,06/06/2014,384796,726.3,NET,3663,55585U
Gloucester City Council,23UE,Wake Room,HC501,Catering Provisions -Food,5110,Food,06/06/2014,384797,331.53,NET,3663,55585U
Gloucester City Council,23UE,Wake Room,HC501,Catering Provisions -Food,5110,Food,06/06/2014,385112,25.76,NET,Total Produce Gloucester,12645E
Gloucester City Council,23UE,Wake Room,HC501,Catering Provisions -Food,5110,Food,06/06/2014,385113,44.27,NET,Total Produce Gloucester,12645E
Gloucester City Council,23UE,Wake Room,HC501,Catering Provisions -Food,5110,Food,06/06/2014,385114,20.66,NET,Total Produce Gloucester,12645E
Gloucester City Council,23UE,Wake Room,HC501,Catering Provisions -Food,5110,Food,06/06/2014,385115,21.72,NET,Total Produce Gloucester,12645E
Gloucester City Council,23UE,Wake Room,HC501,Catering Provisions -Food,5110,Food,06/06/2014,385116,14.88,NET,Total Produce Gloucester,12645E
Gloucester City Council,23UE,Wake Room,HC501,Catering Provisions -Food,5110,Food,06/06/2014,385117,19.42,NET,Total Produce Gloucester,12645E
Gloucester City Council,23UE,Wake Room,HC501,Catering Provisions -Food,5110,Food,06/06/2014,385118,9.15,NET,Total Produce Gloucester,12645E
Gloucester City Council,23UE,Wake Room,HC501,Catering Provisions -Food,5110,Food,06/06/2014,385155,128.96,NET,3663,55585U
Gloucester City Council,23UE,Asset Management,RS300,Subscriptions,5600,Subscription to Estates Gazette,09/06/2014,385106,225,NET,Estates Gazette,05367Z
Gloucester City Council,23UE,Cemeteries,HC300,Routine R And M - Vehicles,4011,Ferris service,09/06/2014,385230,266.59,NET,T H White Ltd,08413P
Gloucester City Council,23UE,Cemeteries,HC300,Trade Refuse Tipping Fees,6297,dumper hire,09/06/2014,385237,475,NET,Allstone Sand & Gravel Aggregates Ltd,00940M
Gloucester City Council,23UE,Cemeteries,HC300,Trade Refuse Tipping Fees,6297,inert waste skip exchange,09/06/2014,385241,720,NET,Allstone Sand & Gravel Aggregates Ltd,00940M
Gloucester City Council,23UE,City Museum And Art Gallery,LM200,Operational Equipment <5000,5012,Mencap Autism training course,09/06/2014,385234,11.5,NET,As Conferences Ltd,14724N
Gloucester City Council,23UE,City Museum And Art Gallery,LM200,Publications For Sale,5064,Folk museum: bowls & mugs,09/06/2014,382605,17.46,NET,Half Moon Bay Ltd,08240F
Gloucester City Council,23UE,City Museum And Art Gallery,LM200,Publications For Sale,5064,goods for resale,09/06/2014,380532,,NET,Half Moon Bay Ltd,08240F
Gloucester City Council,23UE,City Museum And Art Gallery,LM200,Publications For Sale,5064,tudor portrait booklet,09/06/2014,385240,425,NET,Color Co,57707K
Gloucester City Council,23UE,Civica Contract Revs & Bens,RT250,Contracted Services,6970,Revenues & Benefits Services July 14,09/06/2014,385099,138572.7,NET,Civica Uk Ltd,10841X
Gloucester City Council,23UE,Civil Parking Enforcement,PT741,Contracted Services,6970,APRIL 2014,09/06/2014,383666,17746.95,NET,Apcoa Parking (Uk) Ltd,09954M
Gloucester City Council,23UE,Civil Parking Enforcement,PT741,On Street Parking Charges,6550,Parking Income April 14,09/06/2014,384514,48911.39,NET,Gloucestershire County Council,18650D
Gloucester City Council,23UE,Contact Centre,RB300,Basic Pay -Admin /Prof Staff,2601,REDACTED,09/06/2014,385079,495,NET,Cps Anystaff Recruitment Ltd,13945D
Gloucester City Council,23UE,Corporate Expenses,RC110,Subscriptions,5600,Data protection renewal,09/06/2014,385257,500,NET,Information Commissioner,58085S
Gloucester City Council,23UE,Docks Complex - Castlemeads Cp,RB210,Contracted Services,6970,APRIL 2014,09/06/2014,383666,3525.2,NET,Apcoa Parking (Uk) Ltd,09954M
Gloucester City Council,23UE,Docks Complex - Services,RB100,Lift Maintenance,3051,Lifts,09/06/2014,381804,638.88,NET,Schindler Ltd,06826C
Gloucester City Council,23UE,Docks Complex - Services,RB100,Maint Of Grounds - General,3030,Completion of Garage Doors,09/06/2014,385069,664,NET,Pinetree (Gloucester) Ltd,53288Y
Gloucester City Council,23UE,Docks Complex - Services,RB100,Repair/Maint Of Fixed Plant,3006,Check position for sensor,09/06/2014,383992,165.75,NET,Hewer Facilities Mgt Ltd,05232A
Gloucester City Council,23UE,Docks Complex - Services,RB100,Repair/Maint Of Fixed Plant,3006,Fan Convector Leaking,09/06/2014,383993,117.5,NET,Hewer Facilities Mgt Ltd,05232A
Gloucester City Council,23UE,Financial Services,RT200,Consultants Fees,5349,REDACTED,09/06/2014,385238,1740,NET,Robert Half Ltd,03959K
Gloucester City Council,23UE,Flooding And Drainage,HE306,Maint Of Grounds - General,3030,Robinswood Hill Pond,09/06/2014,381667,3998.8,NET,Three Counties Drain Service,44033V
Gloucester City Council,23UE,Flooding And Drainage,HE306,Maint Of Grounds - General,3030,Napier St/Sinope St gully clearance,09/06/2014,379352,120,NET,Three Counties Drain Service,44033V
Gloucester City Council,23UE,Folk Museum,LM210,Operational Equipment <5000,5012,Mencap Autism training course,09/06/2014,385234,34.5,NET,As Conferences Ltd,14724N
Gloucester City Council,23UE,Folk Museum,LM210,Publications For Sale,5064,Folk museum: bowls & mugs,09/06/2014,382605,72.42,NET,Half Moon Bay Ltd,08240F
Gloucester City Council,23UE,Folk Museum,LM210,Publications For Sale,5064,goods for resale,09/06/2014,380532,152.34,NET,Half Moon Bay Ltd,08240F
Gloucester City Council,23UE,Forest Of Dean Cpe,PT744,Contracted Services,6970,APRIL 2014,09/06/2014,383666,2839.95,NET,Apcoa Parking (Uk) Ltd,09954M
Gloucester City Council,23UE,Forest Of Dean Off Street,PT742,Contracted Services,6970,APRIL 2014,09/06/2014,383666,498.64,NET,Apcoa Parking (Uk) Ltd,09954M
Gloucester City Council,23UE,Group Mgr Planning & Economy,GR101,Basic Pay - Temporary Staff,2751,REDACTED,09/06/2014,383953,2475,NET,Randstad Cpe Ltd,13987L
Gloucester City Council,23UE,Group Mgr Planning & Economy,GR101,Basic Pay - Temporary Staff,2751,REDACTED,09/06/2014,384627,2475,NET,Randstad Cpe Ltd,13987L
Gloucester City Council,23UE,Group Mgr Planning & Economy,GR101,Basic Pay - Temporary Staff,2751,REDACTED,09/06/2014,384955,2475,NET,Randstad Cpe Ltd,13987L
Gloucester City Council,23UE,REDACTED,REDACTED,REDACTED,REDACTED,REDACTED,09/06/2014,REDACTED,780,NET,REDACTED,REDACTED
Gloucester City Council,23UE,Herbert Reception Upgrade,RY201,Contract Payments,0020,Security Staff,09/06/2014,383994,2937.6,CAP,Nsgl Ltd,12539E
Gloucester City Council,23UE,Homelessness,CH120,Fees For Services Received,5350,medical Advice,09/06/2014,384937,35,NET,Now Medical,03468L
Gloucester City Council,23UE,Investment Property,RB500,Lift Maintenance,3051,"Guildhall, Blackfriars, Museum Jun- Sept",09/06/2014,384784,506.04,NET,Pickerings Europe Ltd*,58816U
Gloucester City Council,23UE,Legal Services,RS200,Basic Pay - Temporary Staff,2751,REDACTED,09/06/2014,384739,418.15,NET,Premiere Employment Ltd,55468Z
Gloucester City Council,23UE,Legal Services,RS200,Basic Pay - Temporary Staff,2751,REDACTED,09/06/2014,385245,204.14,NET,Premiere Employment Ltd,55468Z
Gloucester City Council,23UE,Nms Contract,HI102,General Repair/Maint Buildings,3000,Padlocks,09/06/2014,383237,286,NET,Severnside Security Ltd,14661M
Gloucester City Council,23UE,Off Street Car Parks,PP110,Contracted Services,6970,APRIL 2014,09/06/2014,383666,12877.21,NET,Apcoa Parking (Uk) Ltd,09954M
Gloucester City Council,23UE,Off Street Car Parks,PP110,Fees For Services Received,5350,Airtime June/April,09/06/2014,384751,507.9,NET,Parkeon Ltd,03238G
Gloucester City Council,23UE,Off Street Car Parks,PP110,Rents,3200,Rent 38/46 Eastgate St JUN-SEP14,09/06/2014,385242,600,NET,Boots The Chemist,04540V
Gloucester City Council,23UE,Parking Cctv,PT745,Contracted Services,6970,Bus Lane enforcements March 2014,09/06/2014,383019,60,NET,Gloucestershire County Council,18650D
Gloucester City Council,23UE,Rehousing,CH111,Basic Pay - Temporary Staff,2751,REDACTED,09/06/2014,385123,703,NET,Building Recruitment Company Ltd,55385E
Gloucester City Council,23UE,Rehousing,CH111,Fees For Services Received,5350,medical Advice,09/06/2014,384937,75,NET,Now Medical,03468L
Gloucester City Council,23UE,Shopmobility,PE200,Cleaning Materials,3600,Medical Waste Service,09/06/2014,384654,7.11,NET,Ocs Group Uk Limited T/A Cannon,06506A
Gloucester City Council,23UE,Treasury Management,VR110,Brokerage Fees,5951,Leicester City Council,09/06/2014,385127,1512.33,NET,Martin Brokers (Uk) Plc,51416J
Gloucester City Council,23UE,Utilities,PT502,Electricity Supply,3110,UTILITIES TO MAY 2014,09/06/2014,384912,35249,NET,West Mercia Energy,11669Z
Gloucester City Council,23UE,Utilities,PT502,Gas Supply,3100,UTILITIES TO MAY 2014,09/06/2014,384912,8313.61,NET,West Mercia Energy,11669Z
Gloucester City Council,23UE,Waterwells Park And Ride,PJ120,Contracted Services,6970,APRIL 2014,09/06/2014,383666,372.48,NET,Apcoa Parking (Uk) Ltd,09954M
Gloucester City Council,23UE,Aspire Admin Charges,LC105,Contracted Services,6970,Management Fees JUN14,10/06/2014,385313,71458.92,NET,Aspire Sports & Cultural Trust,08135V
Gloucester City Council,23UE,Business Support,PT250,Fuel,4012,Fuel,10/06/2014,384987,227.43,NET,Allstar Business Solutions Ltd (Arval),06594A
Gloucester City Council,23UE,Client Revs & Bens Contract,RT240,Bailiffs Fees,5368,VAT on fees collected,10/06/2014,383233,0,NET,Phoenix Commercial Collections Ltd,13435J
Gloucester City Council,23UE,Client Revs & Bens Contract,RT240,Fees For Services Received,5350,Bailiff Reforms,10/06/2014,384489,850,NET,Civica Uk Ltd,10841X
Gloucester City Council,23UE,Client Revs & Bens Contract,RT240,Fees For Services Received,5350,Retail Rate Relief,10/06/2014,384488,800,NET,Civica Uk Ltd,10841X
Gloucester City Council,23UE,Contact Centre,RB300,Basic Pay -Admin /Prof Staff,2601,REDACTED,10/06/2014,385109,726,NET,Cps Anystaff Recruitment Ltd,13945D
Gloucester City Council,23UE,Contact Centre,RB300,Basic Pay -Admin /Prof Staff,2601,REDACTED,10/06/2014,385107,814,NET,Cps Anystaff Recruitment Ltd,13945D
Gloucester City Council,23UE,Contact Centre,RB300,Basic Pay -Admin /Prof Staff,2601,REDACTED,10/06/2014,385108,814,NET,Cps Anystaff Recruitment Ltd,13945D
Gloucester City Council,23UE,Contact Centre,RB300,Basic Pay -Admin /Prof Staff,2601,Monthly Fee June 2014,10/06/2014,384934,226.69,NET,Office Response,09439K
Gloucester City Council,23UE,Docks Complex - Catering Servs,RB110,Catering Provisions -Food,5110,Food,10/06/2014,384103,72.59,NET,Janes Pantry,24500W
Gloucester City Council,23UE,Docks Complex - Catering Servs,RB110,Catering Provisions -Food,5110,Food,10/06/2014,384327,117.21,NET,Janes Pantry,24500W
Gloucester City Council,23UE,Environmental Planning,LM340,Grants To Voluntary Orgs-Rents,7100,Historic Areas Grant Stage 2,10/06/2014,385307,10000,NET,Llanthony Secunda Priory Trust,07444M
Gloucester City Council,23UE,Financial Services,RT200,Consultants Fees,5349,REDACTED,10/06/2014,385239,3975,NET,Robert Half Ltd,03959K
Gloucester City Council,23UE,Flooding And Drainage,HE306,Maint Of Grounds - General,3030,"Clearance, Daniels Brook & Whaddon Brook",10/06/2014,384941,675,NET,Tcv T/A The Conservation Volunteers,55897V
Gloucester City Council,23UE,Gl1 Pool Air Handling System,LY152,Contract Payments,0020,books on design & build control,10/06/2014,382239,139.65,CAP,Riba Enterprises,09988U
Gloucester City Council,23UE,REDACTED,REDACTED,REDACTED,REDACTED,REDACTED,10/06/2014,REDACTED,327.47,NET,REDACTED,REDACTED
Gloucester City Council,23UE,Human Resources,EH100,Fees For Services Received,5350,Employee Counselling Service 11/13-10/14,10/06/2014,385309,1348.51,NET,REDACTED,REDACTED
Gloucester City Council,23UE,Inhouse Training,EH200,Vocational Training,2970,EFAW course 4/7/14,10/06/2014,384881,100,NET,Aspire Sports & Cultural Trust,08135V
Gloucester City Council,23UE,Licences,HE510,Reimbursements,5591,"Refund, Ref: 009415",10/06/2014,385305,21,NET,REDACTED,REDACTED
Gloucester City Council,23UE,Licences,HE510,Reimbursements,5591,"Refund, Ref: 064618",10/06/2014,385306,21,NET,REDACTED,REDACTED
Gloucester City Council,23UE,Licences,HE510,Reimbursements,5591,"Refund, reference: 130840",10/06/2014,385304,21,NET,REDACTED,REDACTED
Gloucester City Council,23UE,Nms Contract,HI102,Operational Materials,5070,Delivery Charge Overcharge,10/06/2014,385471,50,NET,Polystar Plastics Ltd,01120C
Gloucester City Council,23UE,Nms Contract,HI102,Operational Materials,5070,Purple Sacks,10/06/2014,384764,903,NET,Polystar Plastics Ltd,01120C
Gloucester City Council,23UE,Postal Services,RS120,Postages,5400,DE Subscription 14-15,10/06/2014,385104,2122.47,NET,Dx Network Services Ltd,02593S
Gloucester City Council,23UE,Theatre Tokens,LT106,Materials For Sale,5080,Ticket Sales May 2014,10/06/2014,385128,76,NET,Society Of London Theatre,05656Z
Gloucester City Council,23UE,Blackfriars,LA609,Materials For Sale,5080,Art Work Sales May 2014,11/06/2014,385470,60,NET,REDACTED,REDACTED
Gloucester City Council,23UE,Blackfriars,LA609,Sale Of Goods And Services,9230,Art Work Sales May 2014,11/06/2014,385470,-7.5,NET,REDACTED,REDACTED
Gloucester City Council,23UE,Bus Station,RB400,Water Supply,3400,ACCT 7890105225,11/06/2014,385500,168.61,NET,Severn Trent Water,01823H
Gloucester City Council,23UE,Cemeteries,HC300,Operational Materials,5070,Keepsake,11/06/2014,385375,111,NET,Teleshore (Uk) Ltd,56819G
Gloucester City Council,23UE,Cemeteries,HC300,"Seeds, Trees, Plants, Shrubs",3028,Red Rose Tree,11/06/2014,385379,24.99,NET,Highfield Garden Centres Ltd,48436C
Gloucester City Council,23UE,Cemeteries,HC300,"Seeds, Trees, Plants, Shrubs",3028,Red Rose Tree,11/06/2014,385380,24.99,NET,Highfield Garden Centres Ltd,48436C
Gloucester City Council,23UE,City Museum Catering,LM202,Other Catering Provisions,5112,Espresso Machine Rental,11/06/2014,382509,135,NET,La Spaziale Uk Ltd,11823P
Gloucester City Council,23UE,Client Revs & Bens Contract,RT240,Bailiffs Fees,5368,VAT on Statutory Fees,11/06/2014,385384,0,NET,Bristow & Sutor,05450M
Gloucester City Council,23UE,Client Revs & Bens Contract,RT240,Bailiffs Fees,5368,VAT on Statutory Fees,11/06/2014,385385,0,NET,Bristow & Sutor,05450M
Gloucester City Council,23UE,Client Revs & Bens Contract,RT240,Bailiffs Fees,5368,VAT on Statutory Fees,11/06/2014,385386,251.58,NET,Bristow & Sutor,05450M
Gloucester City Council,23UE,Community Safety Projects,FP500,Basic Pay -Admin /Prof Staff,2601,REDACTED,11/06/2014,385413,426.28,NET,Travail Employment Ltd,49371W
Gloucester City Council,23UE,Council Streetcare Team,HI101,General Repair/Maint Buildings,3000,"Coney Hill Park, removal of fence",11/06/2014,385404,120,NET,Greenfields Garden Services Ltd,48130G
Gloucester City Council,23UE,Council Streetcare Team,HI101,Water Supply,3400,ACCT 7890105225,11/06/2014,385500,103.6,NET,Severn Trent Water,01823H
Gloucester City Council,23UE,Countryside Unit,LP201,Clothing,5200,"Jacket, Batteries",11/06/2014,385389,20.82,NET,Countrywide Farmers*,55687J
Gloucester City Council,23UE,Countryside Unit,LP201,General Repair/Maint Buildings,3000,Extend Water Supply,11/06/2014,385425,783,NET,Snape Construction Ltd,40958T
Gloucester City Council,23UE,Countryside Unit,LP201,Maint Of Grounds - General,3030,"Jacket, Batteries",11/06/2014,385389,2.08,NET,Countrywide Farmers*,55687J
Gloucester City Council,23UE,Countryside Unit,LP201,Major R And M - Vehicles,4010,Universal Joint & Keyway Yoke,11/06/2014,385400,86.5,NET,A C Belting Ltd,00250X
Gloucester City Council,23UE,Countryside Unit,LP201,Major R And M - Vehicles,4010,Vee Belt,11/06/2014,385401,36.8,NET,A C Belting Ltd,00250X
Gloucester City Council,23UE,Countryside Unit,LP201,Water Supply,3400,ACCT 7890105225,11/06/2014,385500,167.13,NET,Severn Trent Water,01823H
Gloucester City Council,23UE,Crematorium,HC200,Water Supply,3400,ACCT 7890105225,11/06/2014,385500,819.39,NET,Severn Trent Water,01823H
Gloucester City Council,23UE,Docks Complex - Catering Servs,RB110,Catering Provisions -Food,5110,Food,11/06/2014,385463,367.18,NET,3663,55585U
Gloucester City Council,23UE,Docks Complex - Catering Servs,RB110,Catering Provisions -Food,5110,Food,11/06/2014,385464,539.7,NET,3663,55585U
Gloucester City Council,23UE,Docks Complex - Catering Servs,RB110,Catering Provisions -Food,5110,Food,11/06/2014,385465,452.69,NET,3663,55585U
Gloucester City Council,23UE,Docks Complex - Catering Servs,RB110,Catering Provisions -Food,5110,Food,11/06/2014,385466,379.42,NET,3663,55585U
Gloucester City Council,23UE,Docks Complex - Catering Servs,RB110,Catering Provisions -Food,5110,Food,11/06/2014,385467,373.02,NET,3663,55585U
Gloucester City Council,23UE,Docks Complex - Catering Servs,RB110,Catering Provisions -Food,5110,Food,11/06/2014,385468,364.63,NET,3663,55585U
Gloucester City Council,23UE,Docks Complex - Catering Servs,RB110,Catering Provisions -Food,5110,Food,11/06/2014,385469,174.67,NET,3663,55585U
Gloucester City Council,23UE,Docks Complex - Services,RB100,Lift Maintenance,3051,Lift Inspection Herbert May 14,11/06/2014,385418,423.76,NET,Pickerings Europe Ltd*,58816U
Gloucester City Council,23UE,Docks Complex - Services,RB100,Maint Of Grounds - General,3030,Blackout Blinds,11/06/2014,385406,648,NET,Ej Blinds,48873Z
Gloucester City Council,23UE,Gf Lifelinks,CH180,Contracted Services,6970,Management Fee May 14,11/06/2014,384933,5270.83,NET,Gloucester City Homes,05244T
Gloucester City Council,23UE,Grants To Voluntary Sector,FG100,Funding Vol&Com Grps-Grants,7100C,Grant Payment  14/15,11/06/2014,385399,3000,NET,Tuffley Community Association,03719J
Gloucester City Council,23UE,Group Mgr Planning & Economy,GR101,Basic Pay - Temporary Staff,2751,REDACTED,11/06/2014,385360,1980,NET,Randstad Cpe Ltd,13987L
Gloucester City Council,23UE,Homelessness,CH120,Fees For Services Received,5350,"Medical Advice, May 2014",11/06/2014,385395,35,NET,Now Medical,03468L
Gloucester City Council,23UE,Homelessness,CH120,Fees For Services Received,5350,Medical Report 08/04/2014,11/06/2014,385397,20.5,NET,Much Birch Surgery,14744G
Gloucester City Council,23UE,Homelessness,CH120,Removal And Storage Fees,5513,REDACTED,11/06/2014,385396,84.43,NET,Advanced Removals & Storage Ltd,57142R
Gloucester City Council,23UE,Homelessness,CH120,Rent In Advance,5516,REDACTED,11/06/2014,385502,270,NET,REDACTED,REDACTED
Gloucester City Council,23UE,Investment Property,RB500,Lift Maintenance,3051,Herbert Warehouse Jun- Sept 2014,11/06/2014,384798,416.01,NET,Pickerings Europe Ltd*,58816U
Gloucester City Council,23UE,Investment Property,RB500,Lift Maintenance,3051,Lift Inspection- Blackfriars,11/06/2014,385420,577.6,NET,Pickerings Europe Ltd*,58816U
Gloucester City Council,23UE,Investment Property,RB500,Lift Maintenance,3051,Lift Inspection City Museum,11/06/2014,385422,1582.95,NET,Pickerings Europe Ltd*,58816U
Gloucester City Council,23UE,Investment Property,RB500,Water Supply,3400,ACCT 7890105225,11/06/2014,385500,300.42,NET,Severn Trent Water,01823H
Gloucester City Council,23UE,Legal Services,RS200,Basic Pay - Temporary Staff,2751,REDACTED,11/06/2014,385231,1401.93,NET,Venn Group Ltd,04339P
Gloucester City Council,23UE,National Express,LT105,Materials For Sale,5080,Charges for May 2014,11/06/2014,385407,15694.6,NET,National Express Ltd,31455K
Gloucester City Council,23UE,National Express,LT105,Sale Of Goods And Services,9230,Charges for May 2014,11/06/2014,385407,-1519.64,NET,National Express Ltd,31455K
Gloucester City Council,23UE,Off Street Car Parks,PP110,Fees For Services Received,5350,Services for parking equipment,11/06/2014,383229,510.14,NET,Parkeon Ltd,03238G
Gloucester City Council,23UE,Off Street Car Parks,PP110,Water Supply,3400,ACCT 7890105225,11/06/2014,385500,1689.05,NET,Severn Trent Water,01823H
Gloucester City Council,23UE,Pest Control,HD400,Fees For Services Received,5350,Bird Control 27/05 & 03/06 2014,11/06/2014,385381,4420,NET,Falconry Services Ltd,10692P
Gloucester City Council,23UE,Rehousing,CH111,Fees For Services Received,5350,"Medical Advice, May 2014",11/06/2014,385395,100,NET,Now Medical,03468L
Gloucester City Council,23UE,Retail Market - Landlord,HM300,Sewerage And Environ Charges,3402,Two Monthly Service 12/05/2014,11/06/2014,385398,180,NET,Eezeeflow Drain Services,11587C
Gloucester City Council,23UE,Tourism Marketing,LT100,Advertising And Publicity,5702,Blackfriars window banner,11/06/2014,385233,69,NET,Squirty Ink,13834P
Gloucester City Council,23UE,Utilities,PT502,Electricity Supply,3110,33 THE FORUM,11/06/2014,385501,119.06,NET,Npower,03929V
Gloucester City Council,23UE,Utilities,PT502,Electricity Supply,3110,ROBINSWOOD HILL,11/06/2014,385178,474.42,NET,Npower,03929V
Gloucester City Council,23UE,Wake Room,HC501,Laundry,5210,Laundering of Gold Table Cloths,11/06/2014,385503,33,NET,REDACTED,REDACTED
Gloucester City Council,23UE,Alney Island,PY128,Contract Payments,0020,CABIN,12/06/2014,385346,10387,CAP,Loxston Groundcare,14309F
Gloucester City Council,23UE,Alney Island,PY128,Contract Payments,0020,TRACTOR,12/06/2014,385335,48964,CAP,Loxston Groundcare,14309F
Gloucester City Council,23UE,Asset Management,RS300,Clothing,5200,Safety Boots,12/06/2014,385460,49.95,NET,Ermin Plant Hire & Services Ltd,14150V
Gloucester City Council,23UE,Blackfriars Inn,RY191,Contract Payments,0020,Blackfriars Inn,12/06/2014,383614,3206.56,CAP,King Builders (Gloucester) Ltd,25810S
Gloucester City Council,23UE,Business Support,PT250,Fuel,4012,Fuel,12/06/2014,385415,209.71,NET,Allstar Business Solutions Ltd (Arval),06594A
Gloucester City Council,23UE,City Museum Catering,LM202,Catering Provisions -Food,5110,Coffee Beans,12/06/2014,384962,162.25,NET,James Gourmet Coffee Co.,55049A
Gloucester City Council,23UE,Civic Admin And Hospitality,RC210,Events,5952,PERF 17/05/14,12/06/2014,385340,300,NET,Rumours,14745E
Gloucester City Council,23UE,Client Revs & Bens Contract,RT240,Fees For Services Received,5350,ENCLOSURES 2014/15,12/06/2014,385337,1824,NET,Civica Uk Ltd,10841X
Gloucester City Council,23UE,Client Revs & Bens Contract,RT240,Legal Fees,5731,PALL MALL,12/06/2014,385323,3000,NET,REDACTED,REDACTED
Gloucester City Council,23UE,Contact Centre,RB300,Basic Pay -Admin /Prof Staff,2601,REDACTED,12/06/2014,385124,600,NET,Building Recruitment Company Ltd,55385E
Gloucester City Council,23UE,Contact Centre,RB300,Basic Pay -Admin /Prof Staff,2601,REDACTED,12/06/2014,385423,590,NET,Building Recruitment Company Ltd,55385E
Gloucester City Council,23UE,Contact Centre,RB300,Basic Pay -Admin /Prof Staff,2601,REDACTED,12/06/2014,385426,550,NET,Cps Anystaff Recruitment Ltd,13945D
Gloucester City Council,23UE,Contact Centre,RB300,Basic Pay -Admin /Prof Staff,2601,REDACTED,12/06/2014,385080,660,NET,Cps Anystaff Recruitment Ltd,13945D
Gloucester City Council,23UE,Contact Centre,RB300,Basic Pay -Admin /Prof Staff,2601,REDACTED,12/06/2014,385427,660,NET,Cps Anystaff Recruitment Ltd,13945D
Gloucester City Council,23UE,Contact Centre,RB300,Basic Pay -Admin /Prof Staff,2601,REDACTED,12/06/2014,385411,352.06,NET,One To One Recruitment,04752H
Gloucester City Council,23UE,Countryside Unit,LP201,Maint Of Grounds - General,3030,6mm Steel Plate BBQ,12/06/2014,385063,840,NET,Mant Leisure,13471E
Gloucester City Council,23UE,Countryside Unit,LP201,Major R And M - Vehicles,4010,PTO REPAIR,12/06/2014,385348,60,NET,Commercial Mower Supplies,06799D
Gloucester City Council,23UE,Development Management,PT200,Contents Insurance,5700,Advertisements 29/05/2014,12/06/2014,385102,87.65,NET,Local World Ltd,08556P
Gloucester City Council,23UE,Disabled Facilities Grants,CY013,Disabled Facility Grants,0074,GRANT REF MDF5015,12/06/2014,385537,12889.39,CAP,Mears Home Improvement Ltd,00096G
Gloucester City Council,23UE,Docks Complex - Catering Servs,RB110,Catering Provisions -Food,5110,FOOD,12/06/2014,385332,28.4,NET,Taynton Farm Foods,09653F
Gloucester City Council,23UE,Docks Complex - Catering Servs,RB110,Catering Provisions -Food,5110,FOOD,12/06/2014,385333,28.4,NET,Taynton Farm Foods,09653F
Gloucester City Council,23UE,Docks Complex - Catering Servs,RB110,Catering Provisions -Food,5110,FOOD,12/06/2014,385334,25.56,NET,Taynton Farm Foods,09653F
Gloucester City Council,23UE,Economic Development,FP300,Other Minor Supplies Services,5590,ENCLOSURES 2014/15,12/06/2014,385337,815,NET,Civica Uk Ltd,10841X
Gloucester City Council,23UE,REDACTED,REDACTED,REDACTED,REDACTED,REDACTED,12/06/2014,REDACTED,48.67,NET,REDACTED,REDACTED
Gloucester City Council,23UE,Flooding And Drainage,HE306,Maint Of Grounds - General,3030,"Clearance of Lilac Way, 15/05/2014",12/06/2014,385394,480,NET,Tcv T/A The Conservation Volunteers,55897V
Gloucester City Council,23UE,Gloucester Guildhall,LA100,Maintenance Of Equipment,5030,EAR PLUGS,12/06/2014,385318,94.25,NET,Fire Protection Shop,09859G
Gloucester City Council,23UE,Green Transport Policy,PJ130,Electric Car Charge,4030,SMART CAR,12/06/2014,385330,287.35,NET,Daimler Fleet Management,07828N
Gloucester City Council,23UE,Guildhall Cinema,LA202,Fees For Services Received,5350,Monthly Film Charge,12/06/2014,383952,214.24,NET,Nft Logistics Ltd,13505N
Gloucester City Council,23UE,REDACTED,REDACTED,REDACTED,REDACTED,REDACTED,12/06/2014,REDACTED,8.85,NET,REDACTED,REDACTED
Gloucester City Council,23UE,REDACTED,REDACTED,REDACTED,REDACTED,REDACTED,12/06/2014,REDACTED,90,NET,REDACTED,REDACTED
Gloucester City Council,23UE,REDACTED,REDACTED,REDACTED,REDACTED,REDACTED,12/06/2014,REDACTED,100,NET,REDACTED,REDACTED
Gloucester City Council,23UE,REDACTED,REDACTED,REDACTED,REDACTED,REDACTED,12/06/2014,REDACTED,75,NET,REDACTED,REDACTED
Gloucester City Council,23UE,REDACTED,REDACTED,REDACTED,REDACTED,REDACTED,12/06/2014,REDACTED,100,NET,REDACTED,REDACTED
Gloucester City Council,23UE,REDACTED,REDACTED,REDACTED,REDACTED,REDACTED,12/06/2014,REDACTED,39.08,NET,REDACTED,REDACTED
Gloucester City Council,23UE,REDACTED,REDACTED,REDACTED,REDACTED,REDACTED,12/06/2014,REDACTED,5.4,NET,REDACTED,REDACTED
Gloucester City Council,23UE,REDACTED,REDACTED,REDACTED,REDACTED,REDACTED,12/06/2014,REDACTED,11.81,NET,REDACTED,REDACTED
Gloucester City Council,23UE,REDACTED,REDACTED,REDACTED,REDACTED,REDACTED,12/06/2014,REDACTED,100,NET,REDACTED,REDACTED
Gloucester City Council,23UE,REDACTED,REDACTED,REDACTED,REDACTED,REDACTED,12/06/2014,REDACTED,100,NET,REDACTED,REDACTED
Gloucester City Council,23UE,REDACTED,REDACTED,REDACTED,REDACTED,REDACTED,12/06/2014,REDACTED,280.58,NET,REDACTED,REDACTED
Gloucester City Council,23UE,REDACTED,REDACTED,REDACTED,REDACTED,REDACTED,12/06/2014,REDACTED,85,NET,REDACTED,REDACTED
Gloucester City Council,23UE,REDACTED,REDACTED,REDACTED,REDACTED,REDACTED,12/06/2014,REDACTED,14.83,NET,REDACTED,REDACTED
Gloucester City Council,23UE,REDACTED,REDACTED,REDACTED,REDACTED,REDACTED,12/06/2014,REDACTED,318.08,NET,REDACTED,REDACTED
Gloucester City Council,23UE,REDACTED,REDACTED,REDACTED,REDACTED,REDACTED,12/06/2014,REDACTED,100,NET,REDACTED,REDACTED
Gloucester City Council,23UE,REDACTED,REDACTED,REDACTED,REDACTED,REDACTED,12/06/2014,REDACTED,150.28,NET,REDACTED,REDACTED
Gloucester City Council,23UE,REDACTED,REDACTED,REDACTED,REDACTED,REDACTED,12/06/2014,REDACTED,391.5,NET,REDACTED,REDACTED
Gloucester City Council,23UE,REDACTED,REDACTED,REDACTED,REDACTED,REDACTED,12/06/2014,REDACTED,100,NET,REDACTED,REDACTED
Gloucester City Council,23UE,REDACTED,REDACTED,REDACTED,REDACTED,REDACTED,12/06/2014,REDACTED,42,NET,REDACTED,REDACTED
Gloucester City Council,23UE,REDACTED,REDACTED,REDACTED,REDACTED,REDACTED,12/06/2014,REDACTED,169.1,NET,REDACTED,REDACTED
Gloucester City Council,23UE,Hmo Licences,HE520,Licences,9301,HMO LICENCE,12/06/2014,385536,450,NET,REDACTED,REDACTED
Gloucester City Council,23UE,Homelessness,CH120,Fees For Services Received,5350,REDACTED,12/06/2014,385331,20.5,NET,Gloucester City Health Centre,02093U
Gloucester City Council,23UE,Homelessness,CH120,Rent In Advance,5516,REDACTED,12/06/2014,385535,484.6,NET,REDACTED,REDACTED
Gloucester City Council,23UE,Homelessness Prevention,CH122,Fees For Services Received,5350,REDACTED,12/06/2014,385535,550,NET,REDACTED,REDACTED
Gloucester City Council,23UE,Investment Property,RB500,Advertising And Publicity,5702,STAGE 3,12/06/2014,385342,400,NET,Litchfield Morris,14305P
Gloucester City Council,23UE,Investment Property,RB500,Lift Maintenance,3051,GL1 Jun- Sept 2014,12/06/2014,384785,281.22,NET,Pickerings Europe Ltd*,58816U
Gloucester City Council,23UE,Kings Quarter,RY146,Contract Payments,0020,Clip for Fence Panels,12/06/2014,385461,179.69,CAP,Ermin Plant Hire & Services Ltd,14150V
Gloucester City Council,23UE,Kings Quarter,RY146,Contract Payments,0020,Hoarding Panel,12/06/2014,385462,7417,CAP,Ermin Plant Hire & Services Ltd,14150V
Gloucester City Council,23UE,Licences,HE510,Reimbursements,5591,DOG BOARDING APPLICATION,12/06/2014,385534,123,NET,REDACTED,REDACTED
Gloucester City Council,23UE,Mortgage Rescue,CH128,Fees For Services Received,5350,REDACTED,12/06/2014,385456,306,NET,One To One Recruitment,04752H
Gloucester City Council,23UE,Off Street Car Parks,PP110,Rents,3200,Car Park Office Rent & Service Charge,12/06/2014,384923,125,NET,Workman Llp,11021M
Gloucester City Council,23UE,Off Street Car Parks,PP110,Rents,3200,"Eastgate Car Park, Rent & Service Charge",12/06/2014,384926,63528.19,NET,Workman Llp,11021M
Gloucester City Council,23UE,Off Street Car Parks,PP110,Service Charges,3020,Car Park Office Rent & Service Charge,12/06/2014,384923,267.75,NET,Workman Llp,11021M
Gloucester City Council,23UE,Off Street Car Parks,PP110,Service Charges,3020,"Eastgate Car Park, Rent & Service Charge",12/06/2014,384926,2083.5,NET,Workman Llp,11021M
Gloucester City Council,23UE,Off Street Car Parks,PP110,Service Charges,3020,Pedestrian Access Service Charge,12/06/2014,384924,982.25,NET,Workman Llp,11021M
Gloucester City Council,23UE,Parks Contract Management,LP100,Maint Of Grounds - General,3030,New Spring for exclusive Springy,12/06/2014,383980,97.2,NET,Enterprise (Aol) Ltd,06695G
Gloucester City Council,23UE,Play Area Refurbishment,LY071,Contract Payments,0020,Chester Road,12/06/2014,383969,475,CAP,Greenfields Garden Services Ltd,48130G
Gloucester City Council,23UE,Play Area Refurbishment,LY071,Contract Payments,0020,Chester Road Play Area,12/06/2014,383968,325,CAP,Greenfields Garden Services Ltd,48130G
Gloucester City Council,23UE,Postal Services,RS120,Postages,5400,ACCT 0074842000 W/E 17/05/14,12/06/2014,385122,293.13,NET,Royal Mail S.Wales & South West,35830S
Gloucester City Council,23UE,Postal Services,RS120,Postages,5400,ACCT 0252446000 W/E 29/05/14,12/06/2014,385412,1377.89,NET,Royal Mail S.Wales & South West,35830S
Gloucester City Council,23UE,Retail Market - Landlord,HM300,Trade Refuse Collection,3630,Waste,12/06/2014,385068,150,NET,B & S Pointon Ltd,06253G
Gloucester City Council,23UE,Stationery Services,RS150,Stationery,5302,STATIONERY,12/06/2014,385435,45.04,NET,Lyreco Uk Ltd,11746G
Gloucester City Council,23UE,Tree Planting Grant Funded,LY150,Contract Payments,0020,"Netheridge Wood, Hempsted",12/06/2014,385403,220,CAP,Greenfields Garden Services Ltd,48130G
Gloucester City Council,23UE,Wake Room,HC501,Catering Provisions -Food,5110,Food w/e 01/06/2014,12/06/2014,385070,156.08,NET,Janes Pantry,24500W
Gloucester City Council,23UE,Blackfriars,LA609,Fees For Services Received,5350,REDACTED,13/06/2014,385579,150,NET,REDACTED,REDACTED
Gloucester City Council,23UE,Business Transformation & Tech,RT700,Computer Software Maintenance,5427,lease charge Contex SD44SE scanner,13/06/2014,385244,321,NET,Stanford Marsh Ltd*,51139M
Gloucester City Council,23UE,Cemeteries,HC300,Fertilisers,3029,PLANTS,13/06/2014,385345,39.94,NET,Norton Plantaria,53679C
Gloucester City Council,23UE,Civica Admin Charges,RT105,Postages,5400,Post,13/06/2014,384223,1569.83,NET,Royal Mail S.Wales & South West,35830S
Gloucester City Council,23UE,Civica Admin Charges,RT105,Postages,5400,Post,13/06/2014,384229,91.36,NET,Royal Mail S.Wales & South West,35830S
Gloucester City Council,23UE,Civica Admin Charges,RT105,Postages,5400,Post,13/06/2014,384982,1480.16,NET,Royal Mail S.Wales & South West,35830S
Gloucester City Council,23UE,Community Safety Projects,FP500,Basic Pay -Admin /Prof Staff,2601,REDACTED,13/06/2014,385125,600.84,NET,Travail Employment Ltd,49371W
Gloucester City Council,23UE,Community Safety Projects,FP500,Basic Pay -Admin /Prof Staff,2601,REDACTED,13/06/2014,385432,426.28,NET,Travail Employment Ltd,49371W
Gloucester City Council,23UE,Crematorium,HC200,Computer Software <5000,5425,1 Days Service,13/06/2014,384766,1075,NET,Capita Business Services Limited*,54095C
Gloucester City Council,23UE,Crematorium,HC200,Oper Leases - Equipment,5029,supply lamps,13/06/2014,385584,20.24,NET,Mitchells (Gloucester) Ltd,30160U
Gloucester City Council,23UE,Depot,PY109,Contract Payments,0020,Eastern Ave Depot works,13/06/2014,385582,2472.04,CAP,Anderson Civil Engineering Uk Ltd,09083D
Gloucester City Council,23UE,Docks Complex - Services,RB100,Cleaning Materials,3600,Cleaning Materials,13/06/2014,385100,32.35,NET,Cleanmy Ltd,06971S
Gloucester City Council,23UE,Docks Complex - Services,RB100,Maint Agreements - Buildings,3010,12 months maintenance from 01/05/2014,13/06/2014,384115,435,NET,Avon Alarms Ltd,02280T
Gloucester City Council,23UE,Docks Complex - Services,RB100,Recycling,3631,confidential waste shredding,13/06/2014,385236,12.6,NET,Printwaste Recycling,57114W
Gloucester City Council,23UE,Docks Complex - Services,RB100,Recycling,3631,RECYCLING,13/06/2014,385320,203.5,NET,Printwaste Recycling,57114W
Gloucester City Council,23UE,Docks Complex - Services,RB100,Recycling,3631,RECYCLING,13/06/2014,385322,36.8,NET,Printwaste Recycling,57114W
Gloucester City Council,23UE,Docks Complex - Services,RB100,Service Charges,3020,Air Freshner 12 months service,13/06/2014,384506,1100,NET,Pyramid Hygiene Ltd,01897B
Gloucester City Council,23UE,Docks Complex - Services,RB100,Service Charges,3020,TRADE WASTE JUL-SEP 2014,13/06/2014,385154,14402.34,NET,Enterprise (Aol) Ltd,06695G
Gloucester City Council,23UE,Emergency Planning,RO100,Fees For Services Received,5350,Annual Contribution LRF Secretariat,13/06/2014,384148,2000,NET,Gloucestershire County Council,18650D
Gloucester City Council,23UE,Environmental Planning,LM340,Exhibits And Collections,5038,INFORMATION BOARDS,13/06/2014,385327,513.33,NET,Marketing Gloucester Ltd,08925E
Gloucester City Council,23UE,REDACTED,REDACTED,REDACTED,REDACTED,REDACTED,13/06/2014,REDACTED,26.61,NET,REDACTED,REDACTED
Gloucester City Council,23UE,REDACTED,REDACTED,REDACTED,REDACTED,REDACTED,13/06/2014,REDACTED,10.21,NET,REDACTED,REDACTED
Gloucester City Council,23UE,REDACTED,REDACTED,REDACTED,REDACTED,REDACTED,13/06/2014,REDACTED,38.06,NET,REDACTED,REDACTED
Gloucester City Council,23UE,Hackney Carriages,HL100,Fees For Services Received,5350,DBS Checks,13/06/2014,385077,748,NET,Disclosure And Barring Service,00119W
Gloucester City Council,23UE,Health & Safety,EH110,Other Minor Supplies Services,5590,GUILDHALL 09/14-09/15,13/06/2014,385364,90,NET,Evac+Chair International Ltd,10907S
Gloucester City Council,23UE,Hempsted Market/Car Boot,HM234,Hire Of Equipment,5020,HIRE JUNE 2014,13/06/2014,385321,254.19,NET,Portable Offices (Hire ) Ltd*,06286R
Gloucester City Council,23UE,Homelessness Prevention,CH122,Fees For Services Received,5350,REDACTED,13/06/2014,385585,254.5,NET,Touchstone Residential,13817P
Gloucester City Council,23UE,Investment Property,RB500,Fire Alarm Maintenance,3053,guildhall,13/06/2014,384208,177,NET,Adt Fire & Security Plc,54086D
Gloucester City Council,23UE,Retail Market - Landlord,HM300,Cleaning Materials,3600,Plasters,13/06/2014,383965,10.98,NET,Core Hygiene Ltd,03885P
Gloucester City Council,23UE,Retail Market - Landlord,HM300,Cleaning Materials,3600,various hygiene items,13/06/2014,383290,327.18,NET,Core Hygiene Ltd,03885P
Gloucester City Council,23UE,Retail Market - Landlord,HM300,Trade Refuse Collection,3630,"Eastgate Mkt skips: Oct, Nov, Dec 2013",13/06/2014,382117,1980,NET,Barnwood Shopfitting Ltd,02590Y
Gloucester City Council,23UE,Stationery Services,RS150,Stationery,5302,STATIONERY,13/06/2014,385436,90.51,NET,Lyreco Uk Ltd,11746G
Gloucester City Council,23UE,18 Commercial Road,RB540,General Repair/Maint Buildings,3000,vegetation clearance 18 Commercial Rd,16/06/2014,385441,488.93,NET,Rf Gardiner Limited,12299B
Gloucester City Council,23UE,1 Albion Cottages,RB545,General Repair/Maint Buildings,3000,1 Albion Cottages works,16/06/2014,385443,69.12,NET,Rf Gardiner Limited,12299B
Gloucester City Council,23UE,1 Albion Cottages,RB545,General Repair/Maint Buildings,3000,1 Albion Cottages works,16/06/2014,385446,120.79,NET,Rf Gardiner Limited,12299B
Gloucester City Council,23UE,Barbican Car Park,RB543,General Repair/Maint Buildings,3000,Barbican car park works,16/06/2014,385093,668,NET,Rf Gardiner Limited,12299B
Gloucester City Council,23UE,Barbican Car Park,RB543,General Repair/Maint Buildings,3000,Barbican car park works,16/06/2014,385444,190.08,NET,Rf Gardiner Limited,12299B
Gloucester City Council,23UE,Blackfriars Catering,LA220,Catering Provisions -Liquor,5111,DRINK,16/06/2014,385601,75.99,NET,Cellar Supplies Cheltenham Ltd,01563L
Gloucester City Council,23UE,Blackfriars Catering,LA220,Catering Provisions -Liquor,5111,DRINK,16/06/2014,385602,403.99,NET,Cellar Supplies Cheltenham Ltd,01563L
Gloucester City Council,23UE,Bus Station,RB400,General Repair/Maint Buildings,3000,Bus Station works,16/06/2014,385091,84.12,NET,Rf Gardiner Limited,12299B
Gloucester City Council,23UE,Bus Station,RB400,General Repair/Maint Buildings,3000,Bus Station works,16/06/2014,385134,62.6,NET,Rf Gardiner Limited,12299B
Gloucester City Council,23UE,Bus Station,RB400,General Repair/Maint Buildings,3000,Bus Station works,16/06/2014,385143,226.08,NET,Rf Gardiner Limited,12299B
Gloucester City Council,23UE,Bus Station,RB400,General Repair/Maint Buildings,3000,Bus Station works,16/06/2014,385447,112.06,NET,Rf Gardiner Limited,12299B
Gloucester City Council,23UE,Bus Station,RB400,General Repair/Maint Buildings,3000,Bus Station works,16/06/2014,385448,98.24,NET,Rf Gardiner Limited,12299B
Gloucester City Council,23UE,City Museum And Art Gallery,LM200,Publications For Sale,5064,GOODS FOR RESALE,16/06/2014,385639,44.9,NET,Ashwood & Company,51123D
Gloucester City Council,23UE,City Museum And Art Gallery,LM200,Publications For Sale,5064,PENCILS,16/06/2014,385637,190,NET,Emblem Print Products Limited,54871Z
Gloucester City Council,23UE,City Museum Catering,LM202,Catering Provisions -Food,5110,FOOD,16/06/2014,385604,7.44,NET,Total Produce Gloucester,12645E
Gloucester City Council,23UE,City Museum Catering,LM202,Catering Provisions -Food,5110,FOOD,16/06/2014,385714,6.2,NET,Total Produce Gloucester,12645E
Gloucester City Council,23UE,City Museum Catering,LM202,Catering Provisions -Food,5110,FOOD,16/06/2014,385715,4.96,NET,Total Produce Gloucester,12645E
Gloucester City Council,23UE,Civil Parking Enforcement,PT741,Basic Pay - Temporary Staff,2751,REDACTED,16/06/2014,385408,1920,NET,Unity Recruitment,14857S
Gloucester City Council,23UE,Civil Parking Enforcement,PT741,Contracted Services,6970,May 2014,16/06/2014,385315,20246.79,NET,Apcoa Parking (Uk) Ltd,09954M
Gloucester City Council,23UE,Client Revs & Bens Contract,RT240,Fees For Services Received,5350,BUS RATES RELIEF ADMIN,16/06/2014,385339,2120,NET,Civica Uk Ltd,10841X
Gloucester City Council,23UE,Client Revs & Bens Contract,RT240,Fees For Services Received,5350,BUS RETAIL RELIEF,16/06/2014,385774,800,NET,Civica Uk Ltd,10841X
Gloucester City Council,23UE,Client Revs & Bens Contract,RT240,Fees For Services Received,5350,credited on c/bf125220,16/06/2014,385776,4622.75,NET,Civica Uk Ltd,10841X
Gloucester City Council,23UE,Client Revs & Bens Contract,RT240,Fees For Services Received,5350,LEGAL CHANGES,16/06/2014,385338,1150,NET,Civica Uk Ltd,10841X
Gloucester City Council,23UE,Client Revs & Bens Contract,RT240,Fees For Services Received,5350,LEGAL CHANGES,16/06/2014,385767,850,NET,Civica Uk Ltd,10841X
Gloucester City Council,23UE,Client Revs & Bens Contract,RT240,Fees For Services Received,5350,NAFN 2014,16/06/2014,385662,124.35,NET,Brighton & Hove City Council,00078J
Gloucester City Council,23UE,Client Revs & Bens Contract,RT240,Fees For Services Received,5350,New Applications for DHP's,16/06/2014,384487,4622.75,NET,Civica Uk Ltd,05200P
Gloucester City Council,23UE,Client Revs & Bens Contract,RT240,Fees For Services Received,5350,VAT ONLY INVOICE,16/06/2014,385356,0,NET,Phoenix Commercial Collections Ltd,13435J
Gloucester City Council,23UE,Client Revs & Bens Contract,RT240,Fees For Services Received,5350,VAT ONLY INVOICE,16/06/2014,385357,0,NET,Phoenix Commercial Collections Ltd,13435J
Gloucester City Council,23UE,Council Streetcare Team,HI101,Maint Of Grounds - General,3030,"Queens Walk, Repairs",16/06/2014,385147,396.78,NET,Rf Gardiner Limited,12299B
Gloucester City Council,23UE,Countryside Unit,LP201,Clothing,5200,HARDWARE,16/06/2014,385606,18.32,NET,Countrywide Farmers*,55687J
Gloucester City Council,23UE,Countryside Unit,LP201,Maint Of Grounds - General,3030,HARDWARE,16/06/2014,385606,27.97,NET,Countrywide Farmers*,55687J
Gloucester City Council,23UE,Countryside Unit,LP201,Safety Equipment,5013,HARDWARE,16/06/2014,385606,98.81,NET,Countrywide Farmers*,55687J
Gloucester City Council,23UE,Crematorium,HC200,Book Of Memory,5055,VISIT 23/05/14,16/06/2014,385611,112.16,NET,Hilton Cabinet Co Ltd,21910A
Gloucester City Council,23UE,Crematorium,HC200,General Repair/Maint Buildings,3000,chapel,16/06/2014,385720,6206,NET,Rf Gardiner Limited,12299B
Gloucester City Council,23UE,Crematorium,HC200,"Seeds, Trees, Plants, Shrubs",3028,PLANTS,16/06/2014,385718,1364,NET,REDACTED,REDACTED
Gloucester City Council,23UE,Crematorium,HC200,"Seeds, Trees, Plants, Shrubs",3028,PLANTS,16/06/2014,385719,39.2,NET,REDACTED,REDACTED
Gloucester City Council,23UE,Development Management,PT200,Microfilming / Cd-Rom Storage,5330,Archival Storage,16/06/2014,385363,61.52,NET,Transmedia Technology Ltd,08635T
Gloucester City Council,23UE,Docks Complex - Castlemeads Cp,RB210,Contracted Services,6970,May 2014,16/06/2014,385315,3777,NET,Apcoa Parking (Uk) Ltd,09954M
Gloucester City Council,23UE,Docks Complex - Catering Servs,RB110,Catering Provisions -Food,5110,COFFEE,16/06/2014,385644,141.6,NET,Ethical Addictions Ltd,11654N
Gloucester City Council,23UE,Docks Complex - Catering Servs,RB110,Catering Provisions -Food,5110,Food,16/06/2014,383607,80.69,NET,Janes Pantry,24500W
Gloucester City Council,23UE,Docks Complex - Catering Servs,RB110,Catering Provisions -Food,5110,FOOD,16/06/2014,385586,46.24,NET,Total Produce Gloucester,12645E
Gloucester City Council,23UE,Docks Complex - Catering Servs,RB110,Catering Provisions -Food,5110,FOOD,16/06/2014,385587,10.89,NET,Total Produce Gloucester,12645E
Gloucester City Council,23UE,Docks Complex - Catering Servs,RB110,Catering Provisions -Food,5110,FOOD,16/06/2014,385588,24.22,NET,Total Produce Gloucester,12645E
Gloucester City Council,23UE,Docks Complex - Catering Servs,RB110,Catering Provisions -Food,5110,FOOD,16/06/2014,385589,58.39,NET,Total Produce Gloucester,12645E
Gloucester City Council,23UE,Docks Complex - Catering Servs,RB110,Catering Provisions -Food,5110,FOOD,16/06/2014,385625,17.92,NET,Total Produce Gloucester,12645E
Gloucester City Council,23UE,Docks Complex - Catering Servs,RB110,Catering Provisions -Food,5110,FOOD,16/06/2014,385627,29.85,NET,Total Produce Gloucester,12645E
Gloucester City Council,23UE,Docks Complex - Catering Servs,RB110,Catering Provisions -Food,5110,FOOD,16/06/2014,385628,44.47,NET,Total Produce Gloucester,12645E
Gloucester City Council,23UE,Docks Complex - Catering Servs,RB110,Catering Provisions -Food,5110,FOOD,16/06/2014,385665,42.46,NET,Total Produce Gloucester,12645E
Gloucester City Council,23UE,Docks Complex - Catering Servs,RB110,Catering Provisions -Food,5110,FOOD,16/06/2014,385666,8.64,NET,Total Produce Gloucester,12645E
Gloucester City Council,23UE,Docks Complex - Catering Servs,RB110,Catering Provisions -Food,5110,FOOD,16/06/2014,385667,32.93,NET,Total Produce Gloucester,12645E
Gloucester City Council,23UE,Docks Complex - Catering Servs,RB110,Catering Provisions -Food,5110,FOOD,16/06/2014,385671,24.55,NET,Total Produce Gloucester,12645E
Gloucester City Council,23UE,Docks Complex - Catering Servs,RB110,Catering Provisions -Food,5110,FOOD,16/06/2014,385672,36.92,NET,Total Produce Gloucester,12645E
Gloucester City Council,23UE,Docks Complex - Catering Servs,RB110,Catering Provisions -Food,5110,FOOD,16/06/2014,385673,46.97,NET,Total Produce Gloucester,12645E
Gloucester City Council,23UE,Docks Complex - Catering Servs,RB110,Catering Provisions -Food,5110,FOOD,16/06/2014,385674,8.64,NET,Total Produce Gloucester,12645E
Gloucester City Council,23UE,Docks Complex - Catering Servs,RB110,Catering Provisions -Food,5110,FOOD,16/06/2014,385675,8.61,NET,Total Produce Gloucester,12645E
Gloucester City Council,23UE,Docks Complex - Catering Servs,RB110,Catering Provisions -Food,5110,FOOD,16/06/2014,385676,17.34,NET,Total Produce Gloucester,12645E
Gloucester City Council,23UE,Docks Complex - Catering Servs,RB110,Catering Provisions -Food,5110,FOOD,16/06/2014,385677,34.91,NET,Total Produce Gloucester,12645E
Gloucester City Council,23UE,Docks Complex - Catering Servs,RB110,Catering Provisions -Food,5110,FOOD,16/06/2014,385681,47.17,NET,Total Produce Gloucester,12645E
Gloucester City Council,23UE,Docks Complex - Catering Servs,RB110,Catering Provisions -Food,5110,FOOD,16/06/2014,385702,28.74,NET,Total Produce Gloucester,12645E
Gloucester City Council,23UE,Docks Complex - Catering Servs,RB110,Catering Provisions -Food,5110,FOOD,16/06/2014,385703,2.6,NET,Total Produce Gloucester,12645E
Gloucester City Council,23UE,Docks Complex - Catering Servs,RB110,Catering Provisions -Food,5110,FOOD,16/06/2014,385704,28.74,NET,Total Produce Gloucester,12645E
Gloucester City Council,23UE,Docks Complex - Services,RB100,General Repair/Maint Buildings,3000,Herbert warehouse works,16/06/2014,385081,64,NET,Rf Gardiner Limited,12299B
Gloucester City Council,23UE,Docks Complex - Services,RB100,General Repair/Maint Buildings,3000,Herbert warehouse works,16/06/2014,385353,51.84,NET,Rf Gardiner Limited,12299B
Gloucester City Council,23UE,Docks Complex - Services,RB100,General Repair/Maint Buildings,3000,Herbert warehouse works,16/06/2014,385445,98.89,NET,Rf Gardiner Limited,12299B
Gloucester City Council,23UE,Electrical Investigatory Works,RY142,Capital Fire Alarms,0025,log book for Ranger Centre,16/06/2014,385082,40.28,CAP,Rf Gardiner Limited,12299B
Gloucester City Council,23UE,Electrical Investigatory Works,RY142,Capital Lifts,0024,Lift Inspection Herbert May 2014,16/06/2014,385417,699.6,CAP,Pickerings Europe Ltd*,58816U
Gloucester City Council,23UE,Electrical Investigatory Works,RY142,Contract Payments,0020,Asbestos Removal,16/06/2014,383890,3580,CAP,Gloucester Asbestos Ltd,00496K
Gloucester City Council,23UE,Environmental Planning,LM340,Repair/Maint Of Monuments,3004,Kings Walk,16/06/2014,385146,263.04,NET,Rf Gardiner Limited,12299B
Gloucester City Council,23UE,Financial Services,RT200,Employee Related Insurances,2960,2014/15 RENEWAL,16/06/2014,385709,235015.13,NET,Zurich Insurance,49800U
Gloucester City Council,23UE,Financial Services,RT200,Employee Related Insurances,2960,RENEWAL 2014/15,16/06/2014,385688,8153.62,NET,Zurich Insurance,49800U
Gloucester City Council,23UE,Financial Services,RT200,Employee Related Insurances,2960,RENEWAL 2014/15,16/06/2014,385710,13534.05,NET,Zurich Insurance,49800U
Gloucester City Council,23UE,Financial Services,RT200,Employee Related Insurances,2960,RENEWAL 2014/15,16/06/2014,385711,1380.2,NET,Zurich Insurance,49800U
Gloucester City Council,23UE,Financial Services,RT200,Employee Related Insurances,2960,RENEWAL 2014/15,16/06/2014,385712,18412.56,NET,Zurich Insurance,49800U
Gloucester City Council,23UE,Financial Services,RT200,Fees For Services Received,5350,CREDITED ON 385741,16/06/2014,385734,19,NET,Electronic Temperature Instruments Ltd,04785K
Gloucester City Council,23UE,Financial Services,RT200,Fees For Services Received,5350,INCORRECT SUPPLIER,16/06/2014,385616,2045.25,NET,Civica Uk Ltd,05200P
Gloucester City Council,23UE,Financial Services,RT200,Vocational Training,2970,CIPFA CONFERENCE,16/06/2014,385692,400,NET,Redactive Events Ltd,11023X
Gloucester City Council,23UE,Forest Of Dean Cpe,PT744,Contracted Services,6970,May 2014,16/06/2014,385315,3245.72,NET,Apcoa Parking (Uk) Ltd,09954M
Gloucester City Council,23UE,General Works Fund,RY203,Capital General Repairs & Main,0013,St Oswalds Priory works,16/06/2014,385083,64.88,CAP,Rf Gardiner Limited,12299B
Gloucester City Council,23UE,General Works Fund,RY203,Capital General Repairs & Main,0013,Longsmith St Car Park works,16/06/2014,385442,1509.65,CAP,Rf Gardiner Limited,12299B
Gloucester City Council,23UE,General Works Fund,RY203,Capital Lighting Schemes,0015,Guildhall new consumer unit,16/06/2014,385129,585.86,CAP,Rf Gardiner Limited,12299B
Gloucester City Council,23UE,General Works Fund,RY203,Contract Payments,0020,TIC stair nosings,16/06/2014,385778,246.2,CAP,Rf Gardiner Limited,12299B
Gloucester City Council,23UE,Gloucester Guildhall,LA100,Security Services Fees,5351,SECURITY MAY 2014,16/06/2014,385624,383,NET,Nsgl Ltd,12539E
Gloucester City Council,23UE,Green Transport Policy,PJ130,Electric Car Charge,4030,SMART CAR SERVICE,16/06/2014,385732,122.87,NET,Smart Of Cheltenham And Gloucester,14302W
Gloucester City Council,23UE,Guildhall Bar And Caf�,LA210,Catering Provisions -Food,5110,food,16/06/2014,385713,4.96,NET,Total Produce Gloucester,12645E
Gloucester City Council,23UE,Guildhall Bar And Caf�,LA210,Catering Provisions -Food,5110,FOOD,16/06/2014,385596,4.96,NET,Total Produce Gloucester,12645E
Gloucester City Council,23UE,Guildhall Bar And Caf�,LA210,Catering Provisions -Food,5110,FOOD,16/06/2014,385597,4.96,NET,Total Produce Gloucester,12645E
Gloucester City Council,23UE,Guildhall Bar And Caf�,LA210,Catering Provisions -Food,5110,FOOD,16/06/2014,385598,4.96,NET,Total Produce Gloucester,12645E
Gloucester City Council,23UE,Guildhall Bar And Caf�,LA210,Catering Provisions -Food,5110,FOOD,16/06/2014,385599,4.96,NET,Total Produce Gloucester,12645E
Gloucester City Council,23UE,Guildhall Bar And Caf�,LA210,Catering Provisions -Food,5110,FOOD,16/06/2014,385600,4.96,NET,Total Produce Gloucester,12645E
Gloucester City Council,23UE,Guildhall Bar And Caf�,LA210,Catering Provisions -Food,5110,FOOD,16/06/2014,385668,27.65,NET,Janes Pantry,24500W
Gloucester City Council,23UE,Guildhall Bar And Caf�,LA210,Catering Provisions -Food,5110,FOOD,16/06/2014,385733,165.96,NET,Woodward Foodservice,10714F
Gloucester City Council,23UE,Guildhall Bar And Caf�,LA210,Catering Provisions -Liquor,5111,DRINK,16/06/2014,385603,728.4,NET,Cellar Supplies Cheltenham Ltd,01563L
Gloucester City Council,23UE,REDACTED,REDACTED,REDACTED,REDACTED,REDACTED,16/06/2014,REDACTED,88.81,NET,REDACTED,REDACTED
Gloucester City Council,23UE,REDACTED,REDACTED,REDACTED,REDACTED,REDACTED,16/06/2014,REDACTED,250.1,NET,REDACTED,REDACTED
Gloucester City Council,23UE,REDACTED,REDACTED,REDACTED,REDACTED,REDACTED,16/06/2014,REDACTED,134.31,NET,REDACTED,REDACTED
Gloucester City Council,23UE,REDACTED,REDACTED,REDACTED,REDACTED,REDACTED,16/06/2014,REDACTED,100,NET,REDACTED,REDACTED
Gloucester City Council,23UE,REDACTED,REDACTED,REDACTED,REDACTED,REDACTED,16/06/2014,REDACTED,100,NET,REDACTED,REDACTED
Gloucester City Council,23UE,REDACTED,REDACTED,REDACTED,REDACTED,REDACTED,16/06/2014,REDACTED,100,NET,REDACTED,REDACTED
Gloucester City Council,23UE,REDACTED,REDACTED,REDACTED,REDACTED,REDACTED,16/06/2014,REDACTED,81.38,NET,REDACTED,REDACTED
Gloucester City Council,23UE,REDACTED,REDACTED,REDACTED,REDACTED,REDACTED,16/06/2014,REDACTED,80,NET,REDACTED,REDACTED
Gloucester City Council,23UE,REDACTED,REDACTED,REDACTED,REDACTED,REDACTED,16/06/2014,REDACTED,26.08,NET,REDACTED,REDACTED
Gloucester City Council,23UE,REDACTED,REDACTED,REDACTED,REDACTED,REDACTED,16/06/2014,REDACTED,75,NET,REDACTED,REDACTED
Gloucester City Council,23UE,REDACTED,REDACTED,REDACTED,REDACTED,REDACTED,16/06/2014,REDACTED,120,NET,REDACTED,REDACTED
Gloucester City Council,23UE,REDACTED,REDACTED,REDACTED,REDACTED,REDACTED,16/06/2014,REDACTED,200.01,NET,REDACTED,REDACTED
Gloucester City Council,23UE,REDACTED,REDACTED,REDACTED,REDACTED,REDACTED,16/06/2014,REDACTED,90,NET,REDACTED,REDACTED
Gloucester City Council,23UE,REDACTED,REDACTED,REDACTED,REDACTED,REDACTED,16/06/2014,REDACTED,75,NET,REDACTED,REDACTED
Gloucester City Council,23UE,REDACTED,REDACTED,REDACTED,REDACTED,REDACTED,16/06/2014,REDACTED,100,NET,REDACTED,REDACTED
Gloucester City Council,23UE,REDACTED,REDACTED,REDACTED,REDACTED,REDACTED,16/06/2014,REDACTED,80,NET,REDACTED,REDACTED
Gloucester City Council,23UE,Hkp Accomodation Review,RY163,Contract Payments,0020,Kimberley warehouse works,16/06/2014,385449,91.51,CAP,Rf Gardiner Limited,12299B
Gloucester City Council,23UE,Homelessness,CH120,Board And Lodging,5515,DISBURSED PROPERTIES PRIORY/CARIDAS ETC,16/06/2014,385634,1666.42,NET,Gloucester City Homes,05244T
Gloucester City Council,23UE,Homelessness,CH120,Board And Lodging,5515,DISBURSED PROPERTIES PRIORY/CARIDAS ETC,16/06/2014,385635,1946.06,NET,Gloucester City Homes,05244T
Gloucester City Council,23UE,Homelessness,CH120,Rent In Advance,5516,REDACTED,16/06/2014,385780,484.6,NET,REDACTED,REDACTED
Gloucester City Council,23UE,Homelessness,CH120,Rent In Advance,5516,REDACTED,16/06/2014,385777,484.6,NET,REDACTED,REDACTED
Gloucester City Council,23UE,Homelessness Prevention,CH122,Fees For Services Received,5350,REDACTED,16/06/2014,385780,500,NET,REDACTED,REDACTED
Gloucester City Council,23UE,Homelessness Prevention,CH122,Fees For Services Received,5350,REDACTED,16/06/2014,385727,20.5,NET,Dr P Lush & Partners,05680S
Gloucester City Council,23UE,Homelessness Prevention,CH122,Fees For Services Received,5350,REDACTED,16/06/2014,385777,500,NET,REDACTED,REDACTED
Gloucester City Council,23UE,Homelessness Prevention,CH122,Grants To Voluntary Orgs-Rents,7100,NIGHTSTOP,16/06/2014,385678,3500,NET,Gloucestershire Nightstop,56573S
Gloucester City Council,23UE,Investment Property,RB500,General Repair/Maint Buildings,3000,Bishop Hooper monument works,16/06/2014,385072,167.96,NET,Rf Gardiner Limited,12299B
Gloucester City Council,23UE,Investment Property,RB500,General Repair/Maint Buildings,3000,city museum sump pump,16/06/2014,385073,281,NET,Rf Gardiner Limited,12299B
Gloucester City Council,23UE,Investment Property,RB500,General Repair/Maint Buildings,3000,city museum works,16/06/2014,385074,64,NET,Rf Gardiner Limited,12299B
Gloucester City Council,23UE,Investment Property,RB500,General Repair/Maint Buildings,3000,Eastgate rooftop car park works,16/06/2014,385085,318.35,NET,Rf Gardiner Limited,12299B
Gloucester City Council,23UE,Investment Property,RB500,General Repair/Maint Buildings,3000,Eastgate market hall works,16/06/2014,385086,69.12,NET,Rf Gardiner Limited,12299B
Gloucester City Council,23UE,Investment Property,RB500,General Repair/Maint Buildings,3000,Guildhall toilet works,16/06/2014,385089,79.21,NET,Rf Gardiner Limited,12299B
Gloucester City Council,23UE,Investment Property,RB500,General Repair/Maint Buildings,3000,Coney Hill Parade works,16/06/2014,385090,86.4,NET,Rf Gardiner Limited,12299B
Gloucester City Council,23UE,Investment Property,RB500,General Repair/Maint Buildings,3000,Folk Museum fire door works,16/06/2014,385092,17.28,NET,Rf Gardiner Limited,12299B
Gloucester City Council,23UE,Investment Property,RB500,General Repair/Maint Buildings,3000,Eastgate market hall works,16/06/2014,385095,685.1,NET,Rf Gardiner Limited,12299B
Gloucester City Council,23UE,Investment Property,RB500,General Repair/Maint Buildings,3000,Folk Museum drain,16/06/2014,385096,34.56,NET,Rf Gardiner Limited,12299B
Gloucester City Council,23UE,Investment Property,RB500,General Repair/Maint Buildings,3000,Eastgate viewing chamber works,16/06/2014,385097,233.47,NET,Rf Gardiner Limited,12299B
Gloucester City Council,23UE,Investment Property,RB500,General Repair/Maint Buildings,3000,Guildhall cinema lights,16/06/2014,385130,76.97,NET,Rf Gardiner Limited,12299B
Gloucester City Council,23UE,Investment Property,RB500,General Repair/Maint Buildings,3000,Bishop Hooper monument works,16/06/2014,385132,63.76,NET,Rf Gardiner Limited,12299B
Gloucester City Council,23UE,Investment Property,RB500,General Repair/Maint Buildings,3000,City Museum works,16/06/2014,385133,64,NET,Rf Gardiner Limited,12299B
Gloucester City Council,23UE,Investment Property,RB500,General Repair/Maint Buildings,3000,Bishop Hooper monument works,16/06/2014,385135,61.44,NET,Rf Gardiner Limited,12299B
Gloucester City Council,23UE,Investment Property,RB500,General Repair/Maint Buildings,3000,Eastgate market hall works,16/06/2014,385137,71.67,NET,Rf Gardiner Limited,12299B
Gloucester City Council,23UE,Investment Property,RB500,General Repair/Maint Buildings,3000,Crematorium works,16/06/2014,385138,69.12,NET,Rf Gardiner Limited,12299B
Gloucester City Council,23UE,Investment Property,RB500,General Repair/Maint Buildings,3000,Eastgate market hall works,16/06/2014,385141,52.9,NET,Rf Gardiner Limited,12299B
Gloucester City Council,23UE,Investment Property,RB500,General Repair/Maint Buildings,3000,City Museum works,16/06/2014,385144,34.56,NET,Rf Gardiner Limited,12299B
Gloucester City Council,23UE,Investment Property,RB500,General Repair/Maint Buildings,3000,Shopmobility works,16/06/2014,385145,17.28,NET,Rf Gardiner Limited,12299B
Gloucester City Council,23UE,Investment Property,RB500,General Repair/Maint Buildings,3000,Bearland Lodge works,16/06/2014,385149,35.53,NET,Rf Gardiner Limited,12299B
Gloucester City Council,23UE,Investment Property,RB500,General Repair/Maint Buildings,3000,Spartans rugby club pothole repairs,16/06/2014,385151,382.22,NET,Rf Gardiner Limited,12299B
Gloucester City Council,23UE,Investment Property,RB500,General Repair/Maint Buildings,3000,TIC works,16/06/2014,385355,93.1,NET,Rf Gardiner Limited,12299B
Gloucester City Council,23UE,Investment Property,RB500,General Repair/Maint Buildings,3000,TIC works,16/06/2014,385369,46.77,NET,Rf Gardiner Limited,12299B
Gloucester City Council,23UE,Investment Property,RB500,General Repair/Maint Buildings,3000,Tredworth cemetery works,16/06/2014,385370,50.41,NET,Rf Gardiner Limited,12299B
Gloucester City Council,23UE,Investment Property,RB500,General Repair/Maint Buildings,3000,Bearland Lodge works,16/06/2014,385372,48.29,NET,Rf Gardiner Limited,12299B
Gloucester City Council,23UE,Investment Property,RB500,General Repair/Maint Buildings,3000,Barnwood Park chapel works,16/06/2014,385373,69.12,NET,Rf Gardiner Limited,12299B
Gloucester City Council,23UE,Investment Property,RB500,General Repair/Maint Buildings,3000,Shopmobility works,16/06/2014,385374,147.78,NET,Rf Gardiner Limited,12299B
Gloucester City Council,23UE,Investment Property,RB500,General Repair/Maint Buildings,3000,St James Coach House works,16/06/2014,385377,69.12,NET,Rf Gardiner Limited,12299B
Gloucester City Council,23UE,Investment Property,RB500,General Repair/Maint Buildings,3000,Crematorium works,16/06/2014,385439,73.07,NET,Rf Gardiner Limited,12299B
Gloucester City Council,23UE,Investment Property,RB500,General Repair/Maint Buildings,3000,Tredworth cemetery works,16/06/2014,385440,16.42,NET,Rf Gardiner Limited,12299B
Gloucester City Council,23UE,Investment Property,RB500,General Repair/Maint Buildings,3000,LONGSMITH ST CAR PARK WORKS,16/06/2014,385779,362.06,NET,Rf Gardiner Limited,12299B
Gloucester City Council,23UE,Investment Property,RB500,Lift Maintenance,3051,BLACKFRIARS,16/06/2014,385643,153.16,NET,Pickerings Europe Ltd*,58816U
Gloucester City Council,23UE,Investment Property,RB500,Lift Maintenance,3051,Lift Inspection Guildhall May 14,16/06/2014,385419,1117.6,NET,Pickerings Europe Ltd*,58816U
Gloucester City Council,23UE,Kings Sq Paving Emerg Works,RY161,Contract Payments,0020,Kings Square works,16/06/2014,385150,50.34,CAP,Rf Gardiner Limited,12299B
Gloucester City Council,23UE,Kings Sq Paving Emerg Works,RY161,Contract Payments,0020,Kings Square works,16/06/2014,385376,341,CAP,Rf Gardiner Limited,12299B
Gloucester City Council,23UE,Kings Sq Paving Emerg Works,RY161,Contract Payments,0020,Kings Square works,16/06/2014,385378,727.94,CAP,Rf Gardiner Limited,12299B
Gloucester City Council,23UE,Legal Services,RS200,Basic Pay -Admin /Prof Staff,2601,REDACTED,16/06/2014,384742,523.62,NET,Sellick Partnership Group Ltd,11057C
Gloucester City Council,23UE,Licences,HE510,Fees For Services Received,5350,MEMBERSHIP 2014/15,16/06/2014,385728,250,NET,Institute Of Licensing Ltd,11205Z
Gloucester City Council,23UE,Members Support,RC300,Fees For Services Received,5350,COURSE 27/05/14,16/06/2014,385729,186.9,NET,Graham Russell Independent Local Govt Adviser,12953P
Gloucester City Council,23UE,Nms Contract,HI102,Contracted Services,6970,CONTRACT JUNE 2014,16/06/2014,385349,508825.75,NET,Enterprise (Aol) Ltd,06695G
Gloucester City Council,23UE,Northwarehouse,RB150,General Repair/Maint Buildings,3000,North Warehouse works,16/06/2014,385352,72.88,NET,Rf Gardiner Limited,12299B
Gloucester City Council,23UE,Off Street Car Parks,PP110,Contracted Services,6970,May 2014,16/06/2014,385315,13241.1,NET,Apcoa Parking (Uk) Ltd,09954M
Gloucester City Council,23UE,Off Street Car Parks,PP110,General Repair/Maint Buildings,3000,Kings Walk car park works,16/06/2014,385088,42.97,NET,Rf Gardiner Limited,12299B
Gloucester City Council,23UE,Off Street Car Parks,PP110,General Repair/Maint Buildings,3000,LONGSMITH ST CAR PARK WORKS,16/06/2014,385131,203.67,NET,Rf Gardiner Limited,12299B
Gloucester City Council,23UE,Off Street Car Parks,PP110,General Repair/Maint Buildings,3000,LONGSMITH ST CAR PARK WORKS,16/06/2014,385136,37.31,NET,Rf Gardiner Limited,12299B
Gloucester City Council,23UE,Off Street Car Parks,PP110,General Repair/Maint Buildings,3000,Kings Walk car park works,16/06/2014,385140,51.84,NET,Rf Gardiner Limited,12299B
Gloucester City Council,23UE,Off Street Car Parks,PP110,General Repair/Maint Buildings,3000,Kings Walk car park works,16/06/2014,385142,77.75,NET,Rf Gardiner Limited,12299B
Gloucester City Council,23UE,Off Street Car Parks,PP110,General Repair/Maint Buildings,3000,Kings Walk car park works,16/06/2014,385148,525.25,NET,Rf Gardiner Limited,12299B
Gloucester City Council,23UE,Off Street Car Parks,PP110,General Repair/Maint Buildings,3000,Kings Walk car park works,16/06/2014,385351,91.46,NET,Rf Gardiner Limited,12299B
Gloucester City Council,23UE,Off Street Car Parks,PP110,General Repair/Maint Buildings,3000,LONGSMITH ST CAR PARK WORKS,16/06/2014,385371,620.82,NET,Rf Gardiner Limited,12299B
Gloucester City Council,23UE,Off Street Car Parks,PP110,General Repair/Maint Buildings,3000,Kings Walk car park works,16/06/2014,385437,190.46,NET,Rf Gardiner Limited,12299B
Gloucester City Council,23UE,Off Street Car Parks,PP110,General Repair/Maint Buildings,3000,Kings Walk car park works,16/06/2014,385438,150.22,NET,Rf Gardiner Limited,12299B
Gloucester City Council,23UE,Rehousing,CH111,Basic Pay - Temporary Staff,2751,REDACTED,16/06/2014,385424,713,NET,Building Recruitment Company Ltd,55385E
Gloucester City Council,23UE,Retail Market - Landlord,HM300,Radio Equipment,5416,LICENCE 04/14-04/15,16/06/2014,385705,367.1,NET,The Performing Rights Society Ltd,05077M
Gloucester City Council,23UE,Retail Market - Landlord,HM300,Service Charges,3020,Market Hall Service Charge,16/06/2014,384925,11905.5,NET,Workman Llp,11021M
Gloucester City Council,23UE,Robinswoodhill Trading Account,LP203,Maint Of Grounds - General,3030,SEAT,16/06/2014,385686,468.5,NET,Streetmaster Products,00534D
Gloucester City Council,23UE,Safer Stronger Communities,FP841,Other Minor Supplies Services,5590,DOMAIN NAME,16/06/2014,385694,80,NET,Icon.Net,52505Z
Gloucester City Council,23UE,Safer Stronger Communities,FP841,Other Minor Supplies Services,5590,ROSETTES,16/06/2014,385730,82.4,NET,Cottage Rosettes,12753G
Gloucester City Council,23UE,Stationery Services,RS150,Printing,5300,STATIONERY,16/06/2014,385654,14.54,NET,Lyreco Uk Ltd,11746G
Gloucester City Council,23UE,Stationery Services,RS150,Printing,5300,STATIONERY,16/06/2014,385656,29.69,NET,Lyreco Uk Ltd,11746G
Gloucester City Council,23UE,Stationery Services,RS150,Stationery,5302,STATIONERY,16/06/2014,385651,61.78,NET,Lyreco Uk Ltd,11746G
Gloucester City Council,23UE,Stationery Services,RS150,Stationery,5302,STATIONERY,16/06/2014,385652,41.99,NET,Lyreco Uk Ltd,11746G
Gloucester City Council,23UE,Stationery Services,RS150,Stationery,5302,STATIONERY,16/06/2014,385653,11.48,NET,Lyreco Uk Ltd,11746G
Gloucester City Council,23UE,Stationery Services,RS150,Stationery,5302,STATIONERY,16/06/2014,385655,11.85,NET,Lyreco Uk Ltd,11746G
Gloucester City Council,23UE,Tea Room,HC500,Catering Provisions -Liquor,5111,DRINK,16/06/2014,385657,157.86,NET,Cellar Supplies Cheltenham Ltd,01563L
Gloucester City Council,23UE,The Fleece,RB530,General Repair/Maint Buildings,3000,Fleece Hotel works,16/06/2014,385084,194.73,NET,Rf Gardiner Limited,12299B
Gloucester City Council,23UE,The Fleece,RB530,General Repair/Maint Buildings,3000,Fleece Hotel works,16/06/2014,385087,67.28,NET,Rf Gardiner Limited,12299B
Gloucester City Council,23UE,The Fleece,RB530,General Repair/Maint Buildings,3000,Fleece Hotel works,16/06/2014,385139,281.71,NET,Rf Gardiner Limited,12299B
Gloucester City Council,23UE,The Fleece,RB530,General Repair/Maint Buildings,3000,Bearland Lodge works,16/06/2014,385354,1200.16,NET,Rf Gardiner Limited,12299B
Gloucester City Council,23UE,Tic Trading,LT110,Materials For Sale,5080,GOODS FOR RESALE,16/06/2014,385623,134.4,NET,Emblem Print Products Limited,54871Z
Gloucester City Council,23UE,Tic Trading,LT110,Materials For Sale,5080,GOODS FOR RESALE,16/06/2014,385631,282.27,NET,Emblem Print Products Limited,54871Z
Gloucester City Council,23UE,Tic Trading,LT110,Materials For Sale,5080,GOODS FOR RESALE,16/06/2014,385632,171.26,NET,Emblem Print Products Limited,54871Z
Gloucester City Council,23UE,Tic Trading,LT110,Materials For Sale,5080,GOODS FOR RESALE,16/06/2014,385633,198.72,NET,Emblem Print Products Limited,54871Z
Gloucester City Council,23UE,Tourism Marketing,LT100,Operational Equipment <5000,5012,TOILET ROLLS,16/06/2014,385669,10.88,NET,Robert Hall Business Equipment Ltd,19925B
Gloucester City Council,23UE,Tourism Marketing,LT100,Rents,3200,TIC 28 SOUTHGATE ST,16/06/2014,385658,5725,NET,P W Fido & Associates,01210A
Gloucester City Council,23UE,Wake Room,HC501,Catering Provisions -Food,5110,FOOD,16/06/2014,385608,53.78,NET,Total Produce Gloucester,12645E
Gloucester City Council,23UE,Wake Room,HC501,Catering Provisions -Food,5110,FOOD,16/06/2014,385609,78.1,NET,Total Produce Gloucester,12645E
Gloucester City Council,23UE,Wake Room,HC501,Catering Provisions -Food,5110,FOOD,16/06/2014,385610,20.25,NET,Total Produce Gloucester,12645E
Gloucester City Council,23UE,Wake Room,HC501,Catering Provisions -Food,5110,FOOD,16/06/2014,385614,360.43,NET,3663,55585U
Gloucester City Council,23UE,Wake Room,HC501,Catering Provisions -Food,5110,FOOD,16/06/2014,385630,38.14,NET,Total Produce Gloucester,12645E
Gloucester City Council,23UE,Wake Room,HC501,Catering Provisions -Food,5110,FOOD,16/06/2014,385708,296.57,NET,3663,55585U
Gloucester City Council,23UE,Wake Room,HC501,Catering Provisions -Food,5110,FOOD,16/06/2014,385725,57.97,NET,3663,55585U
Gloucester City Council,23UE,Wake Room,HC501,Catering Provisions -Food,5110,FOOD,16/06/2014,385726,313.16,NET,3663,55585U
Gloucester City Council,23UE,Wake Room,HC501,Cleaning Materials,3600,FOOD,16/06/2014,385721,35.86,NET,3663,55585U
Gloucester City Council,23UE,Wake Room,HC501,Cleaning Materials,3600,FOOD,16/06/2014,385722,26.99,NET,3663,55585U
Gloucester City Council,23UE,Wake Room,HC501,Other Minor Supplies Services,5590,PLANTS,16/06/2014,385717,26.4,NET,Carols Florist,01274X
Gloucester City Council,23UE,Wake Room,HC501,Other Minor Supplies Services,5590,PLANTS,16/06/2014,385723,37.1,NET,Carols Florist,01274X
Gloucester City Council,23UE,Wake Room,HC501,Other Minor Supplies Services,5590,PLANTS,16/06/2014,385724,52.8,NET,Carols Florist,01274X
Gloucester City Council,23UE,Wake Room,HC501,Security Equipment Serv/Repair,3038,CALLOUT 13/05/14,16/06/2014,385607,63,NET,Gloucester Locksmiths,18160C
Gloucester City Council,23UE,Waterwells Park And Ride,PJ120,Contracted Services,6970,May 2014,16/06/2014,385315,388,NET,Apcoa Parking (Uk) Ltd,09954M
Gloucester City Council,23UE,REDACTED,REDACTED,REDACTED,REDACTED,REDACTED,16/06/2014,REDACTED,46.75,NET,REDACTED,REDACTED
Gloucester City Council,23UE,REDACTED,REDACTED,REDACTED,REDACTED,REDACTED,16/06/2014,REDACTED,504.05,NET,REDACTED,REDACTED
Gloucester City Council,23UE,REDACTED,REDACTED,REDACTED,REDACTED,REDACTED,16/06/2014,REDACTED,130.9,NET,REDACTED,REDACTED
Gloucester City Council,23UE,REDACTED,REDACTED,REDACTED,REDACTED,REDACTED,16/06/2014,REDACTED,136,NET,REDACTED,REDACTED
Gloucester City Council,23UE,REDACTED,REDACTED,REDACTED,REDACTED,REDACTED,16/06/2014,REDACTED,216.75,NET,REDACTED,REDACTED
Gloucester City Council,23UE,REDACTED,REDACTED,REDACTED,REDACTED,REDACTED,16/06/2014,REDACTED,313.65,NET,REDACTED,REDACTED
Gloucester City Council,23UE,Business Support,PT250,Fuel,4012,FUEL,17/06/2014,385626,303.54,NET,Allstar Business Solutions Ltd (Arval),06594A
Gloucester City Council,23UE,Cemeteries,HC300,Overtime -Building Maint Staff,1303,BARK,17/06/2014,385605,1755,NET,Bhgs Ltd,00247K
Gloucester City Council,23UE,Contact Centre,RB300,Basic Pay -Admin /Prof Staff,2601,STAFF W/E 08/06/14,17/06/2014,385737,443.7,NET,One To One Recruitment,04752H
Gloucester City Council,23UE,Crematorium,HC200,"Seeds, Trees, Plants, Shrubs",3028,PLANTS,17/06/2014,385629,124.96,NET,Highfield Garden Centres Ltd,48436C
Gloucester City Council,23UE,Disabled Facilities Grants,CY013,Disabled Facility Grants,0074,REDACTED,17/06/2014,385849,5359.6,CAP,Mears Home Improvement Ltd,00096G
Gloucester City Council,23UE,Docks Complex - Catering Servs,RB110,Catering Provisions -Food,5110,Food w/e 01/06/2014,17/06/2014,385098,89.99,NET,Janes Pantry,24500W
Gloucester City Council,23UE,Events,LT410,Events,5952,Grant for Armed Forces Day 21/06/2014,17/06/2014,385851,2000,NET,Gafdcc,14082L
Gloucester City Council,23UE,Financial Services,RT200,Fees For Services Received,5350,Carriage Charge for City Council Cheques,17/06/2014,384938,5,NET,Communisis,04200Z
Gloucester City Council,23UE,Flooding And Drainage,HE306,Maint Of Grounds - General,3030,Plock Court 07/05/2014,17/06/2014,385336,360,NET,Three Counties Drain Service,44033V
Gloucester City Council,23UE,REDACTED,REDACTED,REDACTED,REDACTED,REDACTED,17/06/2014,REDACTED,1393.33,NET,REDACTED,REDACTED
Gloucester City Council,23UE,Homelessness Prevention,CH122,Fees For Services Received,5350,REDACTED,17/06/2014,385850,250,NET,Barton & Tredworth Developments Ltd,58165T
Gloucester City Council,23UE,Investment Property,RB500,Fire Alarm Maintenance,3053,guildhall,17/06/2014,384336,224,NET,Adt Fire & Security Plc,54086D
Gloucester City Council,23UE,National Express,LT105,Materials For Sale,5080,"ARCN/00028887, put on twice- error correction",17/06/2014,385846,25.5,NET,National Express Ltd,31455K
Gloucester City Council,23UE,Printing,RP103,Printing,5300,Printing May 2014,17/06/2014,384963,2552,NET,Alpha Colour Printers Ltd,00945B
Gloucester City Council,23UE,Printing,RP103,Printing,5300,Print Room Sales May 2014,17/06/2014,385414,1065.33,NET,Alpha Colour Printers Ltd,00945B
Gloucester City Council,23UE,All Main Buildings Voltage Mas,RY180,Contract Payments,0020,02/06/2014 Supply and Fix,18/06/2014,385974,450,CAP,Roadmark Ltd,37743T
Gloucester City Council,23UE,Aspire Admin Charges,LC105,Other Minor Income,9900,4 FEB/21 JAN/14 JAN/9 JUL,18/06/2014,385915,303.4,NET,Aspire Sports & Cultural Trust,08135V
Gloucester City Council,23UE,Aspire Admin Charges,LC105,Security Services Fees,5351,Services July 2014,18/06/2014,385977,264.51,NET,G4s Cash Solutions (Uk) Ltd,04290V
Gloucester City Council,23UE,Blackfriars,LA609,Cleaning Materials,3600,Cover Cleaning 31/05/2014,18/06/2014,385905,195,NET,Into Cleaning,14609P
Gloucester City Council,23UE,Blackfriars,LA609,Fees For Services Received,5350,Cut grass areas at blackfriars 05/06/14,18/06/2014,385907,99,NET,Gloucester Cleaning Solutions,14755B
Gloucester City Council,23UE,Blackfriars,LA609,Operational Materials,5070,FRAMES,18/06/2014,385700,167,NET,Graphic Pavement Signs Ltd,08995G
Gloucester City Council,23UE,Business Transformation & Tech,RT700,Computer Software Maintenance,5427,Annual Hosting & Maintenance,18/06/2014,385941,11760,NET,Govdelivery,13943H
Gloucester City Council,23UE,Cemeteries,HC300,Maint Of Grounds - General,3030,Gravel Boards & Sawn Stakes,18/06/2014,385979,168,NET,Millington & Ramstedt Ltd,29815S
Gloucester City Council,23UE,Cemeteries,HC300,Vocational Training,2970,Assessment Process,18/06/2014,385975,310,NET,Institute Of Cemetery & Crematorium M'Ment,01116T
Gloucester City Council,23UE,Cems/Crems Admin,HC100,Security Services Fees,5351,Services July 2014,18/06/2014,385977,100.51,NET,G4s Cash Solutions (Uk) Ltd,04290V
Gloucester City Council,23UE,City Museum And Art Gallery,LM200,Security Services Fees,5351,Services July 2014,18/06/2014,385977,88.17,NET,G4s Cash Solutions (Uk) Ltd,04290V
Gloucester City Council,23UE,City Museum Catering,LM202,Catering Provisions -Food,5110,Food,18/06/2014,385980,108.04,NET,Woodward Foodservice,10714F
Gloucester City Council,23UE,City Museum Catering,LM202,Other Catering Provisions,5112,Rental May 2014,18/06/2014,385951,135,NET,La Spaziale Uk Ltd,11823P
Gloucester City Council,23UE,Civica Admin Charges,RT105,Fees For Services Received,5350,CHD Subscription Advance,18/06/2014,385428,4,NET,Companies House,58954E
Gloucester City Council,23UE,Civica Admin Charges,RT105,Fees For Services Received,5350,CHD Subscription Advance,18/06/2014,385429,4,NET,Companies House,58954E
Gloucester City Council,23UE,Client Revs & Bens Contract,RT240,Security Services Fees,5351,Services July 2014,18/06/2014,385977,263.41,NET,G4s Cash Solutions (Uk) Ltd,04290V
Gloucester City Council,23UE,Corporate Reporting /Financing,RC504,Fees For Services Received,5350,Kiddivouchers June 2014,18/06/2014,385359,27.22,NET,Wider Plan Ltd ( Formerly Kiddivouchers),07893B
Gloucester City Council,23UE,Countryside Unit,LP201,Major R And M - Vehicles,4010,Car Parts,18/06/2014,385904,742.71,NET,Tim Fry Landrovers,50886Z
Gloucester City Council,23UE,Countryside Unit,LP201,Routine R And M - Vehicles,4011,Car Parts,18/06/2014,385904,319.85,NET,Tim Fry Landrovers,50886Z
Gloucester City Council,23UE,Docks Complex - Catering Servs,RB110,Catering Provisions -Food,5110,Food,18/06/2014,385954,21.47,NET,Total Produce Gloucester,12645E
Gloucester City Council,23UE,Docks Complex - Catering Servs,RB110,Catering Provisions -Food,5110,Food,18/06/2014,385955,16.62,NET,Total Produce Gloucester,12645E
Gloucester City Council,23UE,Docks Complex - Catering Servs,RB110,Catering Provisions -Food,5110,FOOD,18/06/2014,385613,72.73,NET,Janes Pantry,24500W
Gloucester City Council,23UE,Docks Complex - Services,RB100,General Repair/Maint Buildings,3000,Air Conditioning Callout,18/06/2014,385917,322.12,NET,Gea Denco Ltd,57271C
Gloucester City Council,23UE,Docks Complex - Services,RB100,Operational Equipment <5000,5012,SUNDRIES BAGS,18/06/2014,385680,1299.8,NET,Shaw & Sons Ltd,40310F
Gloucester City Council,23UE,Docks Complex - Services,RB100,Service Charges,3020,LEASE JUL-OCT 2014,18/06/2014,385591,48.75,NET,Wessex Products (Leasing) Ltd,03684C
Gloucester City Council,23UE,Flooding And Drainage,HE306,Maint Of Grounds - General,3030,"Replace Perry Buoys,River Severn Footpath",18/06/2014,385940,160,NET,Rdb Safety Boat Ltd,13507J
Gloucester City Council,23UE,Folk Museum,LM210,Security Services Fees,5351,Services July 2014,18/06/2014,385977,88.17,NET,G4s Cash Solutions (Uk) Ltd,04290V
Gloucester City Council,23UE,General Drainage Works,PY241,Contract Payments,0020,BOURTON RD,18/06/2014,385731,100,CAP,Three Counties Drain Service,44033V
Gloucester City Council,23UE,General Drainage Works,PY241,Contract Payments,0020,Bourton Road works,18/06/2014,379351,140,CAP,Three Counties Drain Service,44033V
Gloucester City Council,23UE,Gloucester Guildhall,LA100,Operational Materials,5070,FRAMES,18/06/2014,385700,48.45,NET,Graphic Pavement Signs Ltd,08995G
Gloucester City Council,23UE,Gloucester Guildhall,LA100,Security Services Fees,5351,Services July 2014,18/06/2014,385977,88.17,NET,G4s Cash Solutions (Uk) Ltd,04290V
Gloucester City Council,23UE,Guildhall Bar And Caf�,LA210,Catering Provisions -Food,5110,Food,18/06/2014,385976,149.44,NET,Woodward Foodservice,10714F
Gloucester City Council,23UE,Guildhall Bar And Caf�,LA210,Other Catering Provisions,5112,Plastic Flexi Tumbler,18/06/2014,385950,309,NET,Gerry Dance Disposables Ltd,54579Y
Gloucester City Council,23UE,REDACTED,REDACTED,REDACTED,REDACTED,REDACTED,18/06/2014,REDACTED,1449.25,NET,REDACTED,REDACTED
Gloucester City Council,23UE,REDACTED,REDACTED,REDACTED,REDACTED,REDACTED,18/06/2014,REDACTED,100,NET,REDACTED,REDACTED
Gloucester City Council,23UE,REDACTED,REDACTED,REDACTED,REDACTED,REDACTED,18/06/2014,REDACTED,100,NET,REDACTED,REDACTED
Gloucester City Council,23UE,Guildhall Events,LA200,Performing Rights Society Subs,5622,Total Charges Apr 13 -Apr 14,18/06/2014,385973,4459.85,NET,The Performing Rights Society Ltd,05077M
Gloucester City Council,23UE,Hempsted Market/Car Boot,HM234,Maint Of Grounds - General,3030,Hempsted Meadows May 2014,18/06/2014,385952,400,NET,REDACTED,REDACTED
Gloucester City Council,23UE,Hempsted Market/Car Boot,HM234,Maint Of Grounds - General,3030,Topping at Hempsted 10/05/2014,18/06/2014,385912,323.4,NET,REDACTED,REDACTED
Gloucester City Council,23UE,Hempsted Market/Car Boot,HM234,Security Services Fees,5351,Security Staff Hempsted Meadows Car Boot,18/06/2014,385965,1368,NET,Nsgl Ltd,12539E
Gloucester City Council,23UE,Hempsted Market/Car Boot,HM234,Sewerage And Environ Charges,3402,Standard Units with Cold Wash,18/06/2014,385945,469.8,NET,Abbey Loos Limited,10787B
Gloucester City Council,23UE,Herbert Reception Upgrade,RY201,Contract Payments,0020,BLINDS,18/06/2014,385716,80.83,CAP,New City Blinds,14868L
Gloucester City Council,23UE,Homelessness,CH120,Rent In Advance,5516,REDACTED,18/06/2014,385985,364.6,NET,2 Let Glos Ltd,74622M
Gloucester City Council,23UE,Homelessness,CH120,Rent In Advance,5516,REDACTED,18/06/2014,385983,484.6,NET,2 Let Glos Ltd,07066Y
Gloucester City Council,23UE,Homelessness Prevention,CH122,Fees For Services Received,5350,REDACTED,18/06/2014,385985,425,NET,2 Let Glos Ltd,74622M
Gloucester City Council,23UE,Homelessness Prevention,CH122,Fees For Services Received,5350,REDACTED,18/06/2014,385983,500,NET,2 Let Glos Ltd,07066Y
Gloucester City Council,23UE,Investment Property,RB500,General Repair/Maint Buildings,3000,Cylinder Key,18/06/2014,385903,10,NET,Gloucester Locksmiths,18160C
Gloucester City Council,23UE,Members Support,RC300,Conference/Meeting Expenses,5510,"09/07/2014 Conference, accomodation",18/06/2014,385982,82.5,NET,Bournemouth Convention Bureau Ltd,14627M
Gloucester City Council,23UE,Registration Of Electors,RS400,Fees For Services Received,5350,Furniture Hire 22/05/2014,18/06/2014,385896,1165.4,NET,Jongor Ltd,13104M
Gloucester City Council,23UE,Registration Of Electors,RS400,Fees For Services Received,5350,Room Hire Elections 22/05/2014,18/06/2014,385895,100,NET,Wotton Hall Club,08356R
Gloucester City Council,23UE,Registration Of Electors,RS400,Fees For Services Received,5350,Room Hire Elections 22/05/2014,18/06/2014,385923,523,NET,Gloucester Rugby Football Club,49396D
Gloucester City Council,23UE,Registration Of Electors,RS400,Fees For Services Received,5350,Room Hire Elections 22/05/2014,18/06/2014,385924,180,NET,Hempsted Village Hall,55138A
Gloucester City Council,23UE,Registration Of Electors,RS400,Fees For Services Received,5350,Room Hire Elections 22/05/2014,18/06/2014,385925,129,NET,Heron Primary School,55582A
Gloucester City Council,23UE,Registration Of Electors,RS400,Fees For Services Received,5350,Room Hire Elections 22/05/2014,18/06/2014,385926,77.8,NET,Hillview Primary School,12345W
Gloucester City Council,23UE,Registration Of Electors,RS400,Fees For Services Received,5350,Room Hire Elections 22/05/2014,18/06/2014,385927,175,NET,Longlevens Parochial Church Council,11880B
Gloucester City Council,23UE,Registration Of Electors,RS400,Fees For Services Received,5350,Room Hire Elections 22/05/2014,18/06/2014,385928,650,NET,Hucclecote Community Association,23020B
Gloucester City Council,23UE,Registration Of Electors,RS400,Fees For Services Received,5350,Room Hire Elections 22/05/2014,18/06/2014,385929,61.35,NET,Kingsway Primary School,12441Z
Gloucester City Council,23UE,Registration Of Electors,RS400,Fees For Services Received,5350,Room Hire Elections 22/05/2014,18/06/2014,385930,450,NET,Longlevens Rfc Ltd,02805A
Gloucester City Council,23UE,Registration Of Electors,RS400,Fees For Services Received,5350,Room Hire Elections 22/05/2014,18/06/2014,385931,50,NET,Old Richian Sports & Social Club,04328V
Gloucester City Council,23UE,Registration Of Electors,RS400,Fees For Services Received,5350,Room Hire Elections 22/05/2014,18/06/2014,385932,250,NET,Podsmead Community Association,03240W
Gloucester City Council,23UE,Registration Of Electors,RS400,Postages,5400,Business Mail Advanced 17/04 & 09/05/14,18/06/2014,385958,8048.79,NET,Royal Mail S.Wales & South West,35830S
Gloucester City Council,23UE,Registration Of Electors,RS400,Postages,5400,Response Plus Service 10/05- 17/05/2014,18/06/2014,385957,3283.11,NET,Royal Mail S.Wales & South West,35830S
Gloucester City Council,23UE,Registration Of Electors,RS400,Postages,5400,Response Plus Service 24/05/2014,18/06/2014,385959,1315.8,NET,Royal Mail S.Wales & South West,35830S
Gloucester City Council,23UE,Rehousing,CH111,Basic Pay - Temporary Staff,2751,REDACTED,18/06/2014,385697,446.5,NET,Building Recruitment Company Ltd,55385E
Gloucester City Council,23UE,Retail Market - Landlord,HM300,Operational Equipment <5000,5012,P75s Compactor Rental June 2014,18/06/2014,385906,280.56,NET,System Rental Uk Ltd,03239E
Gloucester City Council,23UE,Retail Market - Landlord,HM300,Sewerage And Environ Charges,3402,Pest Control 30/05/2014,18/06/2014,385922,45,NET,Falconry Services Ltd,10692P
Gloucester City Council,23UE,Safer Stronger Communities,FP841,Other Minor Supplies Services,5590,PAVILION,18/06/2014,385640,393.75,NET,John Attwooll & Co (Tents) Ltd,01890S
Gloucester City Council,23UE,Tourism Marketing,LT100,Security Services Fees,5351,Services July 2014,18/06/2014,385977,88.17,NET,G4s Cash Solutions (Uk) Ltd,04290V
Gloucester City Council,23UE,Westgate Mosaics,GY018,Contract Payments,0020,"Fixing Mosaics, Westgate Street",18/06/2014,385908,16345.8,CAP,Victorian Mosaic Ltd,14887N
Gloucester City Council,23UE,Allotments,HI104,Fees For Services Received,5350,GRAVEL,19/06/2014,385642,114,NET,Buildbase Ltd*,03692D
Gloucester City Council,23UE,Civica Admin Charges,RT105,Postages,5400,ACCT 0870585007 W/E 06/06/14,19/06/2014,385696,1260.95,NET,Royal Mail S.Wales & South West,35830S
Gloucester City Council,23UE,Client Revs & Bens Contract,RT240,Fees For Services Received,5350,A Probate Search for Fraud Investigation,19/06/2014,386044,10,NET,Hmcts,57402M
Gloucester City Council,23UE,Contact Centre,RB300,Basic Pay -Admin /Prof Staff,2601,REDACTED,19/06/2014,385963,693,NET,Venn Group Ltd,04339P
Gloucester City Council,23UE,Docks Complex - Services,RB100,Lift Maintenance,3051,Lift inspections,19/06/2014,381971,134.02,NET,Pickerings Europe Ltd*,58816U
Gloucester City Council,23UE,Dwelling Acquisitions,BY006,Purchase Cost -Buildings,0010,REDACTED,19/06/2014,386043,11500,CAP,Langley Wellington Solicitors,00123F
Gloucester City Council,23UE,Environmental Planning,LM340,Exhibits And Collections,5038,REDACTED,19/06/2014,385707,195,NET,Oxford University,09739U
Gloucester City Council,23UE,General Works Fund,RY203,Capital Lifts,0024,Lift Inspection City Museum August 13,19/06/2014,385410,1354.04,CAP,Pickerings Europe Ltd*,58816U
Gloucester City Council,23UE,Glevum Way Play Area,LY111,Contract Payments,0020,Football Goals,19/06/2014,385867,1227.94,CAP,Broxap Ltd,01141U
Gloucester City Council,23UE,REDACTED,REDACTED,REDACTED,REDACTED,REDACTED,19/06/2014,REDACTED,6135.15,NET,REDACTED,REDACTED
Gloucester City Council,23UE,REDACTED,REDACTED,REDACTED,REDACTED,REDACTED,19/06/2014,REDACTED,3651.84,NET,REDACTED,REDACTED
Gloucester City Council,23UE,REDACTED,REDACTED,REDACTED,REDACTED,REDACTED,19/06/2014,REDACTED,50,NET,REDACTED,REDACTED
Gloucester City Council,23UE,Members Support,RC300,Subscriptions,5600,Annual Data Protection Registration,19/06/2014,386042,1260,NET,Information Commissioner,58085S
Gloucester City Council,23UE,Pest Control,HD400,Fees For Services Received,5350,Problem with seagull chick,19/06/2014,385873,55.83,NET,Falconry Services Ltd,10692P
Gloucester City Council,23UE,Pest Control,HD400,Fees For Services Received,5350,Works carried out at folk museum,19/06/2014,385874,45,NET,Falconry Services Ltd,10692P
Gloucester City Council,23UE,Registration Of Electors,RS400,Fees For Services Received,5350,Room Hire Elections 22/05/2014,19/06/2014,385879,299.25,NET,Abbeydale Community Association,50263V
Gloucester City Council,23UE,Registration Of Electors,RS400,Fees For Services Received,5350,Room Hire Elections 22/05/2014,19/06/2014,385880,61.35,NET,Abbeymead Primary School,12017T
Gloucester City Council,23UE,Registration Of Electors,RS400,Fees For Services Received,5350,Room Hire Elections 22/05/2014,19/06/2014,385882,310,NET,Colwell Centre,48253N
Gloucester City Council,23UE,Registration Of Electors,RS400,Fees For Services Received,5350,Room Hire Elections 22/05/2014,19/06/2014,385883,202,NET,Court Community Association,57694T
Gloucester City Council,23UE,Registration Of Electors,RS400,Fees For Services Received,5350,Room Hire Elections 22/05/2014,19/06/2014,385884,375,NET,Gloucester District Scouting Centre & H.Q,10529C
Gloucester City Council,23UE,Registration Of Electors,RS400,Fees For Services Received,5350,Room Hire Elections 22/05/2014,19/06/2014,385885,203.2,NET,Quedgeley Parish Council,48506G
Gloucester City Council,23UE,Registration Of Electors,RS400,Fees For Services Received,5350,Room Hire Elections 22/05/2014,19/06/2014,385886,104,NET,Quedgeley Village Hall,00736N
Gloucester City Council,23UE,Registration Of Electors,RS400,Fees For Services Received,5350,Room Hire Elections 22/05/2014,19/06/2014,385887,250,NET,Together In Matson,53760RV
Gloucester City Council,23UE,Registration Of Electors,RS400,Fees For Services Received,5350,Room Hire Elections 22/05/2014,19/06/2014,385888,150,NET,St Aldate Church,02117F
Gloucester City Council,23UE,Registration Of Electors,RS400,Fees For Services Received,5350,Room Hire Elections 22/05/2014,19/06/2014,385889,400,NET,St Barnabas Pcc,10480H
Gloucester City Council,23UE,Registration Of Electors,RS400,Fees For Services Received,5350,Room Hire Elections 22/05/2014,19/06/2014,385890,200,NET,St Georges Centre,09770A
Gloucester City Council,23UE,Registration Of Electors,RS400,Fees For Services Received,5350,Room Hire Elections 22/05/2014,19/06/2014,385891,250,NET,St Mary De Lode Pcc,10663X
Gloucester City Council,23UE,Registration Of Electors,RS400,Fees For Services Received,5350,Room Hire Elections 22/05/2014,19/06/2014,385892,250,NET,Barnwood Pcc,57601D
Gloucester City Council,23UE,Registration Of Electors,RS400,Fees For Services Received,5350,Room Hire Elections 22/05/2014,19/06/2014,385893,350,NET,Gala Club,12236C
Gloucester City Council,23UE,Registration Of Electors,RS400,Fees For Services Received,5350,Room Hire Elections 22/05/2014,19/06/2014,385894,250,NET,Gl Communities,09535X
Gloucester City Council,23UE,Registration Of Electors,RS400,Fees For Services Received,5350,ROOM HIRE ELECTIONS 22/05/2014,19/06/2014,385897,213.75,NET,Hucclecote Guiding Parent Support Group,10752D
Gloucester City Council,23UE,Registration Of Electors,RS400,Fees For Services Received,5350,ROOM HIRE ELECTIONS 22/05/2014,19/06/2014,385898,61.35,NET,Tredworth Junior School,03118U
Gloucester City Council,23UE,Registration Of Electors,RS400,Fees For Services Received,5350,ROOM HIRE ELECTIONS 22/05/2014,19/06/2014,385899,280,NET,Tuffley Community Association,44750G
Gloucester City Council,23UE,Registration Of Electors,RS400,Printing,5300,Euro reg form mailing,19/06/2014,383305,525,NET,Alpha Response Print & Mail Ltd,03029U
Gloucester City Council,23UE,Registration Of Electors,RS400,Printing,5300,may Poll cards & postal poll cards,19/06/2014,383306,2708,NET,Alpha Response Print & Mail Ltd,03029U
Gloucester City Council,23UE,Rehousing,CH111,Basic Pay - Temporary Staff,2751,REDACTED,19/06/2014,385972,627,NET,Building Recruitment Company Ltd,55385E
Gloucester City Council,23UE,Rugby World Cup,LT450,Other Minor Supplies Services,5590,Kingsholm Road Closure,19/06/2014,385382,2085.75,NET,Marketing Gloucester Ltd,08925E
Gloucester City Council,23UE,Stationery Services,RS150,Printing,5300,Paper Supplies,19/06/2014,385911,519.7,NET,Premier Paper Group Ltd,09166Y
Gloucester City Council,23UE,Aspire Admin Charges,LC105,Other Minor Income,9900,BAILIFF PAYMENTS 06/06/14,20/06/2014,386150,37.2,NET,Aspire Sports & Cultural Trust,08135V
Gloucester City Council,23UE,Blackfriars,LA609,Operational Equipment <5000,5012,"Light Effect, LED Maxibar",20/06/2014,385916,470,NET,Cpc,52980M
Gloucester City Council,23UE,Blackfriars,LA609,Operational Equipment <5000,5012,Mini Worklight,20/06/2014,385914,59.58,NET,Cpc,52980M
Gloucester City Council,23UE,Business Transformation & Tech,RT700,Computer Consumables,5422,Battery for HP notebook,20/06/2014,386098,74,NET,Qual Technology,56512N
Gloucester City Council,23UE,Cemeteries,HC300,Maint Of Grounds - General,3030,Mechanical Sweep 26/05/2014,20/06/2014,385936,64,NET,Enterprise (Aol) Ltd,06695G
Gloucester City Council,23UE,Cleansing Services Admin,HI100,General Repair/Maint Buildings,3000,Hempsted Lane & keys for Pavillions,20/06/2014,385934,16.66,NET,Enterprise (Aol) Ltd,06695G
Gloucester City Council,23UE,Community Safety Projects,FP500,Other Minor Supplies Services,5590,Community Van,20/06/2014,382266,5000,NET,"Police & Crime Commissioner, Gloucestershire",49521B
Gloucester City Council,23UE,Contact Centre,RB300,Basic Pay -Admin /Prof Staff,2601,REDACTED,20/06/2014,385962,836,NET,Venn Group Ltd,04339P
Gloucester City Council,23UE,Countryside Unit,LP201,Trade Refuse Collection,3630,Additional Bin for Robinswood Hill Farm,20/06/2014,385350,13.57,NET,Enterprise (Aol) Ltd,06695G
Gloucester City Council,23UE,Crematorium,HC200,Memorial Plaques,5053,Bronze Cast Plaque,20/06/2014,386066,54,NET,Arkell & Hurcombe,59812T
Gloucester City Council,23UE,Crematorium,HC200,Oper Leases - Equipment,5029,Disposable Gloves,20/06/2014,386059,19.95,NET,Safpro Industrial Supply Co,39190W
Gloucester City Council,23UE,Director Resources,MR102,Fees For Services Received,5350,REDACTED,20/06/2014,386070,2056,NET,Wragge & Co Llp,06590J
Gloucester City Council,23UE,Disabled Facilities Grants,CY013,Disabled Facility Grants,0074,REDACTED,20/06/2014,386186,3865.73,CAP,Mears Home Improvement Ltd,00096G
Gloucester City Council,23UE,Docks Complex - Catering Servs,RB110,Catering Provisions -Food,5110,Food w/e 15/06/2014,20/06/2014,385868,79.9,NET,Janes Pantry,24500W
Gloucester City Council,23UE,Docks Complex - Services,RB100,General Repair/Maint Buildings,3000,Specialist Services 12/06/2014,20/06/2014,386096,268.39,NET,Cooltherm,06087Z
Gloucester City Council,23UE,Docks Complex - Services,RB100,Maint Agreements - Buildings,3010,Maintenance April 14,20/06/2014,384119,41.92,NET,Avon Alarms Ltd,02280T
Gloucester City Council,23UE,Emergency Out Of Hours Calls,RB301,Fees For Services Received,5350,Callouts May 2014,20/06/2014,385324,115.28,NET,Office Response,09439K
Gloucester City Council,23UE,Financial Services,RT200,Fees For Services Received,5350,REDACTED,20/06/2014,385232,495,NET,Venn Group Ltd,04339P
Gloucester City Council,23UE,Food Safety,HE100,Other Minor Supplies Services,5590,Hats,20/06/2014,386064,30.4,NET,G B Davies (Sundriesmen) Ltd,12195R
Gloucester City Council,23UE,Group Mgr Planning & Economy,GR101,Basic Pay - Temporary Staff,2751,REDACTED,20/06/2014,382812,2475,NET,Randstad Cpe Ltd,13987L
Gloucester City Council,23UE,REDACTED,REDACTED,REDACTED,REDACTED,REDACTED,20/06/2014,REDACTED,6000,NET,REDACTED,REDACTED
Gloucester City Council,23UE,REDACTED,REDACTED,REDACTED,REDACTED,REDACTED,20/06/2014,REDACTED,650,NET,REDACTED,REDACTED
Gloucester City Council,23UE,Homelessness,CH120,Fees For Services Received,5350,REDACTED,20/06/2014,386151,360,NET,Moore Blatch Llp,14949K
Gloucester City Council,23UE,Human Resources,EH100,Basic Pay -Admin /Prof Staff,2601,Fees of termination of contract,20/06/2014,386069,19686.8,NET,Hr Consulting Ltd,12559Y
Gloucester City Council,23UE,Legal Services,RS200,Basic Pay - Temporary Staff,2751,REDACTED,20/06/2014,385875,395.1,NET,Premiere Employment Ltd,55468Z
Gloucester City Council,23UE,Off Street Car Parks,PP110,Computer Software Maintenance,5427,Cashless Parking Fees Apr- May,20/06/2014,386084,959.58,NET,Chipside Ltd,06535T
Gloucester City Council,23UE,Off Street Car Parks,PP110,Computer Software Maintenance,5427,Staff Permit & Season Ticket April 14,20/06/2014,386085,1093.94,NET,Chipside Ltd,06535T
Gloucester City Council,23UE,Parks Contract Management,LP100,Maint Of Grounds - General,3030,Hempsted Lane & keys for Pavillions,20/06/2014,385934,106.38,NET,Enterprise (Aol) Ltd,06695G
Gloucester City Council,23UE,Planning Policy,PT300,Basic Pay - Temporary Staff,2751,REDACTED,20/06/2014,382814,1612.78,NET,Randstad Cpe Ltd,13987L
Gloucester City Council,23UE,Postal Services,RS120,Postages,5400,Post 30/05/14- 12/06/14,20/06/2014,386097,1450.32,NET,Royal Mail S.Wales & South West,35830S
Gloucester City Council,23UE,Registration Of Electors,RS400,Fees For Services Received,5350,Room Hire Elections 22/05/2014,20/06/2014,386054,58.52,NET,St Pauls Primary School,56334N
Gloucester City Council,23UE,Registration Of Electors,RS400,Fees For Services Received,5350,Storage Polling Booths,20/06/2014,383971,235,NET,Armstrong Removals,04632N
Gloucester City Council,23UE,Registration Of Electors,RS400,Fees For Services Received,5350,Storage Polling Booths,20/06/2014,386055,235,NET,Armstrong Removals,04632N
Gloucester City Council,23UE,Retail Market - Landlord,HM300,Window Cleaning,3610,Monthly Window Clean June 14,20/06/2014,386073,140,NET,Cornwall Cleaning Services,14050A
Gloucester City Council,23UE,Safer Stronger Communities,FP841,Other Minor Supplies Services,5590,PA System & Sound Engineer 07/06/2014,20/06/2014,386068,500,NET,Rapid Test Ltd,12387D
Gloucester City Council,23UE,Tic Theatre Ticket Sales,LT107,Materials For Sale,5080,Sales for Ghost Walks April 2014,20/06/2014,386152,18,NET,REDACTED,REDACTED
Gloucester City Council,23UE,Tic Theatre Ticket Sales,LT107,Sale Of Goods And Services,9230,Sales for Ghost Walks April 2014,20/06/2014,386152,-0.87,NET,REDACTED,REDACTED
Gloucester City Council,23UE,Tic Trading,LT110,Trade Refuse Sacks,5040,Trade Waste Service,20/06/2014,386063,1848.8,NET,Enterprise (Aol) Ltd,06695G
Gloucester City Council,23UE,Asset Management,RS300,Basic Pay - Temporary Staff,2751,REDACTED,23/06/2014,386090,1327.68,NET,Hays Specialist Recruitment,04355S
Gloucester City Council,23UE,Asset Management,RS300,Basic Pay - Temporary Staff,2751,REDACTED,23/06/2014,386091,1093.56,NET,Hays Specialist Recruitment,04355S
Gloucester City Council,23UE,Asset Management,RS300,Basic Pay - Temporary Staff,2751,REDACTED,23/06/2014,386092,1193.59,NET,Hays Specialist Recruitment,04355S
Gloucester City Council,23UE,Building Control,PT400,Basic Pay - Temporary Staff,2751,REDACTED,23/06/2014,384630,4500,NET,Brg Interim Solutions,14065L
Gloucester City Council,23UE,Building Control,PT400,Car Allows -Cas. User Mileage,4102,REDACTED,23/06/2014,384629,26.4,NET,Brg Interim Solutions,14065L
Gloucester City Council,23UE,Building Control,PT400,Subscriptions,5600,BSI Subscribing Membership,23/06/2014,378532,727,NET,Bsi Business Information,01425A
Gloucester City Council,23UE,Business Support,PT250,Fuel,4012,Fuel,23/06/2014,386179,324.51,NET,Allstar Business Solutions Ltd (Arval),06594A
Gloucester City Council,23UE,Business Transformation & Tech,RT700,Basic Pay - Temporary Staff,2751,REDACTED,23/06/2014,386187,4387.5,NET,Vector Resourcing Ltd,11664K
Gloucester City Council,23UE,Business Transformation & Tech,RT700,Basic Pay - Temporary Staff,2751,REDACTED,23/06/2014,385421,5705,NET,Vector Resourcing Ltd,11664K
Gloucester City Council,23UE,Business Transformation & Tech,RT700,Computer Consumables,5422,Data Cartridge IBM,23/06/2014,386077,1554,NET,Insurgo Media Services,14207R
Gloucester City Council,23UE,Business Transformation & Tech,RT700,Computer Hardware <5000,5420,Battery Pack Assembly,23/06/2014,386180,54,NET,Qual Technology,56512N
Gloucester City Council,23UE,Civic Admin And Hospitality,RC210,Other Minor Supplies Services,5590,Photographic Work Mayor Making Ceremony,23/06/2014,386157,240,NET,T H Photography,55076X
Gloucester City Council,23UE,Civil Parking Enforcement,PT741,Basic Pay - Temporary Staff,2751,REDACTED,23/06/2014,386083,2400,NET,Unity Recruitment,14857S
Gloucester City Council,23UE,Client Revs & Bens Contract,RT240,Legal Fees,5731,PALL MALL,23/06/2014,385663,891,NET,Bevan Brittan,06630Y
Gloucester City Council,23UE,Contact Centre,RB300,Basic Pay -Admin /Prof Staff,2601,REDACTED,23/06/2014,386181,443.7,NET,One To One Recruitment,04752H
Gloucester City Council,23UE,Contact Centre,RB300,Basic Pay -Admin /Prof Staff,2601,REDACTED,23/06/2014,384542,269.12,NET,One To One Recruitment,04752H
Gloucester City Council,23UE,Council Streetcare Team,HI101,Maint Of Grounds - General,3030,Special,23/06/2014,386154,15.48,NET,Environmental Care Advertising Ltd,54093G
Gloucester City Council,23UE,Council Streetcare Team,HI101,Window Cleaning,3610,Eastgate viewing chamber window cleaning,23/06/2014,385341,130,NET,Poles Apart Window Cleaning,11636R
Gloucester City Council,23UE,Countryside Unit,LP201,Maint Of Grounds - General,3030,Cleaning Materials,23/06/2014,386158,188.27,NET,Greenham Trading Ltd,19305R
Gloucester City Council,23UE,Countryside Unit,LP201,Maint Of Grounds - General,3030,Elbow 20mm,23/06/2014,386076,9.28,NET,Countrywide Farmers*,55687J
Gloucester City Council,23UE,Countryside Unit,LP201,Maint Of Grounds - General,3030,Refuse Sacks,23/06/2014,385368,18.64,NET,Countrywide Farmers*,55687J
Gloucester City Council,23UE,Crematorium,HC200,Cleaning Materials,3600,SANITARY UNITS,23/06/2014,385660,16.78,NET,Minster Cleaning Services,02158R
Gloucester City Council,23UE,Crematorium,HC200,Repair/Maint Of Fixed Plant,3006,Hire of Scaffold 07/06/2014,23/06/2014,386081,310,NET,Lansford Access Ltd,26320F
Gloucester City Council,23UE,Development Management,PT200,Application Fees,9312,Reference: 14/00582/LAW,23/06/2014,386223,86,NET,REDACTED,REDACTED
Gloucester City Council,23UE,Electrical Investigatory Works,RY142,Contract Payments,0020,VISIT 31/05/14,23/06/2014,385687,860,CAP,Kingfisher Environmental Services Ltd,04738V
Gloucester City Council,23UE,Financial Services,RT200,Consultants Fees,5349,REDACTED,23/06/2014,385961,2175,NET,Robert Half Ltd,03959K
Gloucester City Council,23UE,Food Safety,HE100,Fees For Services Received,5350,Black Dye,23/06/2014,386080,31,NET,Kentmaster Ltd (Uk),01085C
Gloucester City Council,23UE,General Works Fund,RY203,Capital Lifts,0024,Work Done 11/06/2014,23/06/2014,386156,455.28,CAP,Pickerings Europe Ltd*,58816U
Gloucester City Council,23UE,Guildhall Events,LA200,Advertising And Publicity,5702,Advertisements May 14,23/06/2014,385101,612.51,NET,Local World Ltd,08556P
Gloucester City Council,23UE,REDACTED,REDACTED,REDACTED,REDACTED,REDACTED,23/06/2014,REDACTED,100,NET,REDACTED,REDACTED
Gloucester City Council,23UE,REDACTED,REDACTED,REDACTED,REDACTED,REDACTED,23/06/2014,REDACTED,50,NET,REDACTED,REDACTED
Gloucester City Council,23UE,Guildhall Events,LA200,Printing,5300,Guildhall Thermal Tickets,23/06/2014,385343,1464,NET,Hague Computer Supplies Ltd,59713W
Gloucester City Council,23UE,REDACTED,REDACTED,REDACTED,REDACTED,REDACTED,23/06/2014,REDACTED,1460,NET,REDACTED,REDACTED
Gloucester City Council,23UE,Investment Property,RB500,Lift Maintenance,3051,Engineer attending installation 13/05/14,23/06/2014,386155,114.87,NET,Pickerings Europe Ltd*,58816U
Gloucester City Council,23UE,Kings Quarter,RY146,Contract Payments,0020,Marker Tape & Danger Cone,23/06/2014,386184,120.5,CAP,Ermin Plant Hire & Services Ltd,14150V
Gloucester City Council,23UE,Kings Quarter,RY146,Contract Payments,0020,Screws & Drill Bits,23/06/2014,386183,24.02,CAP,Ermin Plant Hire & Services Ltd,14150V
Gloucester City Council,23UE,Legal Services,RS200,Basic Pay - Temporary Staff,2751,REDACTED,23/06/2014,385964,1477.71,NET,Venn Group Ltd,04339P
Gloucester City Council,23UE,Mortgage Rescue,CH128,Fees For Services Received,5350,REDACTED,23/06/2014,386176,387.6,NET,One To One Recruitment,04752H
Gloucester City Council,23UE,Off Street Car Parks,PP110,Rents,3200,Rent 28/06 - 28/09 2014,23/06/2014,385387,118.75,NET,Knight Frank Llp,59489B
Gloucester City Council,23UE,Pollution Control,HE300,Fees For Services Received,5350,Tube 20% Tea/Water,23/06/2014,386153,111.15,NET,Gradko International Ltd,11063B
Gloucester City Council,23UE,Shopmobility,PE200,Maintenance Of Equipment,5030,Various Repair 03/06 & 05/06 2014,23/06/2014,386056,615.6,NET,Disabled Care & Mobility,12675V
Gloucester City Council,23UE,REDACTED,REDACTED,REDACTED,REDACTED,REDACTED,23/06/2014,REDACTED,200,NET,REDACTED,REDACTED
Gloucester City Council,23UE,REDACTED,REDACTED,REDACTED,REDACTED,REDACTED,23/06/2014,REDACTED,1250,NET,REDACTED,REDACTED
Gloucester City Council,23UE,Summer Festival,LT300,Operational Equipment <5000,5012,Starshelter,23/06/2014,386087,1444.21,NET,Xtreme Graphics Ltd,13910Z
Gloucester City Council,23UE,Summer Festival,LT300,Performing Rights Society Subs,5622,Charges 14/15,23/06/2014,386166,1802.03,NET,The Performing Rights Society Ltd,05077M
Gloucester City Council,23UE,Summer Festival,LT300,Performing Rights Society Subs,5622,Charges 14/15,23/06/2014,386167,1717.6,NET,The Performing Rights Society Ltd,05077M
Gloucester City Council,23UE,Tourism Marketing,LT100,Window Cleaning,3610,Three Monthly Window Cleaning 28/04/2014,23/06/2014,386162,42.93,NET,Initial Washroom Solutions,24219P
Gloucester City Council,23UE,Tourism Marketing,LT100,Window Cleaning,3610,Window Cleaning Weekly,23/06/2014,386163,24,NET,Initial Washroom Solutions,06143R
Gloucester City Council,23UE,Asset Management,RS300,Basic Pay - Temporary Staff,2751,REDACTED,24/06/2014,386088,1286.86,NET,Hays Specialist Recruitment Ltd,55516P
Gloucester City Council,23UE,Asset Management,RS300,Basic Pay - Temporary Staff,2751,REDACTED,24/06/2014,386089,1063.05,NET,Hays Specialist Recruitment Ltd,55516P
Gloucester City Council,23UE,Asset Management,RS300,Basic Pay - Temporary Staff,2751,REDACTED,24/06/2014,386094,1061.26,NET,Hays Specialist Recruitment Ltd,55516P
Gloucester City Council,23UE,Blackfriars,LA609,Fees For Services Received,5350,Rounds Tables 22/02/2014,24/06/2014,385365,70,NET,Valley Furniture Hire Ltd,08324P
Gloucester City Council,23UE,Blackfriars,LA609,Fees For Services Received,5350,Wood Banquet Chairs 17/05/2014,24/06/2014,385366,285,NET,Valley Furniture Hire Ltd,08324P
Gloucester City Council,23UE,Blackfriars,LA609,Fees For Services Received,5350,Wood Banquet Chairs & Tables 31/05/2014,24/06/2014,385367,241,NET,Valley Furniture Hire Ltd,08324P
Gloucester City Council,23UE,Blackfriars Catering,LA220,Catering Provisions -Food,5110,Buffet Menu 30 people 11/06/2014,24/06/2014,386239,138.98,NET,Hey Pesto Ltd,14759T
Gloucester City Council,23UE,City Museum And Art Gallery,LM200,Events,5952,Payment for offering education session,24/06/2014,386320,60,NET,REDACTED,REDACTED
Gloucester City Council,23UE,City Museum Catering,LM202,Catering Provisions -Food,5110,Food,24/06/2014,385956,4.96,NET,Total Produce Gloucester,12645E
Gloucester City Council,23UE,Development Management,PT200,Advertising And Publicity,5702,ADVERT 05/06/14,24/06/2014,385691,87.65,NET,Local World Ltd,08556P
Gloucester City Council,23UE,Development Management,PT200,Advertising And Publicity,5702,Advertisements 22/05/2014,24/06/2014,384748,116.86,NET,Local World Ltd,08556P
Gloucester City Council,23UE,Development Management,PT200,Application Fees,9312,Ref: 14/00705/FUL Application returned,24/06/2014,386321,172,NET,Psk Architects,12006Y
Gloucester City Council,23UE,Docks Complex - Catering Servs,RB110,Catering Provisions -Food,5110,Food,24/06/2014,386249,47.67,NET,Total Produce Gloucester,12645E
Gloucester City Council,23UE,Docks Complex - Catering Servs,RB110,Catering Provisions -Food,5110,Food,24/06/2014,386250,11.52,NET,Total Produce Gloucester,12645E
Gloucester City Council,23UE,Docks Complex - Catering Servs,RB110,Catering Provisions -Food,5110,Food,24/06/2014,386251,29.44,NET,Total Produce Gloucester,12645E
Gloucester City Council,23UE,Docks Complex - Catering Servs,RB110,Catering Provisions -Food,5110,Food,24/06/2014,386252,29.58,NET,Total Produce Gloucester,12645E
Gloucester City Council,23UE,Docks Complex - Catering Servs,RB110,Catering Provisions -Food,5110,Food,24/06/2014,386253,29.29,NET,Total Produce Gloucester,12645E
Gloucester City Council,23UE,Docks Complex - Catering Servs,RB110,Catering Provisions -Food,5110,Food,24/06/2014,386254,33.48,NET,Total Produce Gloucester,12645E
Gloucester City Council,23UE,Docks Complex - Catering Servs,RB110,Catering Provisions -Food,5110,Food,24/06/2014,386255,24.96,NET,Total Produce Gloucester,12645E
Gloucester City Council,23UE,Docks Complex - Catering Servs,RB110,Catering Provisions -Food,5110,Food,24/06/2014,386256,18.44,NET,Total Produce Gloucester,12645E
Gloucester City Council,23UE,Docks Complex - Catering Servs,RB110,Catering Provisions -Food,5110,Food,24/06/2014,386257,8.64,NET,Total Produce Gloucester,12645E
Gloucester City Council,23UE,Docks Complex - Catering Servs,RB110,Catering Provisions -Food,5110,Food,24/06/2014,386258,70.38,NET,Total Produce Gloucester,12645E
Gloucester City Council,23UE,Docks Complex - Catering Servs,RB110,Catering Provisions -Food,5110,Food,24/06/2014,386259,57.62,NET,Total Produce Gloucester,12645E
Gloucester City Council,23UE,Docks Complex - Catering Servs,RB110,Catering Provisions -Food,5110,Food,24/06/2014,386260,9.55,NET,Total Produce Gloucester,12645E
Gloucester City Council,23UE,Docks Complex - Catering Servs,RB110,Catering Provisions -Food,5110,Food,24/06/2014,386261,21.89,NET,Total Produce Gloucester,12645E
Gloucester City Council,23UE,Docks Complex - Catering Servs,RB110,Catering Provisions -Food,5110,Food,24/06/2014,386262,14.84,NET,Total Produce Gloucester,12645E
Gloucester City Council,23UE,Docks Complex - Catering Servs,RB110,Catering Provisions -Food,5110,Food,24/06/2014,386263,46.43,NET,Total Produce Gloucester,12645E
Gloucester City Council,23UE,Docks Complex - Catering Servs,RB110,Catering Provisions -Food,5110,Food,24/06/2014,386264,88.18,NET,Total Produce Gloucester,12645E
Gloucester City Council,23UE,Docks Complex - Catering Servs,RB110,Catering Provisions -Food,5110,Food,24/06/2014,386265,48,NET,Total Produce Gloucester,12645E
Gloucester City Council,23UE,Docks Complex - Catering Servs,RB110,Catering Provisions -Food,5110,Food,24/06/2014,386266,34.02,NET,Total Produce Gloucester,12645E
Gloucester City Council,23UE,Docks Complex - Catering Servs,RB110,Catering Provisions -Food,5110,Food,24/06/2014,386267,43.94,NET,Total Produce Gloucester,12645E
Gloucester City Council,23UE,Docks Complex - Catering Servs,RB110,Catering Provisions -Food,5110,Food,24/06/2014,386268,35.44,NET,Total Produce Gloucester,12645E
Gloucester City Council,23UE,Docks Complex - Catering Servs,RB110,Catering Provisions -Food,5110,Food,24/06/2014,386269,15.74,NET,Total Produce Gloucester,12645E
Gloucester City Council,23UE,Docks Complex - Catering Servs,RB110,Catering Provisions -Food,5110,Food,24/06/2014,386270,483.95,NET,3663,55585U
Gloucester City Council,23UE,Docks Complex - Catering Servs,RB110,Catering Provisions -Food,5110,Food,24/06/2014,386272,8.42,NET,3663,55585U
Gloucester City Council,23UE,Docks Complex - Services,RB100,General Repair/Maint Buildings,3000,Herbert Warehouse repairs,24/06/2014,386232,221.45,NET,Davey's Building Maintenance,57010K
Gloucester City Council,23UE,Docks Complex - Services,RB100,General Repair/Maint Buildings,3000,Repairs to 3rd Floor,24/06/2014,386233,174.9,NET,Davey's Building Maintenance,57010K
Gloucester City Council,23UE,Environmental Planning,LM340,Consultants Fees,5349,Microsoft Project Introduction 18/06/14,24/06/2014,386235,610,NET,Lansdowne Computer Training,14909Y
Gloucester City Council,23UE,Gl1 Pool Air Handling System,LY152,Contract Payments,0020,GL1 Swimming Pool,24/06/2014,384153,390,CAP,Rpa,01710Y
Gloucester City Council,23UE,Gloucester Guildhall,LA100,Maintenance Of Equipment,5030,Nouveau connections,24/06/2014,386241,218,NET,Discount Carpet Tiles,14901R
Gloucester City Council,23UE,Grants To Voluntary Sector,FG100,Funding Vol&Com Grps-Grants,7100C,COMMUNITY GRANT 2014-15,24/06/2014,384273,15000,NET,Third Sector Services,09599K
Gloucester City Council,23UE,REDACTED,REDACTED,REDACTED,REDACTED,REDACTED,24/06/2014,REDACTED,148.53,NET,REDACTED,REDACTED
Gloucester City Council,23UE,REDACTED,REDACTED,REDACTED,REDACTED,REDACTED,24/06/2014,REDACTED,100,NET,REDACTED,REDACTED
Gloucester City Council,23UE,Guildhall Events,LA200,Advertising And Publicity,5702,Banners & Logos,24/06/2014,386075,155,NET,Hanman Split Ltd,56889J
Gloucester City Council,23UE,Homelessness,CH120,Fees For Services Received,5350,Completion of Form,24/06/2014,385944,20.5,NET,Gloucester Gp Consortium Company Ltd,11671N
Gloucester City Council,23UE,Homelessness,CH120,Fees For Services Received,5350,REDACTED,24/06/2014,385966,20.5,NET,Rosebank Health,03041E
Gloucester City Council,23UE,Homelessness,CH120,Rent In Advance,5516,REDACTED,24/06/2014,386353,356.56,NET,All About Lettings,14435Z
Gloucester City Council,23UE,Homelessness Prevention,CH122,Fees For Services Received,5350,REDACTED,24/06/2014,386353,500,NET,All About Lettings,14435Z
Gloucester City Council,23UE,Rehousing,CH111,Fees For Services Received,5350,REDACTED,24/06/2014,386095,20.5,NET,Rosebank Health,03041E
Gloucester City Council,23UE,Summer Festival,LT300,Advertising And Publicity,5702,Banners & Logos,24/06/2014,386075,325,NET,Hanman Split Ltd,56889J
Gloucester City Council,23UE,Summer Festival,LT300,Operational Equipment <5000,5012,Plain Marquee,24/06/2014,386242,1340.08,NET,Top Marquees Ltd,56587E
Gloucester City Council,23UE,Utilities,PT502,Electricity Supply,3110,33 THE FORUM,24/06/2014,386218,116.26,NET,Npower,03929V
Gloucester City Council,23UE,Utilities,PT502,Electricity Supply,3110,MARKET STOREROOM,24/06/2014,386217,36.48,NET,Npower,03929V
Gloucester City Council,23UE,Wake Room,HC501,Catering Provisions -Food,5110,FOOD,24/06/2014,385679,154.43,NET,Janes Pantry,24500W
Gloucester City Council,23UE,City Museum And Art Gallery,LM200,Educational Materials,5073,GOODS FOR RESALE,25/06/2014,385701,17.99,NET,The Consortium,10365J
Gloucester City Council,23UE,City Museum And Art Gallery,LM200,Event Costs,5009,GOODS FOR RESALE,25/06/2014,385701,120.98,NET,The Consortium,10365J
Gloucester City Council,23UE,City Museum And Art Gallery,LM200,Event Costs,5009,Stationary,25/06/2014,385870,34.28,NET,The Consortium,10365J
Gloucester City Council,23UE,City Museum And Art Gallery,LM200,Events,5952,Reimbursement for travel expenses,25/06/2014,386357,54.75,NET,REDACTED,REDACTED
Gloucester City Council,23UE,Client Revs & Bens Contract,RT240,Bailiffs Fees,5368,Vat on fees collected,25/06/2014,386078,0,NET,Phoenix Commercial Collections Ltd,13435J
Gloucester City Council,23UE,Client Revs & Bens Contract,RT240,Bailiffs Fees,5368,VAT on fees collected,25/06/2014,386079,0,NET,Phoenix Commercial Collections Ltd,13435J
Gloucester City Council,23UE,Client Revs & Bens Contract,RT240,Bailiffs Fees,5368,VAT on Statutory Fees,25/06/2014,386224,7.57,NET,Bristow & Sutor,05450M
Gloucester City Council,23UE,Client Revs & Bens Contract,RT240,Bailiffs Fees,5368,VAT on Statutory Fees,25/06/2014,386237,0,NET,Bristow & Sutor,05450M
Gloucester City Council,23UE,Client Revs & Bens Contract,RT240,Bailiffs Fees,5368,VAT on Statutory Fees,25/06/2014,386238,0,NET,Bristow & Sutor,05450M
Gloucester City Council,23UE,Client Revs & Bens Contract,RT240,Court Fees,5358,REDACTED,25/06/2014,386429,245,NET,Hmcts,05407N
Gloucester City Council,23UE,Client Revs & Bens Contract,RT240,Fees For Services Received,5350,REDACTED,25/06/2014,386159,500,NET,Armstrong Removals,04632N
Gloucester City Council,23UE,Community Safety Projects,FP500,Basic Pay -Admin /Prof Staff,2601,REDACTED,25/06/2014,385968,599.68,NET,Travail Employment Ltd,49371W
Gloucester City Council,23UE,Corporate Reporting /Financing,RC504,Fees For Services Received,5350,Pension Scheme,25/06/2014,385918,653.4,NET,Gloucestershire County Council,10614L
Gloucester City Council,23UE,Docks Complex - Services,RB100,Other Minor Supplies Services,5590,Acis Water Cooler,25/06/2014,385933,153,NET,Greenworks Solutions Ltd,05909G
Gloucester City Council,23UE,Docks Complex - Services,RB100,Other Minor Supplies Services,5590,Water Cooler,25/06/2014,385921,429,NET,Greenworks Solutions Ltd,05909G
Gloucester City Council,23UE,Gl1 Pool Air Handling System,LY152,Contract Payments,0020,Pool Ventilation Investigation,25/06/2014,384346,9621,CAP,Esg Pool Ventilation Ltd,14715P
Gloucester City Council,23UE,REDACTED,REDACTED,REDACTED,REDACTED,REDACTED,25/06/2014,REDACTED,1000,NET,REDACTED,REDACTED
Gloucester City Council,23UE,Hackney Carriages,HL100,Fees For Services Received,5350,DVLA,25/06/2014,385316,79.75,NET,Intelligent Data Systems (Uk) Ltd,11067G
Gloucester City Council,23UE,Herbert Reception Upgrade,RY201,Contract Payments,0020,Engineer Fire Alarm System 06/06/2014,25/06/2014,385910,150,CAP,Adt Fire & Security Plc,54086D
Gloucester City Council,23UE,Homelessness,CH120,Board And Lodging,5515,Emergency Accomodation 21/04 & 25/04 14,25/06/2014,386082,199.17,NET,Gloucestershire County Council,18650D
Gloucester City Council,23UE,Homelessness Prevention,CH122,Fees For Services Received,5350,REDACTED,25/06/2014,386358,280,NET,REDACTED,REDACTED
Gloucester City Council,23UE,Homelessness Prevention,CH122,Fees For Services Received,5350,REDACTED,25/06/2014,386359,96,NET,Andrews Lettings,08513J
Gloucester City Council,23UE,Legal Services,RS200,Basic Pay - Temporary Staff,2751,REDACTED,25/06/2014,384948,487.29,NET,Premiere Employment Ltd,55468Z
Gloucester City Council,23UE,Off Street Car Parks,PP110,Pcn Charges,9450,"Refund Parking Ticket, lines not clear",25/06/2014,386356,25,NET,REDACTED,REDACTED
Gloucester City Council,23UE,Off Street Car Parks,PP110,Rents,3200,"2nd,3rd,4th floor kings square, rent",25/06/2014,385347,46250,NET,Dtz,08367V
Gloucester City Council,23UE,Registration Of Electors,RS400,Printing,5300,Euro Election Ballot Papers,25/06/2014,384521,7751,NET,Alpha Response Print & Mail Ltd,03029U
Gloucester City Council,23UE,Registration Of Electors,RS400,Printing,5300,Local Ballet Papers,25/06/2014,384522,3485,NET,Alpha Response Print & Mail Ltd,03029U
Gloucester City Council,23UE,Registration Of Electors,RS400,Printing,5300,May Postal Vote Packs,25/06/2014,384523,5003,NET,Alpha Response Print & Mail Ltd,03029U
Gloucester City Council,23UE,Registration Of Electors,RS400,Printing,5300,Poll Card Letter,25/06/2014,384524,213,NET,Alpha Response Print & Mail Ltd,03029U
Gloucester City Council,23UE,Statutory Testing,RS310,Lightning Conductor,3026,Remedial Works,25/06/2014,385967,1295,NET,Brooke Edgeley Specialist Technical Services,03873X
Gloucester City Council,23UE,Tic Theatre Ticket Sales,LT107,Materials For Sale,5080,Ticket Sales for Linton Festival 2014,25/06/2014,386427,321,NET,Linton Festival C/C,13048W
Gloucester City Council,23UE,Tic Theatre Ticket Sales,LT107,Sale Of Goods And Services,9230,Ticket Sales for Linton Festival 2014,25/06/2014,386427,-26.75,NET,Linton Festival C/C,13048W
Gloucester City Council,23UE,Wake Room,HC501,Catering Provisions -Food,5110,Food w/e 15/06/2014,25/06/2014,385869,58.47,NET,Janes Pantry,24500W
Gloucester City Council,23UE,REDACTED,REDACTED,REDACTED,REDACTED,REDACTED,25/06/2014,REDACTED,174.25,NET,REDACTED,REDACTED
Gloucester City Council,23UE,REDACTED,REDACTED,REDACTED,REDACTED,REDACTED,25/06/2014,REDACTED,5.1,NET,REDACTED,REDACTED
Gloucester City Council,23UE,Allotments,HI104,Operational Equipment <5000,5012,Reimbursement for materials,26/06/2014,386459,17.45,NET,REDACTED,REDACTED
Gloucester City Council,23UE,Asset Management,RS300,Charges For Services,9300,Minor Works Building Contract 2011,26/06/2014,386395,347.4,NET,Riba Enterprises,09988U
Gloucester City Council,23UE,Blackfriars Priory,RY207,Capital General Repairs & Main,0013,Blackfriars Priory works,26/06/2014,386412,5225.05,CAP,Pinetree (Gloucester) Ltd,53288Y
Gloucester City Council,23UE,Business Transformation & Tech,RT700,Computer Hardware <5000,5420,Dell Services & Supplies,26/06/2014,386404,755.89,NET,Dell Computers Corporation Ltd,55920C
Gloucester City Council,23UE,Business Transformation & Tech,RT700,Computer Hardware <5000,5420,Port Replicator,26/06/2014,386413,43,NET,Qual Technology,56512N
Gloucester City Council,23UE,Cctv Revenue Budget,FP501,Security Equipment Serv/Repair,3038,Annual Contribution to ANPR cameras,26/06/2014,386388,5000,NET,"Police & Crime Commissioner, Gloucestershire",49521B
Gloucester City Council,23UE,Civica It Contract,RT270,Contracted Services,6970,IT Service Charges July 2014,26/06/2014,386368,47916.66,NET,Civica Uk Ltd,10841X
Gloucester City Council,23UE,Contact Centre,RB300,Basic Pay -Admin /Prof Staff,2601,REDACTED,26/06/2014,386227,671,NET,Venn Group Ltd,04339P
Gloucester City Council,23UE,Council Streetcare Team,HI101,Maint Of Grounds - General,3030,Chester Road Play Area 3701,26/06/2014,384949,1577,NET,Greenfields Garden Services Ltd,48130G
Gloucester City Council,23UE,Docks Complex - Castlemeads Cp,RB210,General Repair/Maint Buildings,3000,"Castlemead Car Park, Works on Barrier",26/06/2014,386396,150,NET,Mpl Wrought Iron Llp,03907P
Gloucester City Council,23UE,Docks Complex - Catering Servs,RB110,Catering Provisions -Food,5110,Food w/e 25/05/2014,26/06/2014,384769,78.48,NET,Janes Pantry,24500W
Gloucester City Council,23UE,Docks Complex - Services,RB100,General Repair/Maint Buildings,3000,Engineer Report,26/06/2014,384155,431.96,NET,Gea Denco Ltd,57271C
Gloucester City Council,23UE,Docks Complex - Telephones,RB120,Mobile Phones,5409,Phone and Sim,26/06/2014,386393,168,NET,Everything Everywhere Ltd (T-Mobile),02334V
Gloucester City Council,23UE,Docks Complex - Telephones,RB120,Mobile Phones,5409,Phone and Sim x 5,26/06/2014,386053,840,NET,Everything Everywhere Ltd (T-Mobile),02334V
Gloucester City Council,23UE,Environmental Planning,LM340,Operational Materials,5070,Safety Clothing,26/06/2014,381558,146.96,NET,Safpro Industrial Supply Co,39190W
Gloucester City Council,23UE,Financial Services,RT200,Fees For Services Received,5350,10% CHECKS,26/06/2014,385693,2560,NET,Civica Uk Ltd,10841X
Gloucester City Council,23UE,Folk Museum,LM210,Publications For Sale,5064,Mugs & Tablet Sleeves,26/06/2014,386385,112.44,NET,Half Moon Bay Ltd,08240F
Gloucester City Council,23UE,Gloucester Guildhall,LA100,Cleaning Materials,3600,Cleaning Supplies,26/06/2014,386394,126.52,NET,Gpp Hygiene,06080P
Gloucester City Council,23UE,Guildhall Cinema,LA202,Fees For Services Received,5350,Monthly Film Charge June 2014,26/06/2014,385344,214.24,NET,Nft Logistics Ltd,13505N
Gloucester City Council,23UE,REDACTED,REDACTED,REDACTED,REDACTED,REDACTED,26/06/2014,REDACTED,100,NET,REDACTED,REDACTED
Gloucester City Council,23UE,REDACTED,REDACTED,REDACTED,REDACTED,REDACTED,26/06/2014,REDACTED,100,NET,REDACTED,REDACTED
Gloucester City Council,23UE,REDACTED,REDACTED,REDACTED,REDACTED,REDACTED,26/06/2014,REDACTED,310,NET,REDACTED,REDACTED
Gloucester City Council,23UE,Hillfield Gardens Sensory Gard,LY146,Contract Payments,0020,Hillfield Gardens Sensory Garden,26/06/2014,386372,2294.53,CAP,D R Howse Services,13597E
Gloucester City Council,23UE,Homelessness,CH120,Board And Lodging,5515,REDACTED,26/06/2014,386461,706.71,NET,James Legge Property (Ltd),07844R
Gloucester City Council,23UE,Homelessness,CH120,Board And Lodging,5515,REDACTED,26/06/2014,386463,137.61,NET,Carbrey Housing Ltd,11098G
Gloucester City Council,23UE,Homelessness,CH120,Board And Lodging,5515,REDACTED,26/06/2014,386467,892.44,NET,Kalmwood Ltd,08568G
Gloucester City Council,23UE,Homelessness,CH120,Board And Lodging,5515,REDACTED,26/06/2014,386464,1901.51,NET,Carbrey Housing Ltd,11098G
Gloucester City Council,23UE,Homelessness,CH120,Board And Lodging,5515,REDACTED,26/06/2014,386460,2408,NET,REDACTED,REDACTED
Gloucester City Council,23UE,Homelessness,CH120,Board And Lodging,5515,REDACTED,26/06/2014,386462,1349.92,NET,Dorchester House Trust,12298D
Gloucester City Council,23UE,Homelessness,CH120,Board And Lodging,5515,REDACTED,26/06/2014,386466,1356.13,NET,REDACTED,REDACTED
Gloucester City Council,23UE,Homelessness,CH120,Board And Lodging,5515,REDACTED,26/06/2014,386465,351.07,NET,Kimbrose Ltd,06333H
Gloucester City Council,23UE,Homelessness Prevention,CH122,Fees For Services Received,5350,REDACTED,26/06/2014,386457,425,NET,Mark Holland Ltd,11464W
Gloucester City Council,23UE,Interpretation & Signage,GY012,Contract Payments,0020,SIGNAGE,26/06/2014,385689,10000,CAP,Marketing Gloucester Ltd,08925E
Gloucester City Council,23UE,Investment Property,RB500,Advertising And Publicity,5702,advert 30/05/14,26/06/2014,385580,55,NET,The Gloucester Review,14590K
Gloucester City Council,23UE,Off Street Car Parks,PP110,Contracted Services,6970,Trade Waste Services Jul- Oct 14,26/06/2014,386178,290.42,NET,Enterprise (Aol) Ltd,06695G
Gloucester City Council,23UE,Parks Contract Management,LP100,Fees For Services Received,5350,Turfcare Advisory Visit 24/04/2014,26/06/2014,385383,591.75,NET,Institute Of Groundsmanship,14580N
Gloucester City Council,23UE,Registration Of Electors,RS400,Fees For Services Received,5350,Repairs in KingsYards to election booths,26/06/2014,386364,175,NET,King Builders (Gloucester) Ltd,25810S
Gloucester City Council,23UE,Registration Of Electors,RS400,Fees For Services Received,5350,Room Hire Elections 22/05/2014,26/06/2014,386365,200,NET,Tredworth Junior School,03118U
Gloucester City Council,23UE,Safer Stronger Communities,FP841,Other Minor Supplies Services,5590,Anti Climb Security Panels,26/06/2014,386409,616,NET,Show Services Group Ltd,56329F
Gloucester City Council,23UE,REDACTED,REDACTED,REDACTED,REDACTED,REDACTED,26/06/2014,REDACTED,113.75,NET,REDACTED,REDACTED
Gloucester City Council,23UE,Building Control,PT400,Fees For Services Received,5350,REDACTED,27/06/2014,385661,150,NET,King Builders (Gloucester) Ltd,25810S
Gloucester City Council,23UE,Building Control,PT400,Fees For Services Received,5350,REDACTED,27/06/2014,385612,50,NET,Bath & North East Somerset District Council,57875R
Gloucester City Council,23UE,Building Control,PT400,Fees For Services Received,5350,REDACTED,27/06/2014,385103,25,NET,Bath & North East Somerset District Council,57875R
Gloucester City Council,23UE,Building Control,PT400,Subscriptions,5600,Knights Guide,27/06/2014,384129,309,NET,Lexis Nexis Ltd,01712U
Gloucester City Council,23UE,Business Transformation & Tech,RT700,Computer Hardware Maintenance,5426,Replacement Memory Module,27/06/2014,386582,14.69,NET,Dell Computers Corporation Ltd,55920C
Gloucester City Council,23UE,Business Transformation & Tech,RT700,Computer Software Maintenance,5427,Live Upgrade v9.1,27/06/2014,386067,950,NET,Idox Group,07229U
Gloucester City Council,23UE,Business Transformation & Tech,RT700,Computer Software Maintenance,5427,SUPPORT,27/06/2014,385685,960.8,NET,Boldon James Ltd,11067A
Gloucester City Council,23UE,City Museum And Art Gallery,LM200,Exhibits And Collections,5038,Transport of Farm Team to London,27/06/2014,386541,480,NET,Art Works Exhibition Services Ltd,14429U
Gloucester City Council,23UE,City Museum And Art Gallery,LM200,Printing,5300,Whats on Guides July-Dec 2014,27/06/2014,386613,904.5,NET,Color Co,57707K
Gloucester City Council,23UE,City Museum And Art Gallery,LM200,Publications For Sale,5064,Historic Gloucester May 2014,27/06/2014,384773,390,NET,The History Press Ltd,07144D
Gloucester City Council,23UE,City Museum And Art Gallery,LM200,Security Services Fees,5351,Alarm Activation/ Call out,27/06/2014,384964,31,NET,Glevum Security Ltd,03249B
Gloucester City Council,23UE,City Museum And Art Gallery,LM200,Subscriptions,5600,Annual Subscription,27/06/2014,386540,15,NET,Glos & District Archaeological Research Group,03895L
Gloucester City Council,23UE,City Museum Catering,LM202,Catering Provisions -Food,5110,Food,27/06/2014,386574,4.96,NET,Total Produce Gloucester,12645E
Gloucester City Council,23UE,City Museum Catering,LM202,Catering Provisions -Food,5110,Food,27/06/2014,386575,7.44,NET,Total Produce Gloucester,12645E
Gloucester City Council,23UE,City Museum Catering,LM202,Catering Provisions -Food,5110,Food,27/06/2014,386576,6.2,NET,Total Produce Gloucester,12645E
Gloucester City Council,23UE,City Museum Catering,LM202,Catering Provisions -Food,5110,Food,27/06/2014,386577,7.44,NET,Total Produce Gloucester,12645E
Gloucester City Council,23UE,City Museum Catering,LM202,Catering Provisions -Food,5110,Food,27/06/2014,386578,98.55,NET,Woodward Foodservice,10714F
Gloucester City Council,23UE,City Museum Catering,LM202,Catering Provisions -Food,5110,Food,27/06/2014,386617,74.54,NET,Woodward Foodservice,10714F
Gloucester City Council,23UE,City Museum Catering,LM202,Catering Provisions -Liquor,5111,Food May 2014,27/06/2014,386565,48.16,NET,Woody's Fruit & Veg,11798L
Gloucester City Council,23UE,City Museum Catering,LM202,Catering Provisions -Liquor,5111,Soft Drinks,27/06/2014,386550,83.43,NET,Cellar Supplies Cheltenham Ltd,01563L
Gloucester City Council,23UE,Civic Admin And Hospitality,RC210,Events,5952,"Mayors Ball, food and drink",27/06/2014,386471,3817.7,NET,Gloucester Rugby Football Club,49396D
Gloucester City Council,23UE,Client Revs & Bens Contract,RT240,Court Fees,5358,WOAS GLOS MC 240614,27/06/2014,386625,300,NET,Hmcts,05407N
Gloucester City Council,23UE,Director Serv & Neighbourhoods,ME104,Subscriptions,5600,Annual Subscription,27/06/2014,386470,140,NET,Hemming Group Ltd,48192H
Gloucester City Council,23UE,Disabled Facilities Grants,CY013,Disabled Facility Grants,0074,REDACTED,27/06/2014,386618,1033.4,CAP,Stroud Stairlifts,10315A
Gloucester City Council,23UE,Docks Complex - Services,RB100,Service Charges,3020,Lease/Rental Contract 14-15,27/06/2014,384345,1996.8,NET,Wessex Products (Leasing) Ltd,03684C
Gloucester City Council,23UE,Flooding And Drainage,HE306,Maint Of Grounds - General,3030,"Ivy Mews, Stroud Road, 15/05/2014",27/06/2014,386071,590,NET,Three Counties Drain Service,44033V
Gloucester City Council,23UE,Flooding And Drainage,HE306,Maint Of Grounds - General,3030,Plock Court Clearance 02/06/2014,27/06/2014,386378,480,NET,Tcv T/A The Conservation Volunteers,55897V
Gloucester City Council,23UE,Folk Museum,LM210,Printing,5300,Whats on Guides July-Dec 2014,27/06/2014,386613,904.5,NET,Color Co,57707K
Gloucester City Council,23UE,General Works Fund,RY203,Cap Repair/Maint Fixed Plant,0014,Boiler Inspection,27/06/2014,386591,808.4,CAP,Hewer Facilities Mgt Ltd,05232A
Gloucester City Council,23UE,Guildhall Bar And Caf�,LA210,Basic Pay - Duty Assistants,1511,Food May 14,27/06/2014,386572,106.43,NET,Woody's Fruit & Veg,11798L
Gloucester City Council,23UE,Guildhall Bar And Caf�,LA210,Catering Provisions -Food,5110,Food,27/06/2014,386566,55.2,NET,Taynton Farm Foods,09653F
Gloucester City Council,23UE,Guildhall Bar And Caf�,LA210,Catering Provisions -Food,5110,Food,27/06/2014,386567,4.96,NET,Total Produce Gloucester,12645E
Gloucester City Council,23UE,Guildhall Bar And Caf�,LA210,Catering Provisions -Food,5110,Food,27/06/2014,386568,4.96,NET,Total Produce Gloucester,12645E
Gloucester City Council,23UE,Guildhall Bar And Caf�,LA210,Catering Provisions -Food,5110,Food,27/06/2014,386569,4.96,NET,Total Produce Gloucester,12645E
Gloucester City Council,23UE,Guildhall Bar And Caf�,LA210,Catering Provisions -Food,5110,Food,27/06/2014,386570,4.96,NET,Total Produce Gloucester,12645E
Gloucester City Council,23UE,Guildhall Bar And Caf�,LA210,Catering Provisions -Food,5110,Food,27/06/2014,386571,4.96,NET,Total Produce Gloucester,12645E
Gloucester City Council,23UE,Guildhall Bar And Caf�,LA210,Hire Of Equipment,5020,Service to Dishwasher,27/06/2014,386551,158.5,NET,Dl Spencer & Company Ltd,11885R
Gloucester City Council,23UE,REDACTED,REDACTED,REDACTED,REDACTED,REDACTED,27/06/2014,REDACTED,100,NET,REDACTED,REDACTED
Gloucester City Council,23UE,REDACTED,REDACTED,REDACTED,REDACTED,REDACTED,27/06/2014,REDACTED,75,NET,REDACTED,REDACTED
Gloucester City Council,23UE,REDACTED,REDACTED,REDACTED,REDACTED,REDACTED,27/06/2014,REDACTED,80,NET,REDACTED,REDACTED
Gloucester City Council,23UE,REDACTED,REDACTED,REDACTED,REDACTED,REDACTED,27/06/2014,REDACTED,80,NET,REDACTED,REDACTED
Gloucester City Council,23UE,REDACTED,REDACTED,REDACTED,REDACTED,REDACTED,27/06/2014,REDACTED,80,NET,REDACTED,REDACTED
Gloucester City Council,23UE,Homelessness,CH120,Removal And Storage Fees,5513,REDACTED,27/06/2014,386552,135,NET,Advanced Removals & Storage Ltd,57142R
Gloucester City Council,23UE,Homelessness,CH120,Removal And Storage Fees,5513,REDACTED,27/06/2014,386530,39.11,NET,Advanced Removals & Storage Ltd,57142R
Gloucester City Council,23UE,Homelessness,CH120,Rent In Advance,5516,REDACTED,27/06/2014,386624,346.15,NET,Belvoir Gloucester,06205U
Gloucester City Council,23UE,Internal Communications,RC430,Publications,5060,Citylife Magazine Prints,27/06/2014,386362,7399,NET,Idp Design & Print,05313Z
Gloucester City Council,23UE,Legal Services,RS200,Basic Pay -Admin /Prof Staff,2601,REDACTED,27/06/2014,386534,4672.5,NET,Michael Page International Recruitment Ltd,06601P
Gloucester City Council,23UE,Legal Services,RS200,Basic Pay -Admin /Prof Staff,2601,REDACTED,27/06/2014,386532,1023.75,NET,Michael Page International Recruitment Ltd,06601P
Gloucester City Council,23UE,Legal Services,RS200,Basic Pay -Admin /Prof Staff,2601,REDACTED,27/06/2014,386531,927.5,NET,Michael Page International Recruitment Ltd,06601P
Gloucester City Council,23UE,Legal Services,RS200,Basic Pay -Admin /Prof Staff,2601,REDACTED,27/06/2014,386533,498.75,NET,Michael Page International Recruitment Ltd,06601P
Gloucester City Council,23UE,Parks Contract Management,LP100,Maint Of Grounds - General,3030,Longlevens Playing Field,27/06/2014,385953,450,NET,Greenfields Garden Services Ltd,48130G
Gloucester City Council,23UE,Taxi Marshalling Scheme,HL101,Taxi Marshals,5387,Taxi Marshalls 04/04 & 05/04 2014,27/06/2014,386580,187.5,NET,Cuff Security Services Ltd,12073G
Gloucester City Council,23UE,Taxi Marshalling Scheme,HL101,Taxi Marshals,5387,Taxi Marshalls 11/04 & 12/04 2014,27/06/2014,386579,187.5,NET,Cuff Security Services Ltd,12073G
Gloucester City Council,23UE,Tic Trading,LT110,Materials For Sale,5080,Greeting Cards,27/06/2014,386549,30,NET,Laurence Ash Art,14844B
Gloucester City Council,23UE,Tic Trading,LT110,Publications For Sale,5064,Maps,27/06/2014,386548,438.96,NET,David Whyman Map Sales,02653Z
Gloucester City Council,23UE,Tree Planting Grant Funded,LY150,Contract Payments,0020,Post Tender Consultancy Support,27/06/2014,384484,1330,CAP,Smith Consult Ltd,13842R
Gloucester City Council,23UE,Aspire Admin Charges,LC105,Fees For Services Received,5350,APRIL2014 GCC STAFF ASPIRE MEMBERSHIP,30/06/2014,385193,1073,NET,Aspire Sports & Cultural Trust,08135V
Gloucester City Council,23UE,Aspire Admin Charges,LC105,Fees For Services Received,5350,GCC staff contibution - Apr2012-Mar2013,30/06/2014,382442,4529,NET,Aspire Sports & Cultural Trust,08135V
Gloucester City Council,23UE,Aspire Admin Charges,LC105,Fees For Services Received,5350,MAY2014 GCC staff aspire membership,30/06/2014,385194,1044,NET,Aspire Sports & Cultural Trust,08135V
Gloucester City Council,23UE,Aspire Admin Charges,LC105,Fees For Services Received,5350,Payroll deductons regarding GL1 (2 part),30/06/2014,383321,4648,NET,Aspire Sports & Cultural Trust,08135V
Gloucester City Council,23UE,Aspire Admin Charges,LC105,Other Minor Income,9900,BAILIFF PAYMENTS 13/06/14,30/06/2014,386667,152.6,NET,Aspire Sports & Cultural Trust,08135V
Gloucester City Council,23UE,Blackfriars Priory,RY207,Capital General Repairs & Main,0013,TO CORRECT CIS,30/06/2014,386670,5225.05,CAP,Pinetree (Gloucester) Ltd,53288Y
Gloucester City Council,23UE,Business Transformation & Tech,RT700,Computer Hardware <5000,5420,U320 300GB,30/06/2014,374485,218,NET,Qual Technology,56512N
Gloucester City Council,23UE,Cemeteries,HC300,Burial Rights,9324,Refund of purchase of grave,30/06/2014,386626,506.05,NET,REDACTED,REDACTED
Gloucester City Council,23UE,Council Streetcare Team,HI101,Maint Of Grounds - General,3030,"Chester Road Play Area, Litter Bin",30/06/2014,386563,150,NET,Greenfields Garden Services Ltd,48130G
Gloucester City Council,23UE,Countryside Unit,LP201,Maint Of Grounds - General,3030,"Robinswood Hill Park, replace barbeque",30/06/2014,386562,190,NET,Greenfields Garden Services Ltd,48130G
Gloucester City Council,23UE,Development Management,PT200,Advertising And Publicity,5702,Advertisement 13/06/2014,30/06/2014,385942,87.65,NET,Local World Ltd,08556P
Gloucester City Council,23UE,Development Management,PT200,Advertising And Publicity,5702,Advertisements 15/05/2014,30/06/2014,384341,116.86,NET,Local World Ltd,08556P
Gloucester City Council,23UE,Development Management,PT200,Application Fees,9312,14/00716/FUL planning application,30/06/2014,386671,172,NET,REDACTED,REDACTED
Gloucester City Council,23UE,Financial Services,RT200,Fees For Services Received,5350,HP LJ Pro,30/06/2014,386415,139,NET,Qual Technology,56512N
Gloucester City Council,23UE,Folk Museum,LM210,Security Services Fees,5351,Alarm Activation,30/06/2014,384121,31,NET,Glevum Security Ltd,03249B
Gloucester City Council,23UE,Folk Museum,LM210,Trade Refuse Collection,3630,Window Cleaning 15/05/2014,30/06/2014,384525,97.5,NET,Sparklin Facilities Ltd,09142N
Gloucester City Council,23UE,General Drainage Works,PY241,Contract Payments,0020,REDACTED,30/06/2014,386564,450,CAP,Greenfields Garden Services Ltd,48130G
Gloucester City Council,23UE,REDACTED,REDACTED,REDACTED,REDACTED,REDACTED,30/06/2014,REDACTED,100,NET,REDACTED,REDACTED
Gloucester City Council,23UE,REDACTED,REDACTED,REDACTED,REDACTED,REDACTED,30/06/2014,REDACTED,175,NET,REDACTED,REDACTED
Gloucester City Council,23UE,REDACTED,REDACTED,REDACTED,REDACTED,REDACTED,30/06/2014,REDACTED,80,NET,REDACTED,REDACTED
Gloucester City Council,23UE,REDACTED,REDACTED,REDACTED,REDACTED,REDACTED,30/06/2014,REDACTED,80,NET,REDACTED,REDACTED
Gloucester City Council,23UE,Health & Safety,EH110,Other Minor Supplies Services,5590,Servicare Renewal,30/06/2014,386369,0,NET,Evac+Chair International Ltd,10907S
Gloucester City Council,23UE,Homelessness,CH120,Rent In Advance,5516,REDACTED,30/06/2014,386727,270,NET,REDACTED,REDACTED
Gloucester City Council,23UE,Nms Contract,HI102,Contracted Services,6970,Pension April 2014,30/06/2014,386390,10073.51,NET,Enterprise (Aol) Ltd,06695G
Gloucester City Council,23UE,Rehousing,CH111,Fees For Services Received,5350,Supply Medical Report,30/06/2014,386410,20.5,NET,Newent Doctors' Practice,10902C
Gloucester City Council,23UE,Tic Trading,LT110,Materials For Sale,5080,Window Sales May 2014,30/06/2014,386627,104,NET,REDACTED,REDACTED
Gloucester City Council,23UE,Tic Trading,LT110,Sale Of Goods And Services,9230,Window Sales May 2014,30/06/2014,386627,-8.67,NET,REDACTED,REDACTED
Gloucester City Council,23UE,Wake Room,HC501,Operational Equipment <5000,5012,KITCHENWARE,30/06/2014,382148,131.27,NET,Nisbets,55372P
Gloucester City Council,23UE,Blackfriars Catering,LA220,Catering Provisions -Liquor,5111,Gloucester Gold,01/07/2014,386692,68,NET,Gloucester Brewery,13373F
Gloucester City Council,23UE,Cemeteries,HC300,Purch Vehicles/M. Plant <5000,4000,Strimmers,01/07/2014,386697,598,NET,Garden Machinery Gloucester,55641K
Gloucester City Council,23UE,Client Revs & Bens Contract,RT240,Fees For Services Received,5350,Arrest and Detention of defaulters,01/07/2014,386696,99,NET,Assevarate Ltd,11749A
Gloucester City Council,23UE,Community Strat & Engagement,FP100,Fees For Services Received,5350,Annual Contribution to MAIDeN partnershi,01/07/2014,386535,10000,NET,Gloucestershire County Council,18650D
Gloucester City Council,23UE,Council Streetcare Team,HI101,Maint Of Grounds - General,3030,Spray Japanese Knotweed,01/07/2014,385402,25,NET,Greenfields Garden Services Ltd,48130G
Gloucester City Council,23UE,Countryside Unit,LP201,Contract Cleaning,3620,Bill for cleaning,01/07/2014,386711,130,NET,Cv Fisher Cleaning Services,14907C
Gloucester City Council,23UE,Crematorium,HC200,Memorial Plaques,5053,Plaques,01/07/2014,386698,351,NET,Arkell & Hurcombe,59812T
Gloucester City Council,23UE,Crematorium,HC200,Repair/Maint Of Fixed Plant,3006,Investigate problem with stone damper,01/07/2014,386755,467.4,NET,Facultatieve Technologies Ltd,51210H
Gloucester City Council,23UE,Disabled Facilities Grants,CY013,Disabled Facility Grants,0074,Provision of level access shower,01/07/2014,386754,4035,CAP,L Coward & Son Ltd,47989M
Gloucester City Council,23UE,Docks Complex - Catering Servs,RB110,Catering Provisions -Food,5110,Food w/e 22/06/2014,01/07/2014,386397,89.81,NET,Janes Pantry,24500W
Gloucester City Council,23UE,Docks Complex - Services,RB100,Cleaning Materials,3600,Cleaning Materials,01/07/2014,384634,144.58,NET,Core Hygiene Ltd,03885P
Gloucester City Council,23UE,Docks Complex - Services,RB100,Cleaning Materials,3600,Cleaning Materials,01/07/2014,385314,46.77,NET,Core Hygiene Ltd,03885P
Gloucester City Council,23UE,Docks Complex - Services,RB100,Cleaning Materials,3600,Cleaning Materials,01/07/2014,385358,10.15,NET,Core Hygiene Ltd,03885P
Gloucester City Council,23UE,Docks Complex - Services,RB100,Cleaning Materials,3600,Cleaning Materials,01/07/2014,386248,165.52,NET,Core Hygiene Ltd,03885P
Gloucester City Council,23UE,Docks Complex - Services,RB100,Cleaning Materials,3600,Cleaning Supplies,01/07/2014,385872,74.19,NET,Core Hygiene Ltd,03885P
Gloucester City Council,23UE,Docks Complex - Services,RB100,General Repair/Maint Buildings,3000,"Engineer 30/05/2014, Fire Alarm System",01/07/2014,385391,125,NET,Adt Fire & Security Plc,54086D
Gloucester City Council,23UE,Docks Complex - Services,RB100,General Repair/Maint Buildings,3000,Replace Faulty Crank Case Heater,01/07/2014,386588,330,NET,Cooltherm,06087Z
Gloucester City Council,23UE,Docks Complex - Services,RB100,Operational Equipment <5000,5012,Food Processor,01/07/2014,386686,209.99,NET,Nisbets,55372P
Gloucester City Council,23UE,General Drainage Works,PY241,Contract Payments,0020,Armscroft Park,01/07/2014,384467,250,CAP,Rj Contracting (Environmental) Ltd,07429H
Gloucester City Council,23UE,Guildhall Bar And Caf�,LA210,Catering Provisions -Liquor,5111,Drinks,01/07/2014,386707,1509.67,NET,Cellar Supplies Cheltenham Ltd,01563L
Gloucester City Council,23UE,Land Searches,RO300,Fees For Services Received,5350,Property Searches Ligitation,01/07/2014,386516,1726.99,NET,Local Government Association,11683F
Gloucester City Council,23UE,Legal Services,RS200,Basic Pay - Temporary Staff,2751,REDACTED,01/07/2014,386228,1058.76,NET,Venn Group Ltd,04339P
Gloucester City Council,23UE,Legal Services,RS200,Basic Pay - Temporary Staff,2751,REDACTED,01/07/2014,386402,487.29,NET,Premiere Employment Ltd,55468Z
Gloucester City Council,23UE,Legal Services,RS200,Publications,5060,Arden Housing Law,01/07/2014,384778,261,NET,Thomson Reuters,43110M
Gloucester City Council,23UE,Legal Services,RS200,Vocational Training,2970,Freedom of Information Training 16/05/14,01/07/2014,386411,265,NET,Act Now Training Ltd,03387M
Gloucester City Council,23UE,Licences,HE510,Reimbursements,5591,Ref: 033771 wrong geographical area,01/07/2014,386768,21,NET,REDACTED,REDACTED
Gloucester City Council,23UE,Licences,HE510,Reimbursements,5591,Ref: 478127 wrong geographical area,01/07/2014,386769,21,NET,REDACTED,REDACTED
Gloucester City Council,23UE,Parks Contract Management,LP100,Maint Of Grounds - General,3030,Seventh Avenue Play Area,01/07/2014,386712,575,NET,Greenfields Garden Services Ltd,48130G
Gloucester City Council,23UE,Registration Of Electors,RS400,Fees For Services Received,5350,Room Hire Elections 22/05/2014,01/07/2014,385881,160,NET,City Centre Community Partnership,11601L
Gloucester City Council,23UE,Tea Room,HC500,Catering Provisions -Liquor,5111,Drinks,01/07/2014,386706,189.86,NET,Cellar Supplies Cheltenham Ltd,01563L
Gloucester City Council,23UE,Wake Room,HC501,Catering Provisions -Food,5110,Food,01/07/2014,386713,18.66,NET,Total Produce Gloucester,12645E
Gloucester City Council,23UE,Wake Room,HC501,Catering Provisions -Food,5110,Food,01/07/2014,386714,12.76,NET,Total Produce Gloucester,12645E
Gloucester City Council,23UE,Wake Room,HC501,Catering Provisions -Food,5110,Food,01/07/2014,386715,17.22,NET,Total Produce Gloucester,12645E
Gloucester City Council,23UE,Wake Room,HC501,Catering Provisions -Food,5110,Food,01/07/2014,386716,21.86,NET,Total Produce Gloucester,12645E
Gloucester City Council,23UE,Wake Room,HC501,Catering Provisions -Food,5110,Food,01/07/2014,386717,5.98,NET,Total Produce Gloucester,12645E
Gloucester City Council,23UE,Wake Room,HC501,Catering Provisions -Food,5110,Food,01/07/2014,386718,22.1,NET,Total Produce Gloucester,12645E
Gloucester City Council,23UE,Wake Room,HC501,Catering Provisions -Food,5110,Food,01/07/2014,386719,204.28,NET,3663,55585U
Gloucester City Council,23UE,Wake Room,HC501,Catering Provisions -Food,5110,Food,01/07/2014,386720,323.64,NET,3663,55585U
Gloucester City Council,23UE,Wake Room,HC501,Catering Provisions -Food,5110,Food,01/07/2014,386721,268.82,NET,3663,55585U
Gloucester City Council,23UE,Wake Room,HC501,Cleaning Materials,3600,Food,01/07/2014,386722,47.09,NET,3663,55585U
Gloucester City Council,23UE,Wake Room,HC501,Cleaning Materials,3600,Food,01/07/2014,386760,20.01,NET,3663,55585U
Gloucester City Council,23UE,Wake Room,HC501,Other Minor Supplies Services,5590,Flowers,01/07/2014,386709,34.4,NET,Carols Florist,01274X
Gloucester City Council,23UE,Wake Room,HC501,Other Minor Supplies Services,5590,Flowers,01/07/2014,386710,39.6,NET,Carols Florist,01274X
Gloucester City Council,23UE,Homelessness,CH120,Rent In Advance,5516,REDACTED,01/07/2014,386428,484.6,NET,First Bid Limited,10578N
Gloucester City Council,23UE,Docks Complex - Telephones,RB120,Telephones And Fax,5410,HSI Charges,03/07/2014,386177,80,NET,Virgin Media Payments Ltd,09376J
Gloucester City Council,23UE,Financial Services,RT200,Fees For Services Received,5350,alney island: site monitoring 13/14,03/07/2014,382441,1550,NET,Gloucestershire Wildlife Trust,49628F
Gloucester City Council,23UE,Homelessness,CH120,Rent In Advance,5516,REDACTED,03/07/2014,386468,576.92,NET,REDACTED,REDACTED
Gloucester City Council,23UE,Homelessness Prevention,CH122,Fees For Services Received,5350,REDACTED,03/07/2014,386468,550,NET,REDACTED,REDACTED
Gloucester City Council,23UE,Homelessness,CH120,Rent In Advance,5516,REDACTED,04/07/2014,386469,582.68,NET,Moulsdale Properties Ltd,56336RV
Gloucester City Council,23UE,Homelessness Prevention,CH122,Fees For Services Received,5350,REDACTED,04/07/2014,386469,600,NET,Moulsdale Properties Ltd,56336RV
Gloucester City Council,23UE,Stationery Services,RS150,Printing,5300,Stationary,,386161,3.68,NET,Lyreco Uk Ltd,11746G
Gloucester City Council,23UE,Stationery Services,RS150,Stationery,5302,Stationary,,386160,26.55,NET,Lyreco Uk Ltd,11746G
,,,,,,,,Sum:,2153633.35,,,
